Workbook

Sheet Ohje
B2: Rakennusten hiilijalanjäljen arviointityökalu
B3: Luonnos hiilijalanjäljen arvioinnin testausta varten 9.12.2019
B5: Käyttöohje
B7: Tämä arviointityökalun luonnosversio on tarkoitettu rakennusten hiilijalanjäljen laskentamenetelmän testausta varten. Työkalua ja sen liitteenä olevia päästötietoja kehitetään testauksen jälkeen. Avoimen työkalun tarkoituksena on tukea ja edistää elinkaarilaskennan käyttöä rakennushankkeen valmistelussa, suunnittelussa, rakentamisessa ja rakennusten käytön aikana. Tämä työkalu on tarkoitettu rakennusten elinkaaren hiilijalanjäljen arviointiin ensisijaisesti silloin, kun käytetään ympäristöministeriön yksinkertaistettua arviointimenetelmää. Työkalua voidaan käyttää myös tarkennetulla arviointimenetelmällä tehtyjen laskelmien raportointiin. Arvioinnit voi tehdä myös muilla soveltuvilla työkaluilla.
B9: Työkalun sisältö
B10: Työkalun eri välilehdillä kerätään tietoa hankkeesta ja sen elinkaarivaikutuksista seuraavasti: Yhteenveto: Kohteen perustiedot ja arvioinnin tulokset Materiaaliluettelo: Rakennuksessa käytettyjen materiaalien luettelointi Valmistu, kuljetus, työmaa (A): Valmistuksen, kuljetuksen ja rakentamisen päästöt Käyttö (B): Korjausten ja energiankulutuksen arviointi Elinkaaren loppu (C+D): Purkamisen ja jätteiden käsittelyn arviointi Tietojen laatu: Käytetyn lähtötiedon luotettavuuden arviointi Materiaalitien päästötiedot: Työkalussa käytettävien hiilijalanjäljen ja -kädenjäljen kertoimet
B11: Laskentatietojen syöttäminen
B13: Syötä tiedot harmaisiin soluihin
B14: Työkaluun syötetään tietoja harmaalla pohjalla oleviin soluihin. Muut solut ovat lukittuja.
B15: Valmiit taulukkoarvot sinisissä soluissa
B16: Yksinkertaistetussa menetelmässä suurin osa laskennan tiedoista tulee pinta-alaan perustuvista taulukkoarvoista. Tällaiset kohdat työkalussa on esitetty vaaleansinisellä värillä, eikä niitä voi muokata.
B17: Tarkempia tietoja voi syöttää vihreisiin soluihin
B18: Jos haluat korvata taulukkoarvoja tarkemmilla hankekohtaisilla tiedoilla, syötä nämä tiedot vihreisiin soluihin. Taulukkoarvon vieressä olevaa "korvaa taulukkoarvot" -nappia painamalla aukeaa uusi tietokenttä tätä varten. Vaalean vihreisiin soluihin syötetyt arvot korvaavat oletuksena olevat taulukkoarvot. Muista toimittaa liitteenä kirjallinen selvitys, mihin tietoihin tarkentavat laskelmasi perustuvat.
B20: Käyttöoikeus ja vastuuvapaus
B21: Työkalu on tehty yhteistyössä Green Building Council Finland (GBC) kanssa. Työkalu on käytettävissä veloituksetta. Työkalun luonnosversio on tarkoitettu ainoastaan arvioinnin testausta varten. Ympäristöministeriö tai GBC ei vastaa mistään vahingoista, jotka mahdollisesti aiheutuvat arviointityökalun käyttäjälle tai muulla taholle arviointityökalua käytettäessa tai muuten sovellettaessa siinä olevia tietoja, toimintamalleja tai esimerkkejä.

Sheet Yhteenveto
B2: =Ohje!B2 -> Rakennusten hiilijalanjäljen arviointityökalu
B3: =Ohje!B3 -> Luonnos hiilijalanjäljen arvioinnin testausta varten 9.12.2019
B5: Yhteenveto
B7: Lähtötiedot
B8: Rakennuskohteen tiedot | C8: Kohteen nimi*
C9: Rakennustunnus
C10: Osoite
C11: Rakennustyyppi
B12: Rakennuksen tekniset tiedot | C12: Kerrosala [kem2]
C13: Lämmitetty nettoala [m2netto]*
C14: Kerrosten lukumäärä
C15: Kellarikerrosten lukumäärä
C16: Pääasiallinen runkomateriaali
C17: Energialuokka
B18: Laskennan tiedot | C18: Laskenta-ajanjakso* | D18: 50
C19: Arvioinnin tekovaihe
C20: Käytetty arviointitapa
C21: Rakennuksen arvioitu käyttöönottovuosi*
E22: *pakollinen tieto
B23: Arvionnin tekijät
C24: Arvioinnin laatija | D24: Arvioinnin tarkastaja
B25: Nimi
B26: Yritys
B27: Koulutus
B28: Päivämäärä
B30: Elinkaariarvioinnin tulokset | D30: Hiilijalanjälki | E30: Hiilikädenjälki
D31: tn CO2e | E31: tn CO2e
B32: Elinkaaren aikana syntyvät kokonaispäästöt (A-D) | D32: =IFERROR(D35*D18*D13/1000,"-") -> 0 | E32: =IFERROR(E35*D13*D18/1000,"-") -> 0
H33: =D30 -> Hiilijalanjälki | I33: =E30 -> Hiilikädenjälki
D34: kg CO2e/m2netto/a | E34: kg CO2e/m2netto/a
B35: Vuotuiset päästöt lämmitettyä nettoalaa kohden (A-D) | D35: =IFERROR(('Valmistus, kuljetus, työmaa (A)'!C8+'Käyttö (B)'!D9+'Elinkaaren loppu (C+D)'!D9),"-") -> 1.2612 | E35: =IFERROR(('Valmistus, kuljetus, työmaa (A)'!D8+'Käyttö (B)'!E9+'Elinkaaren loppu (C+D)'!E9),"-") -> 0
H36: =F32 -> 0 | I36: =E33 -> 0
B37: Valmistus, kuljetus ja työmaa (vaiheet A1-5) | D37: =IFERROR('Valmistus, kuljetus, työmaa (A)'!C8,"") -> 0.546 | E37: =IFERROR('Valmistus, kuljetus, työmaa (A)'!D8,"") -> 0 | G37: =B47 -> Elinkaaren ulkopuoliset vaikutukset (D) | H37: =D47 -> 0 | I37: =E47 -> 0
B38: ='Valmistus, kuljetus, työmaa (A)'!B11 -> Tontti | D38: =IFERROR('Valmistus, kuljetus, työmaa (A)'!C11,"") -> - | E38: =IFERROR('Valmistus, kuljetus, työmaa (A)'!D11,"") -> - | G38: =B45 -> Purkaminen (vaihe C) | H38: =D45 -> 0.672 | I38: =E45 -> 0
B39: ='Valmistus, kuljetus, työmaa (A)'!B12 -> Kantavat rakenteet | D39: =IFERROR('Valmistus, kuljetus, työmaa (A)'!C12,"") -> - | E39: =IFERROR('Valmistus, kuljetus, työmaa (A)'!D12,"") -> - | G39: =B43 -> Käyttö (vaiheet B3-4, 6) | H39: =D43 -> 0.0432 | I39: =E43 -> 0
B40: ='Valmistus, kuljetus, työmaa (A)'!B13 -> Vaippa | D40: =IFERROR('Valmistus, kuljetus, työmaa (A)'!C13,"") -> - | E40: =IFERROR('Valmistus, kuljetus, työmaa (A)'!D13,"") -> -
B41: ='Valmistus, kuljetus, työmaa (A)'!B14 -> Kevyet rakenteet | D41: =IFERROR('Valmistus, kuljetus, työmaa (A)'!C14,"") -> - | E41: =IFERROR('Valmistus, kuljetus, työmaa (A)'!D14,"") -> - | G41: =B37 -> Valmistus, kuljetus ja työmaa (vaiheet A1-5) | H41: =D37 -> 0.546 | I41: =E37 -> 0
B42: ='Valmistus, kuljetus, työmaa (A)'!B15 -> Talotekniikka | D42: =IFERROR('Valmistus, kuljetus, työmaa (A)'!C15,"") -> - | E42: =IFERROR('Valmistus, kuljetus, työmaa (A)'!D15,"") -> - | G42: =B42 -> Talotekniikka | H42: =D42 -> - | I42: =E42 -> -
B43: Käyttö (vaiheet B3-4, 6) | D43: =IFERROR('Käyttö (B)'!D9,"") -> 0.0432 | E43: =IFERROR('Käyttö (B)'!E9,"") -> 0 | G43: =B41 -> Kevyet rakenteet | H43: =D41 -> - | I43: =E41 -> -
G44: =B40 -> Vaippa | H44: =D40 -> - | I44: =E40 -> -
B45: Purkaminen (vaihe C) | D45: =IFERROR(('Elinkaaren loppu (C+D)'!D9-'Elinkaaren loppu (C+D)'!D29),"") -> 0.672 | E45: =IFERROR(('Elinkaaren loppu (C+D)'!E9-'Elinkaaren loppu (C+D)'!E29),"") -> 0 | G45: =B39 -> Kantavat rakenteet | H45: =D39 -> - | I45: =E39 -> -
G46: =B38 -> Tontti | H46: =D38 -> - | I46: =E38 -> -
B47: Elinkaaren ulkopuoliset vaikutukset (D) | D47: =IFERROR('Elinkaaren loppu (C+D)'!D29,"") -> 0 | E47: =IFERROR('Elinkaaren loppu (C+D)'!E29,"") -> 0
B62: =Datalehti!B62 -> Vuosi | C62: =Datalehti!C62 -> 0 | D62: =Datalehti!D62 -> 1 | E62: =Datalehti!E62 -> 2 | F62: =Datalehti!F62 -> 3 | G62: =Datalehti!G62 -> 4 | H62: =Datalehti!H62 -> 5 | I62: =Datalehti!I62 -> 6 | J62: =Datalehti!J62 -> 7 | K62: =Datalehti!K62 -> 8 | L62: =Datalehti!L62 -> 9 | M62: =Datalehti!M62 -> 10 | N62: =Datalehti!N62 -> 11 | O62: =Datalehti!O62 -> 12 | P62: =Datalehti!P62 -> 13 | Q62: =Datalehti!Q62 -> 14 | R62: =Datalehti!R62 -> 15 | S62: =Datalehti!S62 -> 16 | T62: =Datalehti!T62 -> 17 | U62: =Datalehti!U62 -> 18 | V62: =Datalehti!V62 -> 19 | W62: =Datalehti!W62 -> 20 | X62: =Datalehti!X62 -> 21 | Y62: =Datalehti!Y62 -> 22 | Z62: =Datalehti!Z62 -> 23 | AA62: =Datalehti!AA62 -> 24 | AB62: =Datalehti!AB62 -> 25 | AC62: =Datalehti!AC62 -> 26 | AD62: =Datalehti!AD62 -> 27 | AE62: =Datalehti!AE62 -> 28 | AF62: =Datalehti!AF62 -> 29 | AG62: =Datalehti!AG62 -> 30 | AH62: =Datalehti!AH62 -> 31 | AI62: =Datalehti!AI62 -> 32 | AJ62: =Datalehti!AJ62 -> 33 | AK62: =Datalehti!AK62 -> 34 | AL62: =Datalehti!AL62 -> 35 | AM62: =Datalehti!AM62 -> 36 | AN62: =Datalehti!AN62 -> 37 | AO62: =Datalehti!AO62 -> 38 | AP62: =Datalehti!AP62 -> 39 | AQ62: =Datalehti!AQ62 -> 40 | AR62: =Datalehti!AR62 -> 41 | AS62: =Datalehti!AS62 -> 42 | AT62: =Datalehti!AT62 -> 43 | AU62: =Datalehti!AU62 -> 44 | AV62: =Datalehti!AV62 -> 45 | AW62: =Datalehti!AW62 -> 46 | AX62: =Datalehti!AX62 -> 47 | AY62: =Datalehti!AY62 -> 48 | AZ62: =Datalehti!AZ62 -> 49 | BA62: =Datalehti!BA62 -> 50 | BB62: =Datalehti!BB62 -> 51 | BC62: =Datalehti!BC62 -> 52 | BD62: =Datalehti!BD62 -> 53 | BE62: =Datalehti!BE62 -> 54 | BF62: =Datalehti!BF62 -> 55 | BG62: =Datalehti!BG62 -> 56 | BH62: =Datalehti!BH62 -> 57 | BI62: =Datalehti!BI62 -> 58 | BJ62: =Datalehti!BJ62 -> 59 | BK62: =Datalehti!BK62 -> 60 | BL62: =Datalehti!BL62 -> 61 | BM62: =Datalehti!BM62 -> 62 | BN62: =Datalehti!BN62 -> 63 | BO62: =Datalehti!BO62 -> 64 | BP62: =Datalehti!BP62 -> 65 | BQ62: =Datalehti!BQ62 -> 66 | BR62: =Datalehti!BR62 -> 67 | BS62: =Datalehti!BS62 -> 68 | BT62: =Datalehti!BT62 -> 69 | BU62: =Datalehti!BU62 -> 70 | BV62: =Datalehti!BV62 -> 71 | BW62: =Datalehti!BW62 -> 72 | BX62: =Datalehti!BX62 -> 73 | BY62: =Datalehti!BY62 -> 74 | BZ62: =Datalehti!BZ62 -> 75 | CA62: =Datalehti!CA62 -> 76 | CB62: =Datalehti!CB62 -> 77 | CC62: =Datalehti!CC62 -> 78 | CD62: =Datalehti!CD62 -> 79 | CE62: =Datalehti!CE62 -> 80 | CF62: =Datalehti!CF62 -> 81 | CG62: =Datalehti!CG62 -> 82 | CH62: =Datalehti!CH62 -> 83 | CI62: =Datalehti!CI62 -> 84 | CJ62: =Datalehti!CJ62 -> 85 | CK62: =Datalehti!CK62 -> 86 | CL62: =Datalehti!CL62 -> 87 | CM62: =Datalehti!CM62 -> 88 | CN62: =Datalehti!CN62 -> 89 | CO62: =Datalehti!CO62 -> 90 | CP62: =Datalehti!CP62 -> 91 | CQ62: =Datalehti!CQ62 -> 92 | CR62: =Datalehti!CR62 -> 93 | CS62: =Datalehti!CS62 -> 94 | CT62: =Datalehti!CT62 -> 95 | CU62: =Datalehti!CU62 -> 96 | CV62: =Datalehti!CV62 -> 97 | CW62: =Datalehti!CW62 -> 98 | CX62: =Datalehti!CX62 -> 99 | CY62: =Datalehti!CY62 -> 100 | CZ62: =Datalehti!CZ62 -> 101 | DA62: =Datalehti!DA62 -> 102 | DB62: =Datalehti!DB62 -> 103 | DC62: =Datalehti!DC62 -> 104 | DD62: =Datalehti!DD62 -> 105 | DE62: =Datalehti!DE62 -> 106 | DF62: =Datalehti!DF62 -> 107 | DG62: =Datalehti!DG62 -> 108 | DH62: =Datalehti!DH62 -> 109 | DI62: =Datalehti!DI62 -> 110 | DJ62: =Datalehti!DJ62 -> 111 | DK62: =Datalehti!DK62 -> 112 | DL62: =Datalehti!DL62 -> 113 | DM62: =Datalehti!DM62 -> 114 | DN62: =Datalehti!DN62 -> 115 | DO62: =Datalehti!DO62 -> 116 | DP62: =Datalehti!DP62 -> 117 | DQ62: =Datalehti!DQ62 -> 118 | DR62: =Datalehti!DR62 -> 119 | DS62: =Datalehti!DS62 -> 120 | DT62: =Datalehti!DT62 -> 121 | DU62: =Datalehti!DU62 -> 122 | DV62: =Datalehti!DV62 -> 123 | DW62: =Datalehti!DW62 -> 124 | DX62: =Datalehti!DX62 -> 125 | DY62: =Datalehti!DY62 -> 126 | DZ62: =Datalehti!DZ62 -> 127 | EA62: =Datalehti!EA62 -> 128 | EB62: =Datalehti!EB62 -> 129 | EC62: =Datalehti!EC62 -> 130 | ED62: =Datalehti!ED62 -> 131 | EE62: =Datalehti!EE62 -> 132
B63: =Datalehti!B63 -> Materiaalien ja rakentamisen kumulatiivinen hiilijalanjälki | C63: =Datalehti!C63 -> 0 | D63: =Datalehti!D63 -> 0 | E63: =Datalehti!E63 -> 0 | F63: =Datalehti!F63 -> 0 | G63: =Datalehti!G63 -> 0 | H63: =Datalehti!H63 -> 0 | I63: =Datalehti!I63 -> 0 | J63: =Datalehti!J63 -> 0 | K63: =Datalehti!K63 -> 0 | L63: =Datalehti!L63 -> 0 | M63: =Datalehti!M63 -> 0 | N63: =Datalehti!N63 -> 0 | O63: =Datalehti!O63 -> 0 | P63: =Datalehti!P63 -> 0 | Q63: =Datalehti!Q63 -> 0 | R63: =Datalehti!R63 -> 0 | S63: =Datalehti!S63 -> 0 | T63: =Datalehti!T63 -> 0 | U63: =Datalehti!U63 -> 0 | V63: =Datalehti!V63 -> 0 | W63: =Datalehti!W63 -> 0 | X63: =Datalehti!X63 -> 0 | Y63: =Datalehti!Y63 -> 0 | Z63: =Datalehti!Z63 -> 0 | AA63: =Datalehti!AA63 -> 0 | AB63: =Datalehti!AB63 -> 0 | AC63: =Datalehti!AC63 -> 0 | AD63: =Datalehti!AD63 -> 0 | AE63: =Datalehti!AE63 -> 0 | AF63: =Datalehti!AF63 -> 0 | AG63: =Datalehti!AG63 -> 0 | AH63: =Datalehti!AH63 -> 0 | AI63: =Datalehti!AI63 -> 0 | AJ63: =Datalehti!AJ63 -> 0 | AK63: =Datalehti!AK63 -> 0 | AL63: =Datalehti!AL63 -> 0 | AM63: =Datalehti!AM63 -> 0 | AN63: =Datalehti!AN63 -> 0 | AO63: =Datalehti!AO63 -> 0 | AP63: =Datalehti!AP63 -> 0 | AQ63: =Datalehti!AQ63 -> 0 | AR63: =Datalehti!AR63 -> 0 | AS63: =Datalehti!AS63 -> 0 | AT63: =Datalehti!AT63 -> 0 | AU63: =Datalehti!AU63 -> 0 | AV63: =Datalehti!AV63 -> 0 | AW63: =Datalehti!AW63 -> 0 | AX63: =Datalehti!AX63 -> 0 | AY63: =Datalehti!AY63 -> 0 | AZ63: =Datalehti!AZ63 -> 0 | BA63: =Datalehti!BA63 -> 0 | BB63: =Datalehti!BB63 -> 0 | BC63: =Datalehti!BC63 -> 0 | BD63: =Datalehti!BD63 -> 0 | BE63: =Datalehti!BE63 -> 0 | BF63: =Datalehti!BF63 -> 0 | BG63: =Datalehti!BG63 -> 0 | BH63: =Datalehti!BH63 -> 0 | BI63: =Datalehti!BI63 -> 0 | BJ63: =Datalehti!BJ63 -> 0 | BK63: =Datalehti!BK63 -> 0 | BL63: =Datalehti!BL63 -> 0 | BM63: =Datalehti!BM63 -> 0 | BN63: =Datalehti!BN63 -> 0 | BO63: =Datalehti!BO63 -> 0 | BP63: =Datalehti!BP63 -> 0 | BQ63: =Datalehti!BQ63 -> 0 | BR63: =Datalehti!BR63 -> 0 | BS63: =Datalehti!BS63 -> 0 | BT63: =Datalehti!BT63 -> 0 | BU63: =Datalehti!BU63 -> 0 | BV63: =Datalehti!BV63 -> 0 | BW63: =Datalehti!BW63 -> 0 | BX63: =Datalehti!BX63 -> 0 | BY63: =Datalehti!BY63 -> 0 | BZ63: =Datalehti!BZ63 -> 0 | CA63: =Datalehti!CA63 -> 0 | CB63: =Datalehti!CB63 -> 0 | CC63: =Datalehti!CC63 -> 0 | CD63: =Datalehti!CD63 -> 0 | CE63: =Datalehti!CE63 -> 0 | CF63: =Datalehti!CF63 -> 0 | CG63: =Datalehti!CG63 -> 0 | CH63: =Datalehti!CH63 -> 0 | CI63: =Datalehti!CI63 -> 0 | CJ63: =Datalehti!CJ63 -> 0 | CK63: =Datalehti!CK63 -> 0 | CL63: =Datalehti!CL63 -> 0 | CM63: =Datalehti!CM63 -> 0 | CN63: =Datalehti!CN63 -> 0 | CO63: =Datalehti!CO63 -> 0 | CP63: =Datalehti!CP63 -> 0 | CQ63: =Datalehti!CQ63 -> 0 | CR63: =Datalehti!CR63 -> 0 | CS63: =Datalehti!CS63 -> 0 | CT63: =Datalehti!CT63 -> 0 | CU63: =Datalehti!CU63 -> 0 | CV63: =Datalehti!CV63 -> 0 | CW63: =Datalehti!CW63 -> 0 | CX63: =Datalehti!CX63 -> 0 | CY63: =Datalehti!CY63 -> 0 | CZ63: =Datalehti!CZ63 -> 0 | DA63: =Datalehti!DA63 -> 0 | DB63: =Datalehti!DB63 -> 0 | DC63: =Datalehti!DC63 -> 0 | DD63: =Datalehti!DD63 -> 0 | DE63: =Datalehti!DE63 -> 0 | DF63: =Datalehti!DF63 -> 0 | DG63: =Datalehti!DG63 -> 0 | DH63: =Datalehti!DH63 -> 0 | DI63: =Datalehti!DI63 -> 0 | DJ63: =Datalehti!DJ63 -> 0 | DK63: =Datalehti!DK63 -> 0 | DL63: =Datalehti!DL63 -> 0 | DM63: =Datalehti!DM63 -> 0 | DN63: =Datalehti!DN63 -> 0 | DO63: =Datalehti!DO63 -> 0 | DP63: =Datalehti!DP63 -> 0 | DQ63: =Datalehti!DQ63 -> 0 | DR63: =Datalehti!DR63 -> 0 | DS63: =Datalehti!DS63 -> 0 | DT63: =Datalehti!DT63 -> 0 | DU63: =Datalehti!DU63 -> 0 | DV63: =Datalehti!DV63 -> 0 | DW63: =Datalehti!DW63 -> 0 | DX63: =Datalehti!DX63 -> 0 | DY63: =Datalehti!DY63 -> 0 | DZ63: =Datalehti!DZ63 -> 0 | EA63: =Datalehti!EA63 -> 0 | EB63: =Datalehti!EB63 -> 0 | EC63: =Datalehti!EC63 -> 0 | ED63: =Datalehti!ED63 -> 0 | EE63: =Datalehti!EE63 -> 0
B64: =Datalehti!B64 -> Energiankäytön kumulatiivinen hiilijalanjälki | C64: =Datalehti!C64 -> 0 | D64: =Datalehti!D64 ->  | E64: =Datalehti!E64 ->  | F64: =Datalehti!F64 ->  | G64: =Datalehti!G64 ->  | H64: =Datalehti!H64 ->  | I64: =Datalehti!I64 ->  | J64: =Datalehti!J64 ->  | K64: =Datalehti!K64 ->  | L64: =Datalehti!L64 ->  | M64: =Datalehti!M64 ->  | N64: =Datalehti!N64 ->  | O64: =Datalehti!O64 ->  | P64: =Datalehti!P64 ->  | Q64: =Datalehti!Q64 ->  | R64: =Datalehti!R64 ->  | S64: =Datalehti!S64 ->  | T64: =Datalehti!T64 ->  | U64: =Datalehti!U64 ->  | V64: =Datalehti!V64 ->  | W64: =Datalehti!W64 ->  | X64: =Datalehti!X64 ->  | Y64: =Datalehti!Y64 ->  | Z64: =Datalehti!Z64 ->  | AA64: =Datalehti!AA64 ->  | AB64: =Datalehti!AB64 ->  | AC64: =Datalehti!AC64 ->  | AD64: =Datalehti!AD64 ->  | AE64: =Datalehti!AE64 ->  | AF64: =Datalehti!AF64 ->  | AG64: =Datalehti!AG64 ->  | AH64: =Datalehti!AH64 ->  | AI64: =Datalehti!AI64 ->  | AJ64: =Datalehti!AJ64 ->  | AK64: =Datalehti!AK64 ->  | AL64: =Datalehti!AL64 ->  | AM64: =Datalehti!AM64 ->  | AN64: =Datalehti!AN64 ->  | AO64: =Datalehti!AO64 ->  | AP64: =Datalehti!AP64 ->  | AQ64: =Datalehti!AQ64 ->  | AR64: =Datalehti!AR64 ->  | AS64: =Datalehti!AS64 ->  | AT64: =Datalehti!AT64 ->  | AU64: =Datalehti!AU64 ->  | AV64: =Datalehti!AV64 ->  | AW64: =Datalehti!AW64 ->  | AX64: =Datalehti!AX64 ->  | AY64: =Datalehti!AY64 ->  | AZ64: =Datalehti!AZ64 ->  | BA64: =Datalehti!BA64 ->  | BB64: =Datalehti!BB64 ->  | BC64: =Datalehti!BC64 ->  | BD64: =Datalehti!BD64 ->  | BE64: =Datalehti!BE64 ->  | BF64: =Datalehti!BF64 ->  | BG64: =Datalehti!BG64 ->  | BH64: =Datalehti!BH64 ->  | BI64: =Datalehti!BI64 ->  | BJ64: =Datalehti!BJ64 ->  | BK64: =Datalehti!BK64 ->  | BL64: =Datalehti!BL64 ->  | BM64: =Datalehti!BM64 ->  | BN64: =Datalehti!BN64 ->  | BO64: =Datalehti!BO64 ->  | BP64: =Datalehti!BP64 ->  | BQ64: =Datalehti!BQ64 ->  | BR64: =Datalehti!BR64 ->  | BS64: =Datalehti!BS64 ->  | BT64: =Datalehti!BT64 ->  | BU64: =Datalehti!BU64 ->  | BV64: =Datalehti!BV64 ->  | BW64: =Datalehti!BW64 ->  | BX64: =Datalehti!BX64 ->  | BY64: =Datalehti!BY64 ->  | BZ64: =Datalehti!BZ64 ->  | CA64: =Datalehti!CA64 ->  | CB64: =Datalehti!CB64 ->  | CC64: =Datalehti!CC64 ->  | CD64: =Datalehti!CD64 ->  | CE64: =Datalehti!CE64 ->  | CF64: =Datalehti!CF64 ->  | CG64: =Datalehti!CG64 ->  | CH64: =Datalehti!CH64 ->  | CI64: =Datalehti!CI64 ->  | CJ64: =Datalehti!CJ64 ->  | CK64: =Datalehti!CK64 ->  | CL64: =Datalehti!CL64 ->  | CM64: =Datalehti!CM64 ->  | CN64: =Datalehti!CN64 ->  | CO64: =Datalehti!CO64 ->  | CP64: =Datalehti!CP64 ->  | CQ64: =Datalehti!CQ64 ->  | CR64: =Datalehti!CR64 ->  | CS64: =Datalehti!CS64 ->  | CT64: =Datalehti!CT64 ->  | CU64: =Datalehti!CU64 ->  | CV64: =Datalehti!CV64 ->  | CW64: =Datalehti!CW64 ->  | CX64: =Datalehti!CX64 ->  | CY64: =Datalehti!CY64 ->  | CZ64: =Datalehti!CZ64 ->  | DA64: =Datalehti!DA64 ->  | DB64: =Datalehti!DB64 ->  | DC64: =Datalehti!DC64 ->  | DD64: =Datalehti!DD64 ->  | DE64: =Datalehti!DE64 ->  | DF64: =Datalehti!DF64 ->  | DG64: =Datalehti!DG64 ->  | DH64: =Datalehti!DH64 ->  | DI64: =Datalehti!DI64 ->  | DJ64: =Datalehti!DJ64 ->  | DK64: =Datalehti!DK64 ->  | DL64: =Datalehti!DL64 ->  | DM64: =Datalehti!DM64 ->  | DN64: =Datalehti!DN64 ->  | DO64: =Datalehti!DO64 ->  | DP64: =Datalehti!DP64 ->  | DQ64: =Datalehti!DQ64 ->  | DR64: =Datalehti!DR64 ->  | DS64: =Datalehti!DS64 ->  | DT64: =Datalehti!DT64 ->  | DU64: =Datalehti!DU64 ->  | DV64: =Datalehti!DV64 ->  | DW64: =Datalehti!DW64 ->  | DX64: =Datalehti!DX64 ->  | DY64: =Datalehti!DY64 ->  | DZ64: =Datalehti!DZ64 ->  | EA64: =Datalehti!EA64 ->  | EB64: =Datalehti!EB64 ->  | EC64: =Datalehti!EC64 ->  | ED64: =Datalehti!ED64 ->  | EE64: =Datalehti!EE64 -> 

Sheet Materiaaliluettelo
B2: =Ohje!B2 -> Rakennusten hiilijalanjäljen arviointityökalu
B3: =Ohje!B3 -> Luonnos hiilijalanjäljen arvioinnin testausta varten 9.12.2019
B5: Materiaaliluettelo
B6: Syötä rakennuksen materiaalitiedot alla olevaan listaan esim. Määräluetteloon perustuen. Hiilijalanjäljen ja -kädenjäljen päästöt muodostuvat automaattisesti, kun määrät on syötetty. Lisää tarvittaessa rivejä kunkin otsakkeen alle 'Lisää rivi' -napilla. Jos tarkempi päästötieto jollekin tuotteelle tai materiaalille on olemassa, voit syöttää sen painamalla 'Korvaa taulukkoarvoja tarkemmilla tiedoille' -nappia. | J6: kgCO2e | K6: kgCO2e | M6: Tarkennetut kertoimet kgCO2e/yksikkö | O6: a | P6: kpl | Q6: kgCO2e
B7: Littera | C7: Rakennusosa | D7: Materiaalin tyyppi | E7: Materiaali | G7: Määrä | H7: yks | J7: Hiilijalanjälki | K7: Hiilikädenjälki | M7: Hiilijalanjälki | N7: Hiilikädenjälki | O7: Vaihtoväli | P7: Vaihdot | Q7: Hiilijalanjälki
B10: Tontti (1.1. Alueosat)
H11: =IF(E11="","",VLOOKUP(E11,'Materiaalien päästötiedot'!B:K,10,FALSE)) ->  | J11: =IF($E11="","",$G11*IF($M11="",VLOOKUP($E11,'Materiaalien päästötiedot'!$B:$K,7,FALSE),$M11)) ->  | K11: =IF($E11="","",$G11*IF($N11="",VLOOKUP($E11,'Materiaalien päästötiedot'!$B:$K,8,FALSE),$N11)) ->  | O11: =IF(E11="","",VLOOKUP(E11,'Materiaalien päästötiedot'!B:O,11,FALSE)) ->  | P11: =IF(E11="","",VLOOKUP(E11,'Materiaalien päästötiedot'!B:O,12,FALSE)) ->  | Q11: =IF(E11="","",J11*P11) -> 
H12: =IF(E12="","",VLOOKUP(E12,'Materiaalien päästötiedot'!B:K,10,FALSE)) ->  | J12: =IF($E12="","",$G12*IF($M12="",VLOOKUP($E12,'Materiaalien päästötiedot'!$B:$K,7,FALSE),$M12)) ->  | K12: =IF($E12="","",$G12*IF($N12="",VLOOKUP($E12,'Materiaalien päästötiedot'!$B:$K,8,FALSE),$N12)) ->  | O12: =IF(E12="","",VLOOKUP(E12,'Materiaalien päästötiedot'!B:O,11,FALSE)) ->  | P12: =IF(E12="","",VLOOKUP(E12,'Materiaalien päästötiedot'!B:O,12,FALSE)) ->  | Q12: =IF(E12="","",J12*P12) -> 
H13: =IF(E13="","",VLOOKUP(E13,'Materiaalien päästötiedot'!B:K,10,FALSE)) ->  | J13: =IF($E13="","",$G13*IF($M13="",VLOOKUP($E13,'Materiaalien päästötiedot'!$B:$K,7,FALSE),$M13)) ->  | K13: =IF($E13="","",$G13*IF($N13="",VLOOKUP($E13,'Materiaalien päästötiedot'!$B:$K,8,FALSE),$N13)) ->  | O13: =IF(E13="","",VLOOKUP(E13,'Materiaalien päästötiedot'!B:O,11,FALSE)) ->  | P13: =IF(E13="","",VLOOKUP(E13,'Materiaalien päästötiedot'!B:O,12,FALSE)) ->  | Q13: =IF(E13="","",J13*P13) -> 
H14: =IF(E14="","",VLOOKUP(E14,'Materiaalien päästötiedot'!B:K,10,FALSE)) ->  | J14: =IF($E14="","",$G14*IF($M14="",VLOOKUP($E14,'Materiaalien päästötiedot'!$B:$K,7,FALSE),$M14)) ->  | K14: =IF($E14="","",$G14*IF($N14="",VLOOKUP($E14,'Materiaalien päästötiedot'!$B:$K,8,FALSE),$N14)) ->  | O14: =IF(E14="","",VLOOKUP(E14,'Materiaalien päästötiedot'!B:O,11,FALSE)) ->  | P14: =IF(E14="","",VLOOKUP(E14,'Materiaalien päästötiedot'!B:O,12,FALSE)) ->  | Q14: =IF(E14="","",J14*P14) -> 
H15: =IF(E15="","",VLOOKUP(E15,'Materiaalien päästötiedot'!B:K,10,FALSE)) ->  | J15: =IF($E15="","",$G15*IF($M15="",VLOOKUP($E15,'Materiaalien päästötiedot'!$B:$K,7,FALSE),$M15)) ->  | K15: =IF($E15="","",$G15*IF($N15="",VLOOKUP($E15,'Materiaalien päästötiedot'!$B:$K,8,FALSE),$N15)) ->  | O15: =IF(E15="","",VLOOKUP(E15,'Materiaalien päästötiedot'!B:O,11,FALSE)) ->  | P15: =IF(E15="","",VLOOKUP(E15,'Materiaalien päästötiedot'!B:O,12,FALSE)) ->  | Q15: =IF(E15="","",J15*P15) -> 
B16: Total | J16: =SUBTOTAL(109,Tontti[Column8]) -> 0 | K16: =SUBTOTAL(109,Tontti[Column9]) -> 0 | Q16: =SUBTOTAL(109,Tontti[Column14]) -> 0
B18: Kantavat rakenteet (1.2.1-1.2.3 Talo-osat)
H19: =IF(E19="","",VLOOKUP(E19,'Materiaalien päästötiedot'!B:K,10,FALSE)) ->  | J19: =IF($E19="","",$G19*IF($M19="",VLOOKUP($E19,'Materiaalien päästötiedot'!$B:$K,7,FALSE),$M19)) ->  | K19: =IF($E19="","",$G19*IF($N19="",VLOOKUP($E19,'Materiaalien päästötiedot'!$B:$K,8,FALSE),$N19)) ->  | O19: =IF(E19="","",VLOOKUP(E19,'Materiaalien päästötiedot'!B:O,11,FALSE)) ->  | P19: =IF(E19="","",VLOOKUP(E19,'Materiaalien päästötiedot'!B:O,12,FALSE)) ->  | Q19: =IF(E19="","",J19*P19) -> 
H20: =IF(E20="","",VLOOKUP(E20,'Materiaalien päästötiedot'!B:K,10,FALSE)) ->  | J20: =IF($E20="","",$G20*IF($M20="",VLOOKUP($E20,'Materiaalien päästötiedot'!$B:$K,7,FALSE),$M20)) ->  | K20: =IF($E20="","",$G20*IF($N20="",VLOOKUP($E20,'Materiaalien päästötiedot'!$B:$K,8,FALSE),$N20)) ->  | O20: =IF(E20="","",VLOOKUP(E20,'Materiaalien päästötiedot'!B:O,11,FALSE)) ->  | P20: =IF(E20="","",VLOOKUP(E20,'Materiaalien päästötiedot'!B:O,12,FALSE)) ->  | Q20: =IF(E20="","",J20*P20) -> 
H21: =IF(E21="","",VLOOKUP(E21,'Materiaalien päästötiedot'!B:K,10,FALSE)) ->  | J21: =IF($E21="","",$G21*IF($M21="",VLOOKUP($E21,'Materiaalien päästötiedot'!$B:$K,7,FALSE),$M21)) ->  | K21: =IF($E21="","",$G21*IF($N21="",VLOOKUP($E21,'Materiaalien päästötiedot'!$B:$K,8,FALSE),$N21)) ->  | O21: =IF(E21="","",VLOOKUP(E21,'Materiaalien päästötiedot'!B:O,11,FALSE)) ->  | P21: =IF(E21="","",VLOOKUP(E21,'Materiaalien päästötiedot'!B:O,12,FALSE)) ->  | Q21: =IF(E21="","",J21*P21) -> 
H22: =IF(E22="","",VLOOKUP(E22,'Materiaalien päästötiedot'!B:K,10,FALSE)) ->  | J22: =IF($E22="","",$G22*IF($M22="",VLOOKUP($E22,'Materiaalien päästötiedot'!$B:$K,7,FALSE),$M22)) ->  | K22: =IF($E22="","",$G22*IF($N22="",VLOOKUP($E22,'Materiaalien päästötiedot'!$B:$K,8,FALSE),$N22)) ->  | O22: =IF(E22="","",VLOOKUP(E22,'Materiaalien päästötiedot'!B:O,11,FALSE)) ->  | P22: =IF(E22="","",VLOOKUP(E22,'Materiaalien päästötiedot'!B:O,12,FALSE)) ->  | Q22: =IF(E22="","",J22*P22) -> 
H23: =IF(E23="","",VLOOKUP(E23,'Materiaalien päästötiedot'!B:K,10,FALSE)) ->  | J23: =IF($E23="","",$G23*IF($M23="",VLOOKUP($E23,'Materiaalien päästötiedot'!$B:$K,7,FALSE),$M23)) ->  | K23: =IF($E23="","",$G23*IF($N23="",VLOOKUP($E23,'Materiaalien päästötiedot'!$B:$K,8,FALSE),$N23)) ->  | O23: =IF(E23="","",VLOOKUP(E23,'Materiaalien päästötiedot'!B:O,11,FALSE)) ->  | P23: =IF(E23="","",VLOOKUP(E23,'Materiaalien päästötiedot'!B:O,12,FALSE)) ->  | Q23: =IF(E23="","",J23*P23) -> 
B24: Total | J24: =SUBTOTAL(109,Kantavat[Column8]) -> 0 | K24: =SUBTOTAL(109,Kantavat[Column9]) -> 0 | Q24: =SUBTOTAL(109,Kantavat[Column14]) -> 0
B26: Vaippa (1.2.4-1.2.6 Talo-osat)
H27: =IF(E27="","",VLOOKUP(E27,'Materiaalien päästötiedot'!B:K,10,FALSE)) ->  | J27: =IF($E27="","",$G27*IF($M27="",VLOOKUP($E27,'Materiaalien päästötiedot'!$B:$K,7,FALSE),$M27)) ->  | K27: =IF($E27="","",$G27*IF($N27="",VLOOKUP($E27,'Materiaalien päästötiedot'!$B:$K,8,FALSE),$N27)) ->  | O27: =IF(E27="","",VLOOKUP(E27,'Materiaalien päästötiedot'!B:O,11,FALSE)) ->  | P27: =IF(E27="","",VLOOKUP(E27,'Materiaalien päästötiedot'!B:O,12,FALSE)) ->  | Q27: =IF(E27="","",J27*P27) -> 
H28: =IF(E28="","",VLOOKUP(E28,'Materiaalien päästötiedot'!B:K,10,FALSE)) ->  | J28: =IF($E28="","",$G28*IF($M28="",VLOOKUP($E28,'Materiaalien päästötiedot'!$B:$K,7,FALSE),$M28)) ->  | K28: =IF($E28="","",$G28*IF($N28="",VLOOKUP($E28,'Materiaalien päästötiedot'!$B:$K,8,FALSE),$N28)) ->  | O28: =IF(E28="","",VLOOKUP(E28,'Materiaalien päästötiedot'!B:O,11,FALSE)) ->  | P28: =IF(E28="","",VLOOKUP(E28,'Materiaalien päästötiedot'!B:O,12,FALSE)) ->  | Q28: =IF(E28="","",J28*P28) -> 
H29: =IF(E29="","",VLOOKUP(E29,'Materiaalien päästötiedot'!B:K,10,FALSE)) ->  | J29: =IF($E29="","",$G29*IF($M29="",VLOOKUP($E29,'Materiaalien päästötiedot'!$B:$K,7,FALSE),$M29)) ->  | K29: =IF($E29="","",$G29*IF($N29="",VLOOKUP($E29,'Materiaalien päästötiedot'!$B:$K,8,FALSE),$N29)) ->  | O29: =IF(E29="","",VLOOKUP(E29,'Materiaalien päästötiedot'!B:O,11,FALSE)) ->  | P29: =IF(E29="","",VLOOKUP(E29,'Materiaalien päästötiedot'!B:O,12,FALSE)) ->  | Q29: =IF(E29="","",J29*P29) -> 
H30: =IF(E30="","",VLOOKUP(E30,'Materiaalien päästötiedot'!B:K,10,FALSE)) ->  | J30: =IF($E30="","",$G30*IF($M30="",VLOOKUP($E30,'Materiaalien päästötiedot'!$B:$K,7,FALSE),$M30)) ->  | K30: =IF($E30="","",$G30*IF($N30="",VLOOKUP($E30,'Materiaalien päästötiedot'!$B:$K,8,FALSE),$N30)) ->  | O30: =IF(E30="","",VLOOKUP(E30,'Materiaalien päästötiedot'!B:O,11,FALSE)) ->  | P30: =IF(E30="","",VLOOKUP(E30,'Materiaalien päästötiedot'!B:O,12,FALSE)) ->  | Q30: =IF(E30="","",J30*P30) -> 
H31: =IF(E31="","",VLOOKUP(E31,'Materiaalien päästötiedot'!B:K,10,FALSE)) ->  | J31: =IF($E31="","",$G31*IF($M31="",VLOOKUP($E31,'Materiaalien päästötiedot'!$B:$K,7,FALSE),$M31)) ->  | K31: =IF($E31="","",$G31*IF($N31="",VLOOKUP($E31,'Materiaalien päästötiedot'!$B:$K,8,FALSE),$N31)) ->  | O31: =IF(E31="","",VLOOKUP(E31,'Materiaalien päästötiedot'!B:O,11,FALSE)) ->  | P31: =IF(E31="","",VLOOKUP(E31,'Materiaalien päästötiedot'!B:O,12,FALSE)) ->  | Q31: =IF(E31="","",J31*P31) -> 
B32: Total | J32: =SUBTOTAL(109,Vaippa[Column8]) -> 0 | K32: =SUBTOTAL(109,Vaippa[Column9]) -> 0 | Q32: =SUBTOTAL(109,Vaippa[Column14]) -> 0
B34: Kevyet rakenteet (1.3 Tila-osat)
H35: =IF(E35="","",VLOOKUP(E35,'Materiaalien päästötiedot'!B:K,10,FALSE)) ->  | J35: =IF($E35="","",$G35*IF($M35="",VLOOKUP($E35,'Materiaalien päästötiedot'!$B:$K,7,FALSE),$M35)) ->  | K35: =IF($E35="","",$G35*IF($N35="",VLOOKUP($E35,'Materiaalien päästötiedot'!$B:$K,8,FALSE),$N35)) ->  | O35: =IF(E35="","",VLOOKUP(E35,'Materiaalien päästötiedot'!B:O,11,FALSE)) ->  | P35: =IF(E35="","",VLOOKUP(E35,'Materiaalien päästötiedot'!B:O,12,FALSE)) ->  | Q35: =IF(E35="","",J35*P35) -> 
H36: =IF(E36="","",VLOOKUP(E36,'Materiaalien päästötiedot'!B:K,10,FALSE)) ->  | J36: =IF($E36="","",$G36*IF($M36="",VLOOKUP($E36,'Materiaalien päästötiedot'!$B:$K,7,FALSE),$M36)) ->  | K36: =IF($E36="","",$G36*IF($N36="",VLOOKUP($E36,'Materiaalien päästötiedot'!$B:$K,8,FALSE),$N36)) ->  | O36: =IF(E36="","",VLOOKUP(E36,'Materiaalien päästötiedot'!B:O,11,FALSE)) ->  | P36: =IF(E36="","",VLOOKUP(E36,'Materiaalien päästötiedot'!B:O,12,FALSE)) ->  | Q36: =IF(E36="","",J36*P36) -> 
H37: =IF(E37="","",VLOOKUP(E37,'Materiaalien päästötiedot'!B:K,10,FALSE)) ->  | J37: =IF($E37="","",$G37*IF($M37="",VLOOKUP($E37,'Materiaalien päästötiedot'!$B:$K,7,FALSE),$M37)) ->  | K37: =IF($E37="","",$G37*IF($N37="",VLOOKUP($E37,'Materiaalien päästötiedot'!$B:$K,8,FALSE),$N37)) ->  | O37: =IF(E37="","",VLOOKUP(E37,'Materiaalien päästötiedot'!B:O,11,FALSE)) ->  | P37: =IF(E37="","",VLOOKUP(E37,'Materiaalien päästötiedot'!B:O,12,FALSE)) ->  | Q37: =IF(E37="","",J37*P37) -> 
H38: =IF(E38="","",VLOOKUP(E38,'Materiaalien päästötiedot'!B:K,10,FALSE)) ->  | J38: =IF($E38="","",$G38*IF($M38="",VLOOKUP($E38,'Materiaalien päästötiedot'!$B:$K,7,FALSE),$M38)) ->  | K38: =IF($E38="","",$G38*IF($N38="",VLOOKUP($E38,'Materiaalien päästötiedot'!$B:$K,8,FALSE),$N38)) ->  | O38: =IF(E38="","",VLOOKUP(E38,'Materiaalien päästötiedot'!B:O,11,FALSE)) ->  | P38: =IF(E38="","",VLOOKUP(E38,'Materiaalien päästötiedot'!B:O,12,FALSE)) ->  | Q38: =IF(E38="","",J38*P38) -> 
H39: =IF(E39="","",VLOOKUP(E39,'Materiaalien päästötiedot'!B:K,10,FALSE)) ->  | J39: =IF($E39="","",$G39*IF($M39="",VLOOKUP($E39,'Materiaalien päästötiedot'!$B:$K,7,FALSE),$M39)) ->  | K39: =IF($E39="","",$G39*IF($N39="",VLOOKUP($E39,'Materiaalien päästötiedot'!$B:$K,8,FALSE),$N39)) ->  | O39: =IF(E39="","",VLOOKUP(E39,'Materiaalien päästötiedot'!B:O,11,FALSE)) ->  | P39: =IF(E39="","",VLOOKUP(E39,'Materiaalien päästötiedot'!B:O,12,FALSE)) ->  | Q39: =IF(E39="","",J39*P39) -> 
B40: Total | J40: =SUBTOTAL(109,Kevyet[Column8]) -> 0 | K40: =SUBTOTAL(109,Kevyet[Column9]) -> 0 | Q40: =SUBTOTAL(109,Kevyet[Column14]) -> 0
B42: Talotekniikka (2.1-2.4 Tekniikkaosat)
H43: =IF(E43="","",VLOOKUP(E43,'Materiaalien päästötiedot'!B:K,10,FALSE)) ->  | J43: =IF($E43="","",$G43*IF($M43="",VLOOKUP($E43,'Materiaalien päästötiedot'!$B:$K,7,FALSE),$M43)) ->  | K43: =IF($E43="","",$G43*IF($N43="",VLOOKUP($E43,'Materiaalien päästötiedot'!$B:$K,8,FALSE),$N43)) ->  | O43: =IF(E43="","",VLOOKUP(E43,'Materiaalien päästötiedot'!B:O,11,FALSE)) ->  | P43: =IF(E43="","",VLOOKUP(E43,'Materiaalien päästötiedot'!B:O,12,FALSE)) ->  | Q43: =IF(E43="","",J43*P43) -> 
H44: =IF(E44="","",VLOOKUP(E44,'Materiaalien päästötiedot'!B:K,10,FALSE)) ->  | J44: =IF($E44="","",$G44*IF($M44="",VLOOKUP($E44,'Materiaalien päästötiedot'!$B:$K,7,FALSE),$M44)) ->  | K44: =IF($E44="","",$G44*IF($N44="",VLOOKUP($E44,'Materiaalien päästötiedot'!$B:$K,8,FALSE),$N44)) ->  | O44: =IF(E44="","",VLOOKUP(E44,'Materiaalien päästötiedot'!B:O,11,FALSE)) ->  | P44: =IF(E44="","",VLOOKUP(E44,'Materiaalien päästötiedot'!B:O,12,FALSE)) ->  | Q44: =IF(E44="","",J44*P44) -> 
H45: =IF(E45="","",VLOOKUP(E45,'Materiaalien päästötiedot'!B:K,10,FALSE)) ->  | J45: =IF($E45="","",$G45*IF($M45="",VLOOKUP($E45,'Materiaalien päästötiedot'!$B:$K,7,FALSE),$M45)) ->  | K45: =IF($E45="","",$G45*IF($N45="",VLOOKUP($E45,'Materiaalien päästötiedot'!$B:$K,8,FALSE),$N45)) ->  | O45: =IF(E45="","",VLOOKUP(E45,'Materiaalien päästötiedot'!B:O,11,FALSE)) ->  | P45: =IF(E45="","",VLOOKUP(E45,'Materiaalien päästötiedot'!B:O,12,FALSE)) ->  | Q45: =IF(E45="","",J45*P45) -> 
H46: =IF(E46="","",VLOOKUP(E46,'Materiaalien päästötiedot'!B:K,10,FALSE)) ->  | J46: =IF($E46="","",$G46*IF($M46="",VLOOKUP($E46,'Materiaalien päästötiedot'!$B:$K,7,FALSE),$M46)) ->  | K46: =IF($E46="","",$G46*IF($N46="",VLOOKUP($E46,'Materiaalien päästötiedot'!$B:$K,8,FALSE),$N46)) ->  | O46: =IF(E46="","",VLOOKUP(E46,'Materiaalien päästötiedot'!B:O,11,FALSE)) ->  | P46: =IF(E46="","",VLOOKUP(E46,'Materiaalien päästötiedot'!B:O,12,FALSE)) ->  | Q46: =IF(E46="","",J46*P46) -> 
H47: =IF(E47="","",VLOOKUP(E47,'Materiaalien päästötiedot'!B:K,10,FALSE)) ->  | J47: =IF($E47="","",$G47*IF($M47="",VLOOKUP($E47,'Materiaalien päästötiedot'!$B:$K,7,FALSE),$M47)) ->  | K47: =IF($E47="","",$G47*IF($N47="",VLOOKUP($E47,'Materiaalien päästötiedot'!$B:$K,8,FALSE),$N47)) ->  | O47: =IF(E47="","",VLOOKUP(E47,'Materiaalien päästötiedot'!B:O,11,FALSE)) ->  | P47: =IF(E47="","",VLOOKUP(E47,'Materiaalien päästötiedot'!B:O,12,FALSE)) ->  | Q47: =IF(E47="","",J47*P47) -> 
B48: Total | J48: =SUBTOTAL(109,TATE[Column8]) -> 0 | K48: =SUBTOTAL(109,TATE[Column9]) -> 0 | Q48: =SUBTOTAL(109,TATE[Column14]) -> 0
B50: Kaikki materiaalit yhteensä | J50: =TATE[[#Totals],[Column8]]+Kevyet[[#Totals],[Column8]]+Vaippa[[#Totals],[Column8]]+Kantavat[[#Totals],[Column8]]+Tontti[[#Totals],[Column8]] -> 0 | K50: =TATE[[#Totals],[Column9]]+Kevyet[[#Totals],[Column9]]+Vaippa[[#Totals],[Column9]]+Kantavat[[#Totals],[Column9]]+Tontti[[#Totals],[Column9]] -> 0 | L50: =TATE[[#Totals],[Tontti (1.1. Alueosat)]]+Kevyet[[#Totals],[Tontti (1.1. Alueosat)]]+Vaippa[[#Totals],[Tontti (1.1. Alueosat)]]+Kantavat[[#Totals],[Tontti (1.1. Alueosat)]]+Tontti[[#Totals],[Tontti (1.1. Alueosat)]] ->  | Q50: =TATE[[#Totals],[Column14]]+Kevyet[[#Totals],[Column14]]+Vaippa[[#Totals],[Column14]]+Kantavat[[#Totals],[Column14]]+Tontti[[#Totals],[Column14]] -> 0
J51: Hiilijalanjälki | K51: Hiilikädenjälki | Q51: Vaihtojen hiilijalanjälki

Sheet Valmistus, kuljetus, työmaa (A)
B2: =Ohje!B2 -> Rakennusten hiilijalanjäljen arviointityökalu
B3: =Ohje!B3 -> Luonnos hiilijalanjäljen arvioinnin testausta varten 9.12.2019
B4: Valmistus, kuljetus ja työmaa -vaiheiden päästöjen arviointi (A)
C6: Hiilijalanjälki | D6: Hiilikädenjälki
C7: kg CO2e/m2netto/a | D7: kg CO2e/m2netto/a
B8: Ennen käyttöä syntyvät päästöt yhteensä | C8: =C10+C22 -> 0.546 | D8: =D10+D22 -> 0
B10: Valmistus ja kuljetusvaihe (A1-4) | C10: =IFERROR(IF(C18="",SUM(C11:C15),C18),"-") -> 0 | D10: =IFERROR(IF(D18="",SUM(D11:D15),D18),"-") -> 0
B11: Tontti | C11: =IFERROR(Tontti[[#Totals],[Column8]]/Yhteenveto!$D$13/Yhteenveto!$D$18,"-") -> - | D11: =IFERROR(Tontti[[#Totals],[Column9]]/Yhteenveto!$D$13/Yhteenveto!$D$18,"-") -> -
B12: Kantavat rakenteet | C12: =IFERROR(Kantavat[[#Totals],[Column8]]/Yhteenveto!$D$13/Yhteenveto!$D$18,"-") -> - | D12: =IFERROR(Kantavat[[#Totals],[Column9]]/Yhteenveto!$D$13/Yhteenveto!$D$18,"-") -> -
B13: Vaippa | C13: =IFERROR(Vaippa[[#Totals],[Column8]]/Yhteenveto!$D$13/Yhteenveto!$D$18,"-") -> - | D13: =IFERROR(Vaippa[[#Totals],[Column9]]/Yhteenveto!$D$13/Yhteenveto!$D$18,"-") -> -
B14: Kevyet rakenteet | C14: =IFERROR(Kevyet[[#Totals],[Column8]]/Yhteenveto!$D$13/Yhteenveto!$D$18,"-") -> - | D14: =IFERROR(Kevyet[[#Totals],[Column9]]/Yhteenveto!$D$13/Yhteenveto!$D$18,"-") -> -
B15: Talotekniikka | C15: =IFERROR(TATE[[#Totals],[Column8]]/Yhteenveto!$D$13/Yhteenveto!$D$18,"-") -> - | D15: =IFERROR(TATE[[#Totals],[Column9]]/Yhteenveto!$D$13/Yhteenveto!$D$18,"-") -> -
B16: Valmistusvaiheen päästöjen tulokset muodostuvat automaattisesti välilehdellä 'Materiaaliluettelo' annettujen arvojen perusteella.
B18: Valmistus ja kuljetusvaihe (A1-4) tarkennettu laskenta
B20: Selitä tähän kenttään miten ja mistä tarkemmat arvot on saatu. Esitä tarvittaessa erilliset laskelmat liitteenä. Tarkempia laskelmia käytettäessä älä syötä mitään lukuja ylempään taulukkoon tai Materiaalit - välilehdelle.
B22: Työmaatoiminnot (A5) | C22: =IF(C25="",Datalehti!C36/Yhteenveto!D18,C25) -> 0.546 | D22: =IF(D25="",Datalehti!D36/Yhteenveto!D18,D25) -> 0
B23: Työmaatoimintojen arvot perustuvat neliömetrikohtaiseen taulukkoarvoon.
B25: Työmaatoiminnot (A5) tarkennettu laskenta
B27: Selitä tähän kenttään miten ja mistä tarkemmat arvot on saatu. Esitä tarvittaessa erilliset laskelmat liitteenä.

Sheet Käyttö (B)
B2: =Ohje!B2 -> Rakennusten hiilijalanjäljen arviointityökalu
B3: =Ohje!B3 -> Luonnos hiilijalanjäljen arvioinnin testausta varten 9.12.2019
B5: Käyttövaiheen päästöjen arviointi (B)
D7: Hiilijalanjälki | E7: Hiilikädenjälki
D8: kg CO2e/m2netto/a | E8: kg CO2e/m2netto/a
B9: Käytön aikana syntyvät päästöt yhteensä | D9: =IFERROR(D11+D26,"-") -> 0.0432 | E9: =E11 -> 0
B11: Energiankäyttö (B6) | C11: Energiankulutus (kWh/m2netto/a) | D11: =IF(D22="",SUM(D12:D15),D22) -> 0 | E11: =IF(E22="",SUM(E12:E15),E22) -> 0
B12: Sähkö | D12: =IFERROR(C12*Datalehti!T14,"-") -> 0 | E12: -
B13: Kaukolämpö | D13: =IFERROR(C13*Datalehti!T15,"-") -> 0 | E13: -
B14: Fossiiliset polttoaineet | D14: =IFERROR(C14*Datalehti!T16,"-") -> 0 | E14: -
B15: Uusiutuvat polttoaineet | D15: =IFERROR(C15*Datalehti!T17,"-") -> 0 | E15: =IFERROR(-Datalehti!D46,"-") -> 0
B17: Ylijäämäenergia | C17: Energian tuotanto (kWh/m2netto/a)
B18: Sähkö | D18: Verkkoon syötetty uusiutuvilla polttoaineilla tuotettu sähkö
B19: Lämpö | D19: Verkkoon syötetty uusiutuvilla polttoaineilla tuotettu lämpö
B20: Syötä yllä olevaan listaan rakennuksen laskennallinen vuotuinen ostoenergian kulutus energiaselvityksen tai vastaavan laskelman pohjalta. Enerigiankäytön päästöt muodostuvat automaattisesti eri energiamuotojen päästötietojen perusteella, kun kulutus on syötetty. Energiamuotojen päästökertoimia ei voi muuttaa. Verkkoon syötetty, tontilla tuotettu, uusiutuva energia huomioidaan kiinteistön hiilikädenjäljessä. Syötä vuotuinen ylijäämäenergia erikseen yllä oleviin kenttiin.
B22: Energiankäyttö (B6) tarkennettu laskenta
B24: Selitä tähän kenttään miten ja mistä tarkemmat arvot on saatu. Esitä tarvittaessa erilliset laskelmat liitteenä. Tarkempia laskelmia käytettäessä älä syötä mitään lukuja ylempään taulukkoon.
B26: Korjaukset ja osien vaihdot (B3-4) | D26: =IF(D31="",SUM(D27:D28),D31) -> 0.0432 | E26: -
B27: Osien vaihdot | D27: =IFERROR(Materiaaliluettelo!Q50/Yhteenveto!$D$13/Yhteenveto!$D$18,"-") -> - | E27: -
B28: Korjausten energiankulutus | D28: =Datalehti!C37/Yhteenveto!D18 -> 0.0432 | E28: -
B29: Osien vaihtojen päästövaikutukset muodostuvat automaattisesti välilehdellä 'Materiaaliluettelo' annettujen arvojen perusteella. Korjausten energiankulutuksen päästöt perustuvat taulukkoarvoihin.
B31: Oosien vaihtojen (B4) tarkennettu laskenta
B33: Selitä tähän kenttään miten ja mistä tarkemmat arvot on saatu. Esitä tarvittaessa erilliset laskelmat liitteenä.

Sheet Elinkaaren loppu (C+D)
B2: =Ohje!B2 -> Rakennusten hiilijalanjäljen arviointityökalu
B3: =Ohje!B3 -> Luonnos hiilijalanjäljen arvioinnin testausta varten 9.12.2019
B5: Elinkaaren lopun päästötiedot
D7: Hiilijalanjälki | E7: Hiilikädenjälki
D8: kg CO2e/m2netto/a | E8: kg CO2e/m2netto/a
B9: Elinkaaren lopussa syntyvät päästöt yhteensä | D9: =D23+D17+D11+D29 -> 0.672 | E9: =E23+E17+E11+E29 -> 0
B11: Purkaminen (C1) | D11: =IF(D13="",Datalehti!C38/Yhteenveto!$D18,D13) -> 0.156 | E11: =IF(E13="",Datalehti!D38/Yhteenveto!$D18,E13) -> 0
B12: Päästötiedot pohjautuvat taulukkoarvoihin.
B13: Purkaminen (C1) tarkennettu laskenta
B15: Selitä tähän kenttään miten ja mistä tarkemmat arvot on saatu. Esitä tarvittaessa erilliset laskelmat liitteenä.
B17: Kuljetukset (C2) | D17: =IF(D19="",Datalehti!C39/Yhteenveto!$D18,D19) -> 0.204 | E17: =IF(E19="",Datalehti!D39/Yhteenveto!$D18,E19) -> 0
B18: Päästötiedot pohjautuvat taulukkoarvoihin.
B19: Kuljetukset (C2) tarkennettu laskenta
B21: Selitä tähän kenttään miten ja mistä tarkemmat arvot on saatu. Esitä tarvittaessa erilliset laskelmat liitteenä.
B23: Purkujätteen loppukäsittely ja sijoitus (C3-4) | D23: =IF(D25="",Datalehti!C40/Yhteenveto!$D18,D25) -> 0.312 | E23: =IF(E25="",Datalehti!D40/Yhteenveto!$D18,E25) -> 0
B24: Päästötiedot pohjautuvat taulukkoarvoihin.
B25: Purkujätteen loppukäsittely ja sijoitus (C3-4) tarkennettu laskenta
B27: Selitä tähän kenttään miten ja mistä tarkemmat arvot on saatu. Esitä tarvittaessa erilliset laskelmat liitteenä.
B29: Elinkaaren ulkopuolella syntyvät hyödyt (D) | D29: =D31 -> 0 | E29: =E31 -> 0
B30: Jos uudelleenkäytön tai kierrätyksen avulla vältetyt nettopäästöt on laskettu, syötä tarkemmat tiedot oheisen painikkeen avulla. Muussa tapauksessa elinkaaren ulkopuolisia vaikutuksia ei huomioida.
B31: Elinkaaren ulkopuolella syntyvät hyödyt (D) tarkennettu laskenta
B33: Selitä tähän kenttään miten ja mistä tarkemmat arvot on saatu. Esitä tarvittaessa erilliset laskelmat liitteenä.

Sheet Tietojen Laatu
B2: =Ohje!B2 -> Rakennusten hiilijalanjäljen arviointityökalu
B3: =Ohje!B3 -> Luonnos hiilijalanjäljen arvioinnin testausta varten 9.12.2019
B5: Tietojen Laatu
B7: Tietojen laatu
B8: Arvioinnissa käytettävien tietojen laatu tulee arvioida, jos arviointi tehdään käyttäen ns. tarkennettua menetelmää. Yksinkertaistettua menetelmää käytettäessä tätä välilehteä ei tarvitse täyttää. Alla ehdotettu lähtötietojen arviointitapa perustuu Euroopan komission Level(s)-menetelmään.
B9: Elinkaaren vaiheet | C9: Teknologinen edustavuus | D9: Maan-tieteellinen edustavuus | E9: Ajallinen edustavuus | F9: Epävarmuus | G9: Yhteensä | H9: Vähimmäisvaatimukset
B11: A1–3 Tuotteiden valmistus | G11: =(SUM(C11:F11)) -> 0 | H11: Tiedot vähintään tasoa 2
B12: A4 Kuljetus työmaalle | G12: =IFERROR(SUM(C12:F12),"") -> 0 | H12: Maantieteellinen edustavuus oltava tasoa 3
B13: A5 Työmaan toiminnot | G13: 0 | H13: Maantieteellinen edustavuus vähintään tasoa 2
B14: B3–4 Korjaukset ja vaihdot | G14: 0 | H14: Maantieteellinen edustavuus vähintään tasoa 2
B15: B6 Energian kulutus | G15: 0 | H15: Tiedot vähintään tasoa 2
B16: C1 Purkutyöt | G16: 0 | H16: Ei vähimmäisvaatimuksia
B17: C2 Kuljetus jatkokäsittelyyn | G17: 0 | H17: Ei vähimmäisvaatimuksia
B18: C3 Jätteenkäsittely | G18: 0 | H18: Ei vähimmäisvaatimuksia
B19: C4 Loppusijoitus | G19: 0 | H19: Ei vähimmäisvaatimuksia
B20: D Elinkaaren ulkopuoliset | G20: 0 | H20: Ei vähimmäisvaatimuksia
B21: Yhteensä | C21: =SUM(C11:C20) -> 0 | D21: =SUM(D11:D20) -> 0 | E21: 0 | F21: 0
B23: Tietojen laadun arvioinnissa käytettävä pisteytys
C24: 0 | D24: 1 | F24: 2 | H24: 3
B25: Teknologinen edustavuus | C25: Ei arvioitu | D25: Tieto ei vastaa tyydyttävästi tuotteen teknisiä ominaisuuksia | F25: Tieto vastaa osittain tuotteen teknisiä ominaisuuksia | H25: Käytetty tieto vastaa hyvin tuotteen teknisiä ominaisuuksia
B26: Maantieteellinen edustavuus | C26: Ei arvioitu | D26: Tieto viittaa täysin erilaiseen maantieteelliseen kontekstiin (esim. Italia Suomen sijaan) | F26: Tieto viittaa samankaltaiseen maantieteelliseen kontekstiin (esim. Norja Suomen sijaan) | H26: Käytetty tieto viittaa tiettyyn maantieteelliseen kontekstiin
B27: Ajallinen edustavuus | C27: Ei arvioitu | D27: Tiedon validoinnin ja sen hyödyntämisen välillä on yli 6 vuotta | F27: Tiedon validoinnin ja sen hyödyntämisen välillä on 2-4 vuotta | H27: Tiedon validoinnin ja sen hyödyntämisen välillä on alle 2 vuotta
B28: Epävarmuus | C28: Ei arvioitu | D28: Käytetään mallinnettua tai vastaavaa tietoa. Paikkansapitävyys ja täsmällisyys on arvioitu laadullisesti (esim. toimittajan ja prosessin operaattorin asiantuntija-arvio) | F28: Käytetään mallinnettua tai vastaavaa tietoa, joka on arvioitu tyydyttävän paikkansapitäväksi ja täsmälliseksi, ja sitä tukee määrällinen epävarmuusarvio | H28: Käytetään hankekohtaista ja validoitua tietoa, jota voidaan pitää tyydyttävän paikkansapitävänä ja täsmällisenä (esim. tehty vahvistettu EPD)
B30: Selvitys käytetyistä lähteistä
B31: Kirjaa alla olevaan tilaan mistä lähteistä arvioinnissa käytetyt tiedot ja oletukset ovat peräisin.

Sheet Materiaalien päästötiedot
B2: =Ohje!B2 -> Rakennusten hiilijalanjäljen arviointityökalu
B3: =Ohje!B3 -> Luonnos hiilijalanjäljen arvioinnin testausta varten 9.12.2019
B5: Materiaalien päästötiedot
B6: © VTT 2018. Testausvaiheen geneerinen päästötaulukko perustuu VTT:n eri lähteistä kokoamiin ja arvioimiin tuloksiin. Arvot on koottu siten, että ne kattavat elinkaaren vaiheet A1 - A5 (vaiheessa A5 vain arvioidun hukan osalta). Taulukkoa on viime vaiheessa päivitetty muutamilla hyvin karkeasti arvioiduilla tarkistamattomilla arvoilla. VTT:llä on yksinomainen omistus- ja tekijänoikeus kokonaistaulukkoon. Taulukkoa saa käyttää testaamiseen eikä sitä saa muuttaa, käyttää eikä luovuttaa käytettäväksi muuhun tarkoitukseen ilman VTT:n nimenomaista suostumusta. Taulukko on tarkoitettu vain menetelmän testausvaiheeseen eikä VTT ota vastuuta siihen sisältyvien tietojen oikeellisuudesta. | N6: Vaihdot
B7: Materiaalit | C7: CO2e | D7: Hiilisisältö | E7: CO2e | F7: CO2e | G7: CO2e | H7: Hiilijalanjälki | I7: Hiilikädenjälki | J7: Yksikkö | K7: yksikkö materiaalin määrälle | L7: Vaihtoväli (a) | M7: Asennuskerran elinkaaren aikana (mukaanlukien ensimmäinen) | N7: Hiilijalanjälki | O7: Hiilikädenjälki
C8: kg/kg | D8: kg CO2/kg | E8: kg/m2 | F8: kg/kpl | G8: kg/kerros-m2
B10: PAIKALLAVALUBETONI JA RAUDOITTEET
B11: Betoniteräs | C11: 0.474 | H11: =IF(E11="",IF(C11="","",C11),E11) -> 0.474 | I11: =IF(H11="","",D11*-1) -> 0 | J11: =IF(H11="","",(IF(E11="","kgCO2e/kg","kgCO2e/m2"))) -> kgCO2e/kg | K11: =IF(H11="","",(IF(E11="","kg","m2"))) -> kg | L11: Ei vaihdeta | M11: =IFERROR(QUOTIENT(Yhteenveto!$D$18-1,L11),0) -> 0 | N11: =M11*H11 -> 0 | O11: =M11*I11 -> 0
B12: Valmisbetoni C35 (portland) | C12: 0.1458347961 | H12: =IF(E12="",IF(C12="","",C12),E12) -> 0.1458347961 | I12: =IF(H12="","",D12*-1) -> 0 | J12: =IF(H12="","",(IF(E12="","kgCO2e/kg","kgCO2e/m2"))) -> kgCO2e/kg | K12: =IF(H12="","",(IF(E12="","kg","m2"))) -> kg | L12: Ei vaihdeta | M12: =IFERROR(QUOTIENT(Yhteenveto!$D$18-1,L12),0) -> 0 | N12: =M12*H12 -> 0 | O12: =M12*I12 -> 0
B13: Valmisbetoni C35 (seossementti) | C13: 0.127 | H13: =IF(E13="",IF(C13="","",C13),E13) -> 0.127 | I13: =IF(H13="","",D13*-1) -> 0 | J13: =IF(H13="","",(IF(E13="","kgCO2e/kg","kgCO2e/m2"))) -> kgCO2e/kg | K13: =IF(H13="","",(IF(E13="","kg","m2"))) -> kg | L13: Ei vaihdeta | M13: =IFERROR(QUOTIENT(Yhteenveto!$D$18-1,L13),0) -> 0 | N13: 0 | O13: 0
B14: Valmisbetoni C50 (portland) | C14: 0.175 | H14: =IF(E14="",IF(C14="","",C14),E14) -> 0.175 | I14: =IF(H14="","",D14*-1) -> 0 | J14: =IF(H14="","",(IF(E14="","kgCO2e/kg","kgCO2e/m2"))) -> kgCO2e/kg | K14: =IF(H14="","",(IF(E14="","kg","m2"))) -> kg | L14: Ei vaihdeta | M14: =IFERROR(QUOTIENT(Yhteenveto!$D$18-1,L14),0) -> 0 | N14: 0 | O14: 0
B15: Valmisbetoni C80 (Portland) | C15: 0.2095319961 | H15: =IF(E15="",IF(C15="","",C15),E15) -> 0.2095319961 | I15: =IF(H15="","",D15*-1) -> 0 | J15: =IF(H15="","",(IF(E15="","kgCO2e/kg","kgCO2e/m2"))) -> kgCO2e/kg | K15: =IF(H15="","",(IF(E15="","kg","m2"))) -> kg | L15: Ei vaihdeta | M15: =IFERROR(QUOTIENT(Yhteenveto!$D$18-1,L15),0) -> 0 | N15: 0 | O15: 0
H16: =IF(E16="",IF(C16="","",C16),E16) ->  | I16: =IF(H16="","",D16*-1) ->  | J16: =IF(H16="","",(IF(E16="","kgCO2e/kg","kgCO2e/m2"))) ->  | K16: =IF(H16="","",(IF(E16="","kg","m2"))) ->  | M16: =IFERROR(QUOTIENT(Yhteenveto!$D$18-1,L16),0) -> 0
B17: PIHA JA POHJARAKENTEET | H17: =IF(E17="",IF(C17="","",C17),E17) ->  | I17: =IF(H17="","",D17*-1) ->  | J17: =IF(H17="","",(IF(E17="","CO2e/kg","CO2e/m2"))) ->  | K17: =IF(H17="","",(IF(E17="","kg","m2"))) ->  | M17: =IFERROR(QUOTIENT(Yhteenveto!$D$18-1,L17),0) -> 0
B18: Betoniantura ja -perustus (sis.raudoitteet) | C18: 0.16 | H18: =IF(E18="",IF(C18="","",C18),E18) -> 0.16 | I18: =IF(H18="","",D18*-1) -> 0 | J18: =IF(H18="","",(IF(E18="","kgCO2e/kg","kgCO2e/m2"))) -> kgCO2e/kg | K18: =IF(H18="","",(IF(E18="","kg","m2"))) -> kg | L18: Ei vaihdeta | M18: =IFERROR(QUOTIENT(Yhteenveto!$D$18-1,L18),0) -> 0 | N18: 0 | O18: 0
B19: EPDM-matto (synteettinen kumi) | C19: 2.694 | H19: 2.694 | I19: 0 | J19: kgCO2e/kg | K19: kg | L19: 30 | M19: =IFERROR(QUOTIENT(Yhteenveto!$D$18-1,L19),0) -> 1 | N19: 2.694 | O19: 0
B20: Kevytsora | C20: 0.4593116 | H20: 0.4593116 | I20: 0 | J20: kgCO2e/kg | K20: =IF(H20="","",(IF(E20="","kg","m2"))) -> kg | L20: Ei vaihdeta | M20: =IFERROR(QUOTIENT(Yhteenveto!$D$18-1,L20),0) -> 0 | N20: 0 | O20: 0
B21: Kevytsoraharkko+laasti | C21: 0.298156073 | H21: 0.298156073 | I21: 0 | J21: kgCO2e/kg | K21: kg | L21: Ei vaihdeta | M21: =IFERROR(QUOTIENT(Yhteenveto!$D$18-1,L21),0) -> 0 | N21: 0 | O21: 0
B22: Kuitukangas | C22: 2.27194891 | H22: 2.27194891 | I22: 0 | J22: kgCO2e/kg | K22: kg | L22: Ei vaihdeta | M22: =IFERROR(QUOTIENT(Yhteenveto!$D$18-1,L22),0) -> 0 | N22: 0 | O22: 0
B23: Murske, 2/32 | C23: 0.00587225298 | H23: 0.00587225298 | I23: 0 | J23: kgCO2e/kg | K23: kg | L23: Ei vaihdeta | M23: =IFERROR(QUOTIENT(Yhteenveto!$D$18-1,L23),0) -> 0 | N23: 0 | O23: 0
B24: Murske, hieno ja karkea | C24: 0.011520803 | H24: 0.011520803 | I24: 0 | J24: kgCO2e/kg | K24: kg | L24: Ei vaihdeta | M24: =IFERROR(QUOTIENT(Yhteenveto!$D$18-1,L24),0) -> 0 | N24: 0 | O24: 0
B25: Noppakiveys | C25: 1.269230769 | H25: 1.269230769 | I25: 0 | J25: kgCO2e/kg | K25: kg | L25: Ei vaihdeta | M25: =IFERROR(QUOTIENT(Yhteenveto!$D$18-1,L25),0) -> 0 | N25: 0 | O25: 0
B26: Paalut, betoni, 250x250 | C26: 0.1577072725 | H26: 0.1577072725 | I26: 0 | J26: kgCO2e/kg | K26: kg | L26: Ei vaihdeta | M26: =IFERROR(QUOTIENT(Yhteenveto!$D$18-1,L26),0) -> 0 | N26: 0 | O26: 0
B27: Paalut, betoni, 300x300 | C27: 0.1452706612 | H27: 0.1452706612 | I27: 0 | J27: kgCO2e/kg | K27: kg | L27: Ei vaihdeta | M27: =IFERROR(QUOTIENT(Yhteenveto!$D$18-1,L27),0) -> 0 | N27: 0 | O27: 0
B28: Paalut, teräsputki | C28: 2.84 | H28: 2.84 | I28: 0 | J28: kgCO2e/kg | K28: kg | L28: Ei vaihdeta | M28: =IFERROR(QUOTIENT(Yhteenveto!$D$18-1,L28),0) -> 0 | N28: 0 | O28: 0
B29: Pihalaatoitus, betoni | C29: 0.1371804 | H29: 0.1371804 | I29: 0 | J29: kgCO2e/kg | K29: kg | L29: 50 | M29: =IFERROR(QUOTIENT(Yhteenveto!$D$18-1,L29),0) -> 0 | N29: 0 | O29: 0
B30: Pilari, teräs | C30: 2.84 | H30: 2.84 | I30: 0 | J30: kgCO2e/kg | K30: kg | L30: Ei vaihdeta | M30: =IFERROR(QUOTIENT(Yhteenveto!$D$18-1,L30),0) -> 0 | N30: 0 | O30: 0
B31: Routaeriste, EPS | C31: 3.338 | H31: 3.338 | I31: 0 | J31: kgCO2e/kg | K31: kg | L31: 50 | M31: =IFERROR(QUOTIENT(Yhteenveto!$D$18-1,L31),0) -> 0 | N31: 0 | O31: 0
B32: Sora ja hiekka | C32: 0.004836304814 | H32: 0.004836304814 | I32: 0 | J32: kgCO2e/kg | K32: kg | L32: Ei vaihdeta | M32: =IFERROR(QUOTIENT(Yhteenveto!$D$18-1,L32),0) -> 0 | N32: 0 | O32: 0
B33: Stabilointi, 30/70 | C33: 0.779 | H33: 0.779 | I33: 0 | J33: kgCO2e/kg | K33: kg | L33: Ei vaihdeta | M33: =IFERROR(QUOTIENT(Yhteenveto!$D$18-1,L33),0) -> 0 | N33: 0 | O33: 0
H34: =IF(E34="",IF(C34="","",C34),E34) ->  | I34: =IF(H34="","",D34*-1) ->  | J34: =IF(H34="","",(IF(E34="","CO2e/kg","CO2e/m2"))) ->  | K34: =IF(H34="","",(IF(E34="","kg","m2"))) ->  | M34: =IFERROR(QUOTIENT(Yhteenveto!$D$18-1,L34),0) -> 0
B35: PILARIT JA PALKIT | H35: =IF(E35="",IF(C35="","",C35),E35) ->  | I35: =IF(H35="","",D35*-1) ->  | J35: =IF(H35="","",(IF(E35="","CO2e/kg","CO2e/m2"))) ->  | K35: =IF(H35="","",(IF(E35="","kg","m2"))) ->  | M35: =IFERROR(QUOTIENT(Yhteenveto!$D$18-1,L35),0) -> 0
B36: Palkki, betoni+teräkset | C36: 0.195906 | H36: 0.195906 | I36: 0 | J36: =IF(H36="","",(IF(E36="","kgCO2e/kg","kgCO2e/m2"))) -> kgCO2e/kg | K36: kg | L36: Ei vaihdeta | M36: =IFERROR(QUOTIENT(Yhteenveto!$D$18-1,L36),0) -> 0 | N36: 0 | O36: 0
B37: Palkki, jännepalkki | C37: 0.265464 | H37: 0.265464 | I37: 0 | J37: kgCO2e/kg | K37: kg | L37: Ei vaihdeta | M37: =IFERROR(QUOTIENT(Yhteenveto!$D$18-1,L37),0) -> 0 | N37: 0 | O37: 0
B38: Palkki tai pilari, kertopuu | C38: 0.2834823529 | H38: 0.2834823529 | I38: 0 | J38: kgCO2e/kg | K38: kg | L38: Ei vaihdeta | M38: =IFERROR(QUOTIENT(Yhteenveto!$D$18-1,L38),0) -> 0 | N38: 0 | O38: 0
B39: Palkki tai pilari, liimapuu | C39: 0.3563595 | D39: 1.62 | H39: 0.3563595 | I39: -1.62 | J39: kgCO2e/kg | K39: kg | L39: Ei vaihdeta | M39: =IFERROR(QUOTIENT(Yhteenveto!$D$18-1,L39),0) -> 0 | N39: 0 | O39: 0
B40: Palkki tai pilari, puu | C40: 0.092 | D40: 1.55 | H40: 0.092 | I40: -1.55 | J40: kgCO2e/kg | K40: kg | L40: Ei vaihdeta | M40: =IFERROR(QUOTIENT(Yhteenveto!$D$18-1,L40),0) -> 0 | N40: 0 | O40: 0
B41: Palkki, teräsristikko, pintakäsitelty | C41: 2.72 | H41: 2.72 | I41: 0 | J41: kgCO2e/kg | K41: kg | L41: Ei vaihdeta | M41: =IFERROR(QUOTIENT(Yhteenveto!$D$18-1,L41),0) -> 0 | N41: 0 | O41: 0
B42: Palkki, teräsputki, pintakäsitelty | C42: 2.84 | H42: 2.84 | I42: 0 | J42: kgCO2e/kg | K42: kg | L42: Ei vaihdeta | M42: =IFERROR(QUOTIENT(Yhteenveto!$D$18-1,L42),0) -> 0 | N42: 0 | O42: 0
B43: Palkki, teräksinen deltapalkki | C43: 2.94 | H43: 2.94 | I43: 0 | J43: kgCO2e/kg | K43: kg | L43: Ei vaihdeta | M43: =IFERROR(QUOTIENT(Yhteenveto!$D$18-1,L43),0) -> 0 | N43: 0 | O43: 0
B44: Pilari, betoni+teräkset | C44: 0.214916 | H44: 0.214916 | I44: 0 | J44: kgCO2e/kg | K44: kg | L44: Ei vaihdeta | M44: =IFERROR(QUOTIENT(Yhteenveto!$D$18-1,L44),0) -> 0 | N44: 0 | O44: 0
B45: Puuranka, sahatavara | C45: 0.092 | D45: 1.55 | H45: 0.092 | I45: -1.55 | J45: kgCO2e/kg | K45: kg | L45: Ei vaihdeta | M45: =IFERROR(QUOTIENT(Yhteenveto!$D$18-1,L45),0) -> 0 | N45: 0 | O45: 0
B46: Pilari, teräsputki (kylmämuovaus), pintakäsitelty | C46: 2.84 | H46: 2.84 | I46: 0 | J46: kgCO2e/kg | K46: kg | L46: Ei vaihdeta | M46: =IFERROR(QUOTIENT(Yhteenveto!$D$18-1,L46),0) -> 0 | N46: 0 | O46: 0
B47: Pilari, teräspilari (kuumavalsatusta levystä), pintakäsitelty | C47: 2.72 | H47: 2.72 | I47: 0 | J47: kgCO2e/kg | K47: kg | L47: Ei vaihdeta | M47: =IFERROR(QUOTIENT(Yhteenveto!$D$18-1,L47),0) -> 0 | N47: 0 | O47: 0
B48: Teräsranka, kuumasinkitty | C48: 2.788 | H48: 2.788 | I48: 0 | J48: kgCO2e/kg | K48: kg | L48: Ei vaihdeta | M48: =IFERROR(QUOTIENT(Yhteenveto!$D$18-1,L48),0) -> 0 | N48: 0 | O48: 0
M49: =IFERROR(QUOTIENT(Yhteenveto!$D$18-1,L49),0) -> 0 | N49: 0 | O49: 0
B50: LAATAT | H50: =IF(E50="",IF(C50="","",C50),E50) ->  | I50: =IF(H50="","",D50*-1) ->  | J50: =IF(H50="","",(IF(E50="","CO2e/kg","CO2e/m2"))) ->  | K50: =IF(H50="","",(IF(E50="","kg","m2"))) ->  | M50: =IFERROR(QUOTIENT(Yhteenveto!$D$18-1,L50),0) -> 0
B51: (massiivilaatta), betoni + teräkset | C51: 0.16 | H51: 0.16 | I51: 0 | J51: =IF(H51="","",(IF(E51="","kgCO2e/kg","kgCO2e/m2"))) -> kgCO2e/kg | K51: kg | L51: Ei vaihdeta | M51: =IFERROR(QUOTIENT(Yhteenveto!$D$18-1,L51),0) -> 0 | N51: 0 | O51: 0
B52: ontelolaatta 150 | C52: 0.17785 | H52: 0.17785 | I52: 0 | J52: kgCO2e/kg | K52: kg | L52: Ei vaihdeta | M52: =IFERROR(QUOTIENT(Yhteenveto!$D$18-1,L52),0) -> 0 | N52: 0 | O52: 0
B53: ontelolaatta 200 | C53: 0.17785 | H53: 0.17785 | I53: 0 | J53: kgCO2e/kg | K53: kg | L53: Ei vaihdeta | M53: =IFERROR(QUOTIENT(Yhteenveto!$D$18-1,L53),0) -> 0 | N53: 0 | O53: 0
B54: ontelolaatta 265 | C54: 0.17785 | H54: 0.17785 | I54: 0 | J54: kgCO2e/kg | K54: kg | L54: Ei vaihdeta | M54: =IFERROR(QUOTIENT(Yhteenveto!$D$18-1,L54),0) -> 0 | N54: 0 | O54: 0
B55: ontelolaatta 320 | C55: 0.17785 | H55: 0.17785 | I55: 0 | J55: kgCO2e/kg | K55: kg | L55: Ei vaihdeta | M55: =IFERROR(QUOTIENT(Yhteenveto!$D$18-1,L55),0) -> 0 | N55: 0 | O55: 0
B56: ontelolaatta 400 | C56: 0.17785 | H56: 0.17785 | I56: 0 | J56: kgCO2e/kg | K56: kg | L56: Ei vaihdeta | M56: =IFERROR(QUOTIENT(Yhteenveto!$D$18-1,L56),0) -> 0 | N56: 0 | O56: 0
B57: ontelolaatta 500 | C57: 0.17785 | H57: 0.17785 | I57: 0 | J57: kgCO2e/kg | K57: kg | L57: Ei vaihdeta | M57: =IFERROR(QUOTIENT(Yhteenveto!$D$18-1,L57),0) -> 0 | N57: 0 | O57: 0
B58: TT-laatta | C58: 0.222282 | H58: 0.222282 | I58: 0 | J58: kgCO2e/kg | K58: kg | L58: Ei vaihdeta | M58: =IFERROR(QUOTIENT(Yhteenveto!$D$18-1,L58),0) -> 0 | N58: 0 | O58: 0
B59: Liittolaatta | C59: 0.372079 | H59: 0.372079 | I59: 0 | J59: kgCO2e/kg | K59: kg | L59: Ei vaihdeta | M59: =IFERROR(QUOTIENT(Yhteenveto!$D$18-1,L59),0) -> 0 | N59: 0 | O59: 0
M60: =IFERROR(QUOTIENT(Yhteenveto!$D$18-1,L60),0) -> 0 | N60: 0 | O60: 0
B61: SEINÄT JA SOKKELIT | M61: =IFERROR(QUOTIENT(Yhteenveto!$D$18-1,L61),0) -> 0 | N61: 0 | O61: 0
B62: betonielementti, sisäkuori, 100 mm+musta teräs | C62: 0.19142008 | H62: =IF(E62="",IF(C62="","",C62),E62) -> 0.19142008 | I62: =IF(H62="","",D62*-1) -> 0 | J62: =IF(H62="","",(IF(E62="","kgCO2e/kg","kgCO2e/m2"))) -> kgCO2e/kg | K62: =IF(H62="","",(IF(E62="","kg","m2"))) -> kg | L62: Ei vaihdeta | M62: =IFERROR(QUOTIENT(Yhteenveto!$D$18-1,L62),0) -> 0 | N62: 0 | O62: 0
B63: betonielementti, sisäkuori, 150 mm+musta teräs | C63: 0.1931541 | H63: 0.1931541 | I63: 0 | J63: kgCO2e/kg | K63: kg | L63: Ei vaihdeta | M63: =IFERROR(QUOTIENT(Yhteenveto!$D$18-1,L63),0) -> 0 | N63: 0 | O63: 0
B64: betonielementti, sisäkuori, 80 mm+musta teräs | C64: 0.18968606 | H64: 0.18968606 | I64: 0 | J64: kgCO2e/kg | K64: kg | L64: Ei vaihdeta | M64: =IFERROR(QUOTIENT(Yhteenveto!$D$18-1,L64),0) -> 0 | N64: 0 | O64: 0
B65: betonielementti, ulkokuori+ruostumaton teräs | C65: 0.21104802 | H65: 0.21104802 | I65: 0 | J65: kgCO2e/kg | K65: kg | L65: Ei vaihdeta | M65: =IFERROR(QUOTIENT(Yhteenveto!$D$18-1,L65),0) -> 0 | N65: 0 | O65: 0
B66: Betoniväliseinä | C66: 0.20158 | H66: 0.20158 | I66: 0 | J66: kgCO2e/kg | K66: kg | L66: Ei vaihdeta | M66: =IFERROR(QUOTIENT(Yhteenveto!$D$18-1,L66),0) -> 0 | N66: 0 | O66: 0
B67: Betonisokkeli | C67: 0.16 | H67: 0.16 | I67: 0 | J67: kgCO2e/kg | K67: kg | L67: Ei vaihdeta | M67: =IFERROR(QUOTIENT(Yhteenveto!$D$18-1,L67),0) -> 0 | N67: 0 | O67: 0
B68: CLT-seinä | C68: 0.21 | D68: 1.55 | H68: 0.21 | I68: -1.55 | J68: kgCO2e/kg | K68: kg | L68: Ei vaihdeta | M68: =IFERROR(QUOTIENT(Yhteenveto!$D$18-1,L68),0) -> 0 | N68: 0 | O68: 0
B69: Hirsiseinä, 270 mm | C69: 0.1115925926 | D69: 1.55 | H69: 0.1115925926 | I69: -1.55 | J69: kgCO2e/kg | K69: kg | L69: Ei vaihdeta | M69: =IFERROR(QUOTIENT(Yhteenveto!$D$18-1,L69),0) -> 0 | N69: 0 | O69: 0
B70: Liimahirsiseinä | C70: 0.1421111111 | D70: =0.95*D69 -> 1.4725 | H70: 0.1421111111 | I70: -1.4725 | J70: kgCO2e/kg | K70: kg | L70: Ei vaihdeta | M70: =IFERROR(QUOTIENT(Yhteenveto!$D$18-1,L70),0) -> 0 | N70: 0 | O70: 0
B71: EPDM -nauha (synteettinen kumi) | C71: 2.694 | H71: 2.694 | I71: 0 | J71: kgCO2e/kg | K71: kg | L71: Ei vaihdeta | M71: =IFERROR(QUOTIENT(Yhteenveto!$D$18-1,L71),0) -> 0 | N71: 0 | O71: 0
B72: Muurattu rak. kahi 85+laasti | C72: 0.1505370814 | H72: 0.1505370814 | I72: 0 | J72: kgCO2e/kg | K72: kg | L72: Ei vaihdeta | M72: =IFERROR(QUOTIENT(Yhteenveto!$D$18-1,L72),0) -> 0 | N72: 0 | O72: 0
B73: Muurattu rak. kahiharkko, 130+laasti | C73: 0.1542951521 | H73: 0.1542951521 | I73: 0 | J73: kgCO2e/kg | K73: kg | L73: Ei vaihdeta | M73: =IFERROR(QUOTIENT(Yhteenveto!$D$18-1,L73),0) -> 0 | N73: 0 | O73: 0
B74: Muurattu rak. kevytsoraharkko+laasti | C74: 0.298156073 | H74: 0.298156073 | I74: 0 | J74: kgCO2e/kg | K74: kg | L74: Ei vaihdeta | M74: =IFERROR(QUOTIENT(Yhteenveto!$D$18-1,L74),0) -> 0 | N74: 0 | O74: 0
B75: Muurattu rak. lämpöharkko+EPS+laasti | C75: 0.3784387479 | H75: 0.3784387479 | I75: 0 | J75: kgCO2e/kg | K75: kg | L75: Ei vaihdeta | M75: =IFERROR(QUOTIENT(Yhteenveto!$D$18-1,L75),0) -> 0 | N75: 0 | O75: 0
B76: Muurattu rak. poltettu tiili 130+laasti | C76: 0.2408904684 | H76: 0.2408904684 | I76: 0 | J76: kgCO2e/kg | K76: kg | L76: Ei vaihdeta | M76: =IFERROR(QUOTIENT(Yhteenveto!$D$18-1,L76),0) -> 0 | N76: =M76*H76 -> 0 | O76: =M76*I76 -> 0
B77: Muurattu rak. poltettu tiili 85+laasti | C77: 0.203812543 | H77: 0.203812543 | I77: 0 | J77: kgCO2e/kg | K77: kg | L77: Ei vaihdeta | M77: =IFERROR(QUOTIENT(Yhteenveto!$D$18-1,L77),0) -> 0 | N77: 0 | O77: 0
B78: Muurattu rak. Siporex+ohutsaumauslaasti | C78: 0.2877452021 | H78: 0.2877452021 | I78: 0 | J78: kgCO2e/kg | K78: kg | L78: Ei vaihdeta | M78: =IFERROR(QUOTIENT(Yhteenveto!$D$18-1,L78),0) -> 0 | N78: 0 | O78: 0
B79: Puuranka, sahatavara | C79: 0.092 | D79: 1.55 | H79: 0.092 | I79: -1.55 | J79: kgCO2e/kg | K79: kg | L79: Ei vaihdeta | M79: =IFERROR(QUOTIENT(Yhteenveto!$D$18-1,L79),0) -> 0 | N79: 0 | O79: 0
J80: =IF(H80="","",(IF(E80="","CO2e/kg","CO2e/m2"))) ->  | M80: =IFERROR(QUOTIENT(Yhteenveto!$D$18-1,L80),0) -> 0
B81: PORTAAT | M81: =IFERROR(QUOTIENT(Yhteenveto!$D$18-1,L81),0) -> 0 | N81: 0 | O81: 0
B82: betoni | C82: 0.2472324885 | H82: =IF(E82="",IF(C82="","",C82),E82) -> 0.2472324885 | I82: =IF(H82="","",D82*-1) -> 0 | J82: =IF(H82="","",(IF(E82="","kgCO2e/kg","kgCO2e/m2"))) -> kgCO2e/kg | K82: =IF(H82="","",(IF(E82="","kg","m2"))) -> kg | L82: Ei vaihdeta | M82: =IFERROR(QUOTIENT(Yhteenveto!$D$18-1,L82),0) -> 0 | N82: 0 | O82: 0
B83: puu | C83: 0.087540789 | D83: 1.55 | H83: =IF(E83="",IF(C83="","",C83),E83) -> 0.087540789 | I83: =IF(H83="","",D83*-1) -> -1.55 | J83: =IF(H83="","",(IF(E83="","kgCO2e/kg","kgCO2e/m2"))) -> kgCO2e/kg | K83: =IF(H83="","",(IF(E83="","kg","m2"))) -> kg | L83: 50 | M83: =IFERROR(QUOTIENT(Yhteenveto!$D$18-1,L83),0) -> 0 | N83: 0 | O83: 0
B84: teräs | C84: 2.84 | H84: =IF(E84="",IF(C84="","",C84),E84) -> 2.84 | I84: =IF(H84="","",D84*-1) -> 0 | J84: =IF(H84="","",(IF(E84="","kgCO2e/kg","kgCO2e/m2"))) -> kgCO2e/kg | K84: =IF(H84="","",(IF(E84="","kg","m2"))) -> kg | L84: 50 | M84: =IFERROR(QUOTIENT(Yhteenveto!$D$18-1,L84),0) -> 0 | N84: 0 | O84: 0
M85: =IFERROR(QUOTIENT(Yhteenveto!$D$18-1,L85),0) -> 0 | N85: 0 | O85: 0
B86: LÄMMÖNERISTEET | M86: =IFERROR(QUOTIENT(Yhteenveto!$D$18-1,L86),0) -> 0
B87: EPS | C87: 3.407216262 | H87: 3.407216262 | I87: 0 | J87: =IF(H87="","",(IF(E87="","kgCO2e/kg","kgCO2e/m2"))) -> kgCO2e/kg | K87: kg | L87: Ei vaihdeta | M87: =IFERROR(QUOTIENT(Yhteenveto!$D$18-1,L87),0) -> 0 | N87: 0 | O87: 0
B88: Eriste kierrätyspaperi | C88: 0.2224791 | H88: 0.126 | I88: 0 | J88: kgCO2e/kg | K88: kg | L88: Ei vaihdeta | M88: =IFERROR(QUOTIENT(Yhteenveto!$D$18-1,L88),0) -> 0 | N88: 0 | O88: 0
B89: Eriste, lasivilla | C89: 1.53 | H89: =IF(E89="",IF(C89="","",C89),E89) -> 1.53 | I89: =IF(H89="","",D89*-1) -> 0 | J89: =IF(H89="","",(IF(E89="","kgCO2e/kg","kgCO2e/m2"))) -> kgCO2e/kg | K89: =IF(H89="","",(IF(E89="","kg","m2"))) -> kg | L89: Ei vaihdeta | M89: =IFERROR(QUOTIENT(Yhteenveto!$D$18-1,#REF!),0) -> 0 | N89: =M89*#REF! ->  | O89: =M89*#REF! -> 
B90: Eriste, polyuretaani | C90: 4.353755862 | H90: =IF(E90="",IF(C90="","",C90),E90) -> 4.353755862 | I90: =IF(H90="","",D90*-1) -> 0 | J90: =IF(H90="","",(IF(E90="","kgCO2e/kg","kgCO2e/m2"))) -> kgCO2e/kg | K90: =IF(H90="","",(IF(E90="","kg","m2"))) -> kg | L90: Ei vaihdeta | M90: =IFERROR(QUOTIENT(Yhteenveto!$D$18-1,#REF!),0) -> 0 | N90: =M90*#REF! ->  | O90: =M90*#REF! -> 
B91: Eriste, vuorivilla | C91: 1.02598128 | H91: =IF(E91="",IF(C91="","",C91),E91) -> 1.02598128 | I91: =IF(H91="","",D91*-1) -> 0 | J91: =IF(H91="","",(IF(E91="","kgCO2e/kg","kgCO2e/m2"))) -> kgCO2e/kg | K91: =IF(H91="","",(IF(E91="","kg","m2"))) -> kg | L91: Ei vaihdeta | M91: =IFERROR(QUOTIENT(Yhteenveto!$D$18-1,L89),0) -> 0 | N91: =M91*H89 -> 0 | O91: =M91*I89 -> 0
B92: Eriste, XPS | C92: 3.407216262 | H92: 2.64 | I92: =IF(H92="","",D92*-1) -> 0 | J92: =IF(H92="","",(IF(E92="","kgCO2e/kg","kgCO2e/m2"))) -> kgCO2e/kg | K92: =IF(H92="","",(IF(E92="","kg","m2"))) -> kg | L92: Ei vaihdeta | M92: =IFERROR(QUOTIENT(Yhteenveto!$D$18-1,#REF!),0) -> 0 | N92: =M92*#REF! ->  | O92: =M92*#REF! -> 
B93: tuulensuoja, lasivilla, 75 kg/m3 | C93: 1.153 | H93: =IF(E93="",IF(C93="","",C93),E93) -> 1.153 | I93: =IF(H93="","",D93*-1) -> 0 | J93: =IF(H93="","",(IF(E93="","kgCO2e/kg","kgCO2e/m2"))) -> kgCO2e/kg | K93: =IF(H93="","",(IF(E93="","kg","m2"))) -> kg | L93: Ei vaihdeta | M93: =IFERROR(QUOTIENT(Yhteenveto!$D$18-1,L90),0) -> 0 | N93: =M93*H90 -> 0 | O93: =M93*I90 -> 0
M94: =IFERROR(QUOTIENT(Yhteenveto!$D$18-1,L94),0) -> 0 | N94: 0 | O94: 0
M95: =IFERROR(QUOTIENT(Yhteenveto!$D$18-1,L91),0) -> 0 | N95: =M95*H91 -> 0 | O95: =M95*I91 -> 0
M96: =IFERROR(QUOTIENT(Yhteenveto!$D$18-1,L96),0) -> 0 | N96: 0 | O96: 0
M97: =IFERROR(QUOTIENT(Yhteenveto!$D$18-1,L97),0) -> 0 | N97: 0 | O97: 0
M98: =IFERROR(QUOTIENT(Yhteenveto!$D$18-1,L98),0) -> 0 | N98: 0 | O98: 0
M99: =IFERROR(QUOTIENT(Yhteenveto!$D$18-1,L92),0) -> 0 | N99: =M99*H92 -> 0 | O99: =M99*I92 -> 0
M100: =IFERROR(QUOTIENT(Yhteenveto!$D$18-1,L93),0) -> 0 | N100: =M100*H93 -> 0 | O100: =M100*I93 -> 0
M101: =IFERROR(QUOTIENT(Yhteenveto!$D$18-1,L101),0) -> 0
B102: KOSTEUSERISTE | M102: =IFERROR(QUOTIENT(Yhteenveto!$D$18-1,L102),0) -> 0
B103: Kosteussulku | C103: 3 | H103: 3 | I103: 0 | J103: =IF(H103="","",(IF(E103="","kgCO2e/kg","kgCO2e/m2"))) -> kgCO2e/kg | K103: kg | L103: Ei vaihdeta | M103: =IFERROR(QUOTIENT(Yhteenveto!$D$18-1,L103),0) -> 0 | N103: 0 | O103: 0
M104: =IFERROR(QUOTIENT(Yhteenveto!$D$18-1,L104),0) -> 0 | N104: 0 | O104: 0
B105: ULKOVERHOILU | H105: =IF(E105="",IF(C105="","",C105),E105) ->  | I105: =IF(H105="","",D105*-1) ->  | J105: =IF(H105="","",(IF(E105="","CO2e/kg","CO2e/m2"))) ->  | K105: =IF(H105="","",(IF(E105="","kg","m2"))) ->  | M105: =IFERROR(QUOTIENT(Yhteenveto!$D$18-1,L105),0) -> 0
B106: alumiinikasetti | C106: 3.2 | H106: 3.2 | I106: 0 | J106: =IF(H106="","",(IF(E106="","kgCO2e/kg","kgCO2e/m2"))) -> kgCO2e/kg | K106: kg | L106: 50 | M106: =IFERROR(QUOTIENT(Yhteenveto!$D$18-1,L106),0) -> 0 | N106: 0 | O106: 0
B107: keraaminen laatoitus | C107: 0.70354602 | H107: 0.70354602 | I107: 0 | J107: kgCO2e/kg | K107: kg | L107: 50 | M107: =IFERROR(QUOTIENT(Yhteenveto!$D$18-1,L107),0) -> 0 | N107: 0 | O107: 0
B108: kuparikasetti | C108: 2.104 | H108: 2.104 | I108: 0 | J108: kgCO2e/kg | K108: kg | L108: 50 | M108: =IFERROR(QUOTIENT(Yhteenveto!$D$18-1,L108),0) -> 0 | N108: 0 | O108: 0
B109: luonnonkivi, 20 mm | C109: 0.4076923077 | H109: 0.4076923077 | I109: 0 | J109: kgCO2e/kg | K109: kg | L109: 50 | M109: =IFERROR(QUOTIENT(Yhteenveto!$D$18-1,L109),0) -> 0 | N109: 0 | O109: 0
B110: puu | C110: 0.091709398 | D110: 1.55 | H110: 0.091709398 | I110: -1.55 | J110: kgCO2e/kg | K110: kg | L110: 50 | M110: =IFERROR(QUOTIENT(Yhteenveto!$D$18-1,L110),0) -> 0 | N110: 0 | O110: 0
B111: puu, lämpökäs. | C111: 0.1221030158 | D111: 1.55 | H111: 0.1221030158 | I111: -1.55 | J111: kgCO2e/kg | K111: kg | L111: 50 | M111: =IFERROR(QUOTIENT(Yhteenveto!$D$18-1,L111),0) -> 0 | N111: 0 | O111: 0
B112: teräskasetti, ruostumaton | C112: 2.846025 | H112: 2.846025 | I112: 0 | J112: kgCO2e/kg | K112: kg | L112: 50 | M112: =IFERROR(QUOTIENT(Yhteenveto!$D$18-1,L112),0) -> 0 | N112: 0 | O112: 0
B113: teräskasetti+maali | C113: 2.95 | H113: 2.95 | I113: 0 | J113: kgCO2e/kg | K113: kg | L113: 50 | M113: =IFERROR(QUOTIENT(Yhteenveto!$D$18-1,L113),0) -> 0 | N113: 0 | O113: 0
B114: tiililaatta | C114: 0.2295956 | H114: 0.2295956 | I114: 0 | J114: kgCO2e/kg | K114: kg | L114: 50 | M114: =IFERROR(QUOTIENT(Yhteenveto!$D$18-1,L114),0) -> 0 | N114: 0 | O114: 0
B115: turvalasi (parveke) | C115: 1.338 | H115: 1.338 | I115: 0 | J115: kgCO2e/kg | K115: kg | L115: 50 | M115: =IFERROR(QUOTIENT(Yhteenveto!$D$18-1,L115),0) -> 0 | N115: 0 | O115: 0
M116: =IFERROR(QUOTIENT(Yhteenveto!$D$18-1,L116),0) -> 0 | N116: 0 | O116: 0
B117: KATTEET | H117: =IF(E117="",IF(C117="","",C117),E117) ->  | I117: =IF(H117="","",D117*-1) ->  | M117: =IFERROR(QUOTIENT(Yhteenveto!$D$18-1,L117),0) -> 0
B118: betonikattotiili | C118: 0.163057856 | H118: 0.163057856 | I118: 0 | J118: =IF(H118="","",(IF(E118="","kgCO2e/kg","kgCO2e/m2"))) -> kgCO2e/kg | K118: kg | L118: 50 | M118: =IFERROR(QUOTIENT(Yhteenveto!$D$18-1,L118),0) -> 0 | N118: 0 | O118: 0
B119: aluskermi, 2,4 kg/m2 | C119: 2.287190413 | E119: 5.489256991 | H119: 5.489256991 | I119: 0 | J119: kgCO2e/m2 | K119: m2 | L119: 25 | M119: =IFERROR(QUOTIENT(Yhteenveto!$D$18-1,L119),0) -> 1 | N119: 5.489256991 | O119: 0
B120: bitumikattolaatta, 8,5 kg/m2 | C120: 2.293372375 | E120: 19.49366518 | H120: 19.49366518 | I120: 0 | J120: kgCO2e/m2 | K120: m2 | L120: 30 | M120: =IFERROR(QUOTIENT(Yhteenveto!$D$18-1,L120),0) -> 1 | N120: 19.49366518 | O120: 0
B121: bitumikermi, pinta + 2 alus, 13,3 kg/m2 | C121: 0.9713496345 | E121: 12.62754525 | H121: 12.62754525 | I121: 0 | J121: kgCO2e/m2 | K121: m2 | L121: 35 | M121: =IFERROR(QUOTIENT(Yhteenveto!$D$18-1,L121),0) -> 1 | N121: 12.62754525 | O121: 0
B122: kupari | C122: 2.104 | H122: 2.104 | I122: 0 | J122: kgCO2e/kg | K122: kg | L122: 50 | M122: =IFERROR(QUOTIENT(Yhteenveto!$D$18-1,L122),0) -> 0 | N122: 0 | O122: 0
B123: teräs, sinkitty | C123: 2.75 | H123: 2.75 | I123: 0 | J123: kgCO2e/kg | K123: kg | L123: 50 | M123: =IFERROR(QUOTIENT(Yhteenveto!$D$18-1,L123),0) -> 0 | N123: 0 | O123: 0
B124: teräs, sinkitty ja maali | C124: 2.91 | H124: 2.91 | I124: 0 | J124: kgCO2e/kg | K124: kg | L124: 50 | M124: =IFERROR(QUOTIENT(Yhteenveto!$D$18-1,L124),0) -> 0 | N124: 0 | O124: 0
J125: =IF(H125="","",(IF(E125="","CO2e/kg","CO2e/m2"))) ->  | M125: =IFERROR(QUOTIENT(Yhteenveto!$D$18-1,L125),0) -> 0
B126: IKKUNAT ja OVET ja LASISEINÄT | H126: =IF(E126="",IF(C126="","",C126),E126) ->  | I126: =IF(H126="","",D126*-1) ->  | J126: =IF(H126="","",(IF(E126="","CO2e/kg","CO2e/m2"))) ->  | K126: =IF(H126="","",(IF(E126="","kg","m2"))) ->  | M126: =IFERROR(QUOTIENT(Yhteenveto!$D$18-1,L126),0) -> 0
B127: Ikkunat, 3 lasikerrosta, 4mm | E127: 20.475 | H127: 20.475 | I127: 0 | J127: =IF(H127="","",(IF(E127="","kgCO2e/kg","kgCO2e/m2"))) -> kgCO2e/m2 | K127: m2 | L127: 50 | M127: =IFERROR(QUOTIENT(Yhteenveto!$D$18-1,L127),0) -> 0 | N127: 0 | O127: 0
B128: Ikkunat, 4 lasikerrosta, 4mm | E128: 27.3 | H128: 27.3 | I128: 0 | J128: kgCO2e/m2 | K128: m2 | L128: 50 | M128: =IFERROR(QUOTIENT(Yhteenveto!$D$18-1,L128),0) -> 0 | N128: 0 | O128: 0
B129: Ikkunat, 3 lasikerrosta, 6mm | E129: 30.7125 | H129: 30.7125 | I129: 0 | J129: kgCO2e/m2 | K129: m2 | L129: 50 | M129: =IFERROR(QUOTIENT(Yhteenveto!$D$18-1,L129),0) -> 0 | N129: 0 | O129: 0
B130: Ikkunat, 4 lasikerrosta, 6mm | E130: 40.95 | H130: 40.95 | I130: 0 | J130: kgCO2e/m2 | K130: m2 | L130: 50 | M130: =IFERROR(QUOTIENT(Yhteenveto!$D$18-1,L130),0) -> 0 | N130: 0 | O130: 0
B131: Ikkunat, Puuikkuna, sisältää myös lasit | E131: =158.75/(1.23*1.48) -> 87.20610855 | H131: 87.20610855 | I131: 0 | J131: kgCO2e/m2 | K131: m2 | L131: 50 | M131: =IFERROR(QUOTIENT(Yhteenveto!$D$18-1,L131),0) -> 0 | N131: 0 | O131: 0
B132: Ikkunat, Puu-alumiini-ikkuna, sisältää myös lasit | E132: =207.73/(1.23*1.48) -> 114.112283 | H132: 114.112283 | I132: 0 | J132: kgCO2e/m2 | K132: m2 | L132: 50 | M132: =IFERROR(QUOTIENT(Yhteenveto!$D$18-1,L132),0) -> 0 | N132: 0 | O132: 0
B133: Lasiverhoilu ja seinät | E133: 9.915 | H133: 9.915 | I133: 0 | J133: kgCO2e/m2 | K133: m2 | L133: 50 | M133: =IFERROR(QUOTIENT(Yhteenveto!$D$18-1,L133),0) -> 0 | N133: 0 | O133: 0
B134: Muoviseinämä (polykarbonaatti-suihkuseinämä) | C134: 4.168 | H134: 4.168 | I134: 0 | J134: =IF(H134="","",(IF(E134="","kgCO2e/kg","kgCO2e/m2"))) -> kgCO2e/kg | K134: kg | L134: 25 | M134: =IFERROR(QUOTIENT(Yhteenveto!$D$18-1,L134),0) -> 1 | N134: 4.168 | O134: 0
B135: Ovi, lasi | E135: 9.92 | H135: 9.92 | I135: 0 | J135: kgCO2e/m2 | K135: m2 | L135: 50 | M135: =IFERROR(QUOTIENT(Yhteenveto!$D$18-1,L135),0) -> 0 | N135: 0 | O135: 0
B136: Ovi, sisä | E136: 34.82349621 | H136: 34.82349621 | I136: 0 | J136: kgCO2e/m2 | K136: m2 | L136: 50 | M136: =IFERROR(QUOTIENT(Yhteenveto!$D$18-1,L136),0) -> 0 | N136: 0 | O136: 0
B137: Ovi, ulko metalli | E137: 20.09701304 | H137: 20.09701304 | I137: 0 | J137: kgCO2e/m2 | K137: m2 | L137: 50 | M137: =IFERROR(QUOTIENT(Yhteenveto!$D$18-1,L137),0) -> 0 | N137: 0 | O137: 0
B138: Ovi, ulko, puu | E138: 61.04377816 | H138: 61.04377816 | I138: 0 | J138: kgCO2e/m2 | K138: m2 | L138: 40 | M138: =IFERROR(QUOTIENT(Yhteenveto!$D$18-1,L138),0) -> 1 | N138: 61.04377816 | O138: 0
J139: =IF(H139="","",(IF(E139="","CO2e/kg","CO2e/m2"))) ->  | M139: =IFERROR(QUOTIENT(Yhteenveto!$D$18-1,L139),0) -> 0
B140: LATTIAPÄÄLLYSTEET JA -BETONIT | J140: =IF(H140="","",(IF(E140="","CO2e/kg","CO2e/m2"))) ->  | K140: =IF(H140="","",(IF(E140="","kg","m2"))) ->  | M140: =IFERROR(QUOTIENT(Yhteenveto!$D$18-1,L140),0) -> 0 | N140: =M140*H140 ->  | O140: =M140*I140 -> 
B141: muovimatto | C141: 1.395602223 | H141: 1.395602223 | I141: 0 | J141: =IF(H141="","",(IF(E141="","kgCO2e/kg","kgCO2e/m2"))) -> kgCO2e/kg | K141: kg | L141: 30 | M141: =IFERROR(QUOTIENT(Yhteenveto!$D$18-1,L141),0) -> 1 | N141: 1.395602223 | O141: 0
B142: parketti + alusrak. | C142: 0.6425351671 | H142: 0.6425351671 | I142: 0 | J142: kgCO2e/kg | K142: kg | L142: 25 | M142: =IFERROR(QUOTIENT(Yhteenveto!$D$18-1,L142),0) -> 1 | N142: 0.6425351671 | O142: 0
B143: Laminaatti | C143: 2.988235294 | H143: 2.988235294 | I143: 0 | J143: =IF(H143="","",(IF(E143="","kgCO2e/kg","kgCO2e/m2"))) -> kgCO2e/kg | K143: kg | L143: 15 | M143: =IFERROR(QUOTIENT(Yhteenveto!$D$18-1,L143),0) -> 3 | N143: 8.964705882 | O143: 0
B144: linoleum | C144: 0.3878472222 | H144: 0.3878472222 | I144: 0 | J144: kgCO2e/kg | K144: kg | L144: 30 | M144: =IFERROR(QUOTIENT(Yhteenveto!$D$18-1,L144),0) -> 1 | N144: 0.3878472222 | O144: 0
B145: kumi | C145: 3.136363636 | H145: 3.136363636 | I145: 0 | J145: kgCO2e/kg | K145: kg | L145: 30 | M145: =IFERROR(QUOTIENT(Yhteenveto!$D$18-1,L145),0) -> 1 | N145: 3.136363636 | O145: 0
B146: epokshartsi | C146: 4.069 | H146: 4.069 | I146: 0 | J146: kgCO2e/kg | K146: kg | L146: Ei vaihdeta | M146: =IFERROR(QUOTIENT(Yhteenveto!$D$18-1,L146),0) -> 0 | N146: 0 | O146: 0
B147: Lattiabetoni | C147: 0.15498 | H147: 0.15498 | I147: 0 | J147: =IF(H147="","",(IF(E147="","kgCO2e/kg","kgCO2e/m2"))) -> kgCO2e/kg | K147: kg | L147: Ei vaihdeta | M147: =IFERROR(QUOTIENT(Yhteenveto!$D$18-1,L147),0) -> 0 | N147: 0 | O147: 0
J148: =IF(H148="","",(IF(E148="","CO2e/kg","CO2e/m2"))) ->  | M148: =IFERROR(QUOTIENT(Yhteenveto!$D$18-1,L148),0) -> 0
B149: LEVYT | H149: =IF(E149="",IF(C149="","",C149),E149) ->  | I149: =IF(H149="","",D149*-1) ->  | J149: =IF(H149="","",(IF(E149="","CO2e/kg","CO2e/m2"))) ->  | M149: =IFERROR(QUOTIENT(Yhteenveto!$D$18-1,L149),0) -> 0
B150: kipsilevy | C150: 0.419049561 | H150: 0.419049561 | I150: 0 | J150: =IF(H150="","",(IF(E150="","kgCO2e/kg","kgCO2e/m2"))) -> kgCO2e/kg | K150: kg | L150: 50 | M150: =IFERROR(QUOTIENT(Yhteenveto!$D$18-1,L150),0) -> 0 | N150: 0 | O150: 0
B151: kovalevy | C151: 0.3156267082 | H151: 0.3156267082 | I151: 0 | J151: kgCO2e/kg | K151: kg | L151: 50 | M151: =IFERROR(QUOTIENT(Yhteenveto!$D$18-1,L151),0) -> 0 | N151: 0 | O151: 0
B152: kuitutuulensuoja | C152: 0.4571347513 | D152: 1.53 | H152: 0.4571347513 | I152: -1.53 | J152: kgCO2e/kg | K152: kg | L152: 50 | M152: =IFERROR(QUOTIENT(Yhteenveto!$D$18-1,L152),0) -> 0 | N152: 0 | O152: 0
B153: lastulevy | C153: 0.6135719415 | D153: 1.06 | H153: 0.6135719415 | I153: -1.06 | J153: kgCO2e/kg | K153: kg | L153: 50 | M153: =IFERROR(QUOTIENT(Yhteenveto!$D$18-1,L153),0) -> 0 | N153: 0 | O153: 0
B154: vaneri | C154: 0.2833609783 | D154: 1.64 | H154: 0.2833609783 | I154: -1.64 | J154: kgCO2e/kg | K154: kg | L154: 50 | M154: =IFERROR(QUOTIENT(Yhteenveto!$D$18-1,L154),0) -> 0 | N154: 0 | O154: 0
B155: CLT | C155: 0.21 | D155: 1.55 | H155: 0.21 | I155: -1.55 | J155: kgCO2e/kg | K155: kg | L155: Ei vaihdeta | M155: =IFERROR(QUOTIENT(Yhteenveto!$D$18-1,L155),0) -> 0 | N155: 0 | O155: 0
B156: kuitusementti | C156: 0.70665 | H156: 0.70665 | I156: 0 | J156: kgCO2e/kg | K156: kg | L156: 50 | M156: =IFERROR(QUOTIENT(Yhteenveto!$D$18-1,L156),0) -> 0 | N156: 0 | O156: 0
B157: viilupuu | C157: 0.3950470588 | D157: =1020/680 -> 1.5 | H157: 0.3950470588 | I157: -1.5 | J157: kgCO2e/kg | K157: kg | L157: Ei vaihdeta | M157: =IFERROR(QUOTIENT(Yhteenveto!$D$18-1,L157),0) -> 0 | N157: 0 | O157: 0
B158: OSB | C158: 0.4431 | D158: =810/623.33 -> 1.29947219 | H158: 0.4431 | I158: -1.29947219 | J158: kgCO2e/kg | K158: kg | L158: 50 | M158: =IFERROR(QUOTIENT(Yhteenveto!$D$18-1,L158),0) -> 0 | N158: 0 | O158: 0
J159: =IF(H159="","",(IF(E159="","CO2e/kg","CO2e/m2"))) ->  | K159: =IF(H159="","",(IF(E159="","kg","m2"))) ->  | M159: =IFERROR(QUOTIENT(Yhteenveto!$D$18-1,L159),0) -> 0
B160: MAALIT JA TASOITTEET | J160: =IF(H160="","",(IF(E160="","CO2e/kg","CO2e/m2"))) ->  | M160: =IFERROR(QUOTIENT(Yhteenveto!$D$18-1,L160),0) -> 0
B161: Maali, sisä, akrylaatti | C161: 2.12625 | H161: 2.12625 | I161: 0 | J161: =IF(H161="","",(IF(E161="","kgCO2e/kg","kgCO2e/m2"))) -> kgCO2e/kg | K161: kg | L161: 20 | M161: =IFERROR(QUOTIENT(Yhteenveto!$D$18-1,L161),0) -> 2 | N161: 4.2525 | O161: 0
B162: Maali, sisä, alkydi | C162: 1.86375 | H162: 1.86375 | I162: 0 | J162: kgCO2e/kg | K162: kg | L162: 20 | M162: =IFERROR(QUOTIENT(Yhteenveto!$D$18-1,L162),0) -> 2 | N162: 3.7275 | O162: 0
B163: Maali, punamulta | C163: 0.4454625 | H163: 0.4454625 | I163: 0 | J163: kgCO2e/kg | K163: kg | L163: 20 | M163: =IFERROR(QUOTIENT(Yhteenveto!$D$18-1,L163),0) -> 2 | N163: 0.890925 | O163: 0
B164: Maali, pellavaöljy | C164: 1.53825 | H164: 1.53825 | I164: 0 | J164: kgCO2e/kg | K164: kg | L164: 20 | M164: =IFERROR(QUOTIENT(Yhteenveto!$D$18-1,L164),0) -> 2 | N164: 3.0765 | O164: 0
B165: Maali, ulko, vesiohenteinen | C165: 1.84 | H165: 1.84 | I165: 0 | J165: kgCO2e/kg | K165: kg | L165: 20 | M165: =IFERROR(QUOTIENT(Yhteenveto!$D$18-1,L165),0) -> 2 | N165: 3.68 | O165: 0
B166: Maali, sisä, vesiohenteinen | C166: 1.64 | H166: 1.64 | I166: 0 | J166: kgCO2e/kg | K166: kg | L166: 20 | M166: =IFERROR(QUOTIENT(Yhteenveto!$D$18-1,L166),0) -> 2 | N166: 3.28 | O166: 0
B167: Tasoite, sementtipohj. | C167: 0.1854857143 | H167: 0.1854857143 | I167: 0 | J167: kgCO2e/kg | K167: kg | L167: 30 | M167: =IFERROR(QUOTIENT(Yhteenveto!$D$18-1,L167),0) -> 1 | N167: 0.1854857143 | O167: 0
B168: Tasoite, polymeeripohj. | C168: 0.361132222 | H168: 0.361132222 | I168: 0 | J168: kgCO2e/kg | K168: kg | L168: 30 | M168: =IFERROR(QUOTIENT(Yhteenveto!$D$18-1,L168),0) -> 1 | N168: 0.361132222 | O168: 0
J169: =IF(H169="","",(IF(E169="","CO2e/kg","CO2e/m2"))) ->  | M169: =IFERROR(QUOTIENT(Yhteenveto!$D$18-1,L169),0) -> 0
B170: LVI OSAT | J170: =IF(H170="","",(IF(E170="","CO2e/kg","CO2e/m2"))) ->  | M170: =IFERROR(QUOTIENT(Yhteenveto!$D$18-1,L170),0) -> 0
B171: Putki, muovi | C171: 2.1684 | H171: 2.1684 | I171: 0 | J171: =IF(H171="","",(IF(E171="","kgCO2e/kg","kgCO2e/m2"))) -> kgCO2e/kg | K171: kg | L171: 50 | M171: =IFERROR(QUOTIENT(Yhteenveto!$D$18-1,L171),0) -> 0 | N171: 0 | O171: 0
B172: Putki, teräs | C172: 2.538 | H172: 2.538 | I172: 0 | J172: kgCO2e/kg | K172: kg | L172: 50 | M172: =IFERROR(QUOTIENT(Yhteenveto!$D$18-1,L172),0) -> 0 | N172: 0 | O172: 0
B173: Putki, alumiini | C173: 2.338112 | H173: 2.338112 | I173: 0 | J173: kgCO2e/kg | K173: kg | L173: 50 | M173: =IFERROR(QUOTIENT(Yhteenveto!$D$18-1,L173),0) -> 0 | N173: 0 | O173: 0
B174: Putki, komposiitti | C174: 1.963028 | H174: 1.963028 | I174: 0 | J174: kgCO2e/kg | K174: kg | L174: 50 | M174: =IFERROR(QUOTIENT(Yhteenveto!$D$18-1,L174),0) -> 0 | N174: 0 | O174: 0
B175: Putki, salaoja | C175: 2.3894 | H175: 2.3894 | I175: 0 | J175: kgCO2e/kg | K175: kg | L175: 50 | M175: =IFERROR(QUOTIENT(Yhteenveto!$D$18-1,L175),0) -> 0 | N175: 0 | O175: 0
B176: Putki, viemäri | C176: 2.05299 | H176: 2.05299 | I176: 0 | J176: kgCO2e/kg | K176: kg | L176: 50 | M176: =IFERROR(QUOTIENT(Yhteenveto!$D$18-1,L176),0) -> 0 | N176: 0 | O176: 0
B177: Putki, maaviemäri | C177: 0.1968 | H177: 0.1968 | I177: 0 | J177: kgCO2e/kg | K177: kg | L177: 50 | M177: =IFERROR(QUOTIENT(Yhteenveto!$D$18-1,L177),0) -> 0 | N177: 0 | O177: 0
B178: Putki, käyttövesi | C178: 2.3894 | H178: 2.3894 | I178: 0 | J178: kgCO2e/kg | K178: kg | L178: 50 | M178: =IFERROR(QUOTIENT(Yhteenveto!$D$18-1,L178),0) -> 0 | N178: 0 | O178: 0
B179: Putki, lattialämmitys | C179: 1.838 | H179: 1.838 | I179: 0 | J179: kgCO2e/kg | K179: kg | L179: 50 | M179: =IFERROR(QUOTIENT(Yhteenveto!$D$18-1,L179),0) -> 0 | N179: 0 | O179: 0
B180: Liitin, muovi | C180: 2.028 | H180: 2.028 | I180: 0 | J180: kgCO2e/kg | K180: kg | L180: 50 | M180: =IFERROR(QUOTIENT(Yhteenveto!$D$18-1,L180),0) -> 0 | N180: 0 | O180: 0
B181: Liitin, teräs | C181: 2.75679 | H181: 2.75679 | I181: 0 | J181: kgCO2e/kg | K181: kg | L181: 50 | M181: =IFERROR(QUOTIENT(Yhteenveto!$D$18-1,L181),0) -> 0 | N181: 0 | O181: 0
B182: Liitin, alumiini | C182: 2.338112 | H182: =IF(E182="",IF(C182="","",C182),E182) -> 2.338112 | I182: =IF(H182="","",D182*-1) -> 0 | J182: kgCO2e/kg | K182: kg | L182: 50 | M182: =IFERROR(QUOTIENT(Yhteenveto!$D$18-1,L182),0) -> 0 | N182: 0 | O182: 0
B183: Venttiili | C183: 2.84725752 | H183: 2.84725752 | I183: 0 | J183: kgCO2e/kg | K183: kg | L183: 20 | M183: =IFERROR(QUOTIENT(Yhteenveto!$D$18-1,L183),0) -> 2 | N183: 5.69451504 | O183: 0
B184: Jakotukki | C184: 2.84725752 | H184: 2.84725752 | I184: 0 | J184: kgCO2e/kg | K184: kg | L184: 30 | M184: =IFERROR(QUOTIENT(Yhteenveto!$D$18-1,L184),0) -> 1 | N184: 2.84725752 | O184: 0
B185: Sadevesikaivo | C185: 1.634569231 | H185: 1.634569231 | I185: 0 | J185: kgCO2e/kg | K185: kg | L185: 50 | M185: =IFERROR(QUOTIENT(Yhteenveto!$D$18-1,L185),0) -> 0 | N185: 0 | O185: 0
B186: Peruskaivo | C186: 1.668 | H186: 1.668 | I186: 0 | J186: kgCO2e/kg | K186: kg | L186: 50 | M186: =IFERROR(QUOTIENT(Yhteenveto!$D$18-1,L186),0) -> 0 | N186: 0 | O186: 0
B187: Pesuallas, keraaminen | C187: 1.648 | H187: 1.648 | I187: 0 | J187: kgCO2e/kg | K187: kg | L187: 50 | M187: =IFERROR(QUOTIENT(Yhteenveto!$D$18-1,L187),0) -> 0 | N187: 0 | O187: 0
B188: Pesuallas, RST | C188: 4.758 | H188: 4.758 | I188: 0 | J188: kgCO2e/kg | K188: kg | L188: 50 | M188: =IFERROR(QUOTIENT(Yhteenveto!$D$18-1,L188),0) -> 0 | N188: 0 | O188: 0
B189: WC-istuin, keraaminen | C189: 1.648 | H189: 1.648 | I189: 0 | J189: kgCO2e/kg | K189: kg | L189: 50 | M189: =IFERROR(QUOTIENT(Yhteenveto!$D$18-1,L189),0) -> 0 | N189: 0 | O189: 0
B190: Lattiakaivo, muovi | C190: 1.668 | H190: 1.668 | I190: 0 | J190: kgCO2e/kg | K190: kg | L190: 50 | M190: =IFERROR(QUOTIENT(Yhteenveto!$D$18-1,L190),0) -> 0 | N190: 0 | O190: 0
B191: Lattiakaivo, RST teräs | C191: 4.758 | H191: 4.758 | I191: 0 | J191: kgCO2e/kg | K191: kg | L191: 50 | M191: =IFERROR(QUOTIENT(Yhteenveto!$D$18-1,L191),0) -> 0 | N191: 0 | O191: 0
B192: Vesihana, komposiitti | C192: 2.8994 | H192: 2.8994 | I192: 0 | J192: kgCO2e/kg | K192: kg | L192: 20 | M192: =IFERROR(QUOTIENT(Yhteenveto!$D$18-1,L192),0) -> 2 | N192: 5.7988 | O192: 0
B193: Suihku ja letku komposiitti | C193: 3.674 | H193: 3.674 | I193: 0 | J193: kgCO2e/kg | K193: kg | L193: 20 | M193: =IFERROR(QUOTIENT(Yhteenveto!$D$18-1,L193),0) -> 2 | N193: 7.348 | O193: 0
B194: Lautasventtiili, teräs | C194: 2.75679 | H194: 2.75679 | I194: 0 | J194: kgCO2e/kg | K194: kg | L194: 20 | M194: =IFERROR(QUOTIENT(Yhteenveto!$D$18-1,L194),0) -> 2 | N194: 5.51358 | O194: 0
B195: Putki, ilmastointi | C195: 2.75 | H195: 2.75 | I195: 0 | J195: kgCO2e/kg | K195: kg | L195: 40 | M195: =IFERROR(QUOTIENT(Yhteenveto!$D$18-1,L195),0) -> 1 | N195: 2.75 | O195: 0
B196: Säleikkö, tuloilma | C196: 2.338112 | H196: 2.338112 | I196: 0 | J196: kgCO2e/kg | K196: kg | L196: 40 | M196: =IFERROR(QUOTIENT(Yhteenveto!$D$18-1,L196),0) -> 1 | N196: 2.338112 | O196: 0
B197: Säleikkö, ulko | C197: 2.338112 | H197: 2.338112 | I197: 0 | J197: kgCO2e/kg | K197: kg | L197: 40 | M197: =IFERROR(QUOTIENT(Yhteenveto!$D$18-1,L197),0) -> 1 | N197: 2.338112 | O197: 0
J198: =IF(H198="","",(IF(E198="","CO2e/kg","CO2e/m2"))) ->  | M198: =IFERROR(QUOTIENT(Yhteenveto!$D$18-1,L198),0) -> 0
B199: SÄHKÖOSAT | M199: =IFERROR(QUOTIENT(Yhteenveto!$D$18-1,L199),0) -> 0
B200: Sisäkaapeli | C200: 2.1 | H200: 2.1 | I200: 0 | J200: =IF(H200="","",(IF(E200="","kgCO2e/kg","kgCO2e/m2"))) -> kgCO2e/kg | K200: kg | L200: 25 | M200: =IFERROR(QUOTIENT(Yhteenveto!$D$18-1,L200),0) -> 1 | N200: 2.1 | O200: 0
B201: Parikaapeli | C201: 3.81 | H201: 3.81 | I201: 0 | J201: kgCO2e/kg | K201: kg | L201: 25 | M201: =IFERROR(QUOTIENT(Yhteenveto!$D$18-1,L201),0) -> 1 | N201: 3.81 | O201: 0
B202: Antennikaapeli | C202: 2.05 | H202: 2.05 | I202: 0 | J202: kgCO2e/kg | K202: kg | L202: 25 | M202: =IFERROR(QUOTIENT(Yhteenveto!$D$18-1,L202),0) -> 1 | N202: 2.05 | O202: 0
B203: Asennusjohto | C203: 2.21 | H203: 2.21 | I203: 0 | J203: kgCO2e/kg | K203: kg | L203: 25 | M203: =IFERROR(QUOTIENT(Yhteenveto!$D$18-1,L203),0) -> 1 | N203: 2.21 | O203: 0
... 23 more rows

Sheet Datalehti (hidden)
B3: Laskennalliset päästöt | C3: päivitetty 6/2019 | E3: huom 2120 jälkeen vakio ja 2010 luvut on vanhoja
B4: (kgCO2e /kWh)
B5: Energiamuoto | C5: 2010 | D5: 2020 | E5: 2030 | F5: 2040 | G5: 2050 | H5: 2060 | I5: 2070 | J5: 2080 | K5: 2090 | L5: 2100 | M5: 2110 | N5: 2120 | O5: 2130 | P5: 2140 | Q5: 2150
B6: Sähkö | C6: 0.158 | D6: 0.121 | E6: 0.057 | F6: 0.03 | G6: 0.018 | H6: 0.014 | I6: 0.007 | J6: 0.004 | K6: 0.002 | L6: 0.001 | M6: 0.001 | N6: 0 | O6: =N6 -> 0 | P6: =O6 -> 0 | Q6: 0
B7: Kaukolämpö | C7: 0.164 | D7: 0.13 | E7: 0.093 | F7: 0.063 | G7: 0.037 | H7: 0.033 | I7: 0.022 | J7: 0.015 | K7: 0.01 | L7: 0.007 | M7: 0.004 | N7: 0.003 | O7: =N7 -> 0.003 | P7: =O7 -> 0.003 | Q7: 0.003
B8: Fossiiliset | C8: 0.26 | D8: 0.26 | E8: 0.26 | F8: 0.26 | G8: 0.26 | H8: 0.26 | I8: 0.26 | J8: 0.26 | K8: 0.26 | L8: 0.26 | M8: 0.26 | N8: 0.26 | O8: 0.26 | P8: 0.26 | Q8: 0.26
B9: Uusiutuvat | C9: 0 | D9: 0 | E9: 0 | F9: 0 | G9: 0 | H9: 0 | I9: 0 | J9: 0 | K9: 0 | L9: 0 | M9: 0 | N9: 0 | O9: 0 | P9: 0 | Q9: 0
B11: Laskennan vuodet (a) | C11: =IF(C13>$E20,IF(C13<$E22,10,IF(C13<$E22+1,$E23,0)),(IF(C13>$E20-1,10-$E21,0))) -> 0 | D11: 0 | E11: 0 | F11: 0 | G11: 0 | H11: 0 | I11: 0 | J11: 0 | K11: 0 | L11: 0 | M11: 0 | N11: 0 | O11: 0 | P11: 0 | Q11: 0
B12: (akgCO2e /kWh) | S12: Päästökertoimet | T12: Päästökertoimet
B13: Energiamuoto | C13: 2010 | D13: 2020 | E13: 2030 | F13: 2040 | G13: 2050 | H13: 2060 | I13: 2070 | J13: 2080 | K13: 2090 | L13: 2100 | M13: 2110 | N13: 2120 | O13: 2130 | P13: 2140 | Q13: 2150 | S13: (akgCO2e /kWh) | T13: (kgCO2e /kWh)
B14: Sähkö | C14: =C$11*C6 -> 0 | D14: =D$11*D6 -> 0 | E14: 0 | F14: 0 | G14: 0 | H14: 0 | I14: 0 | J14: 0 | K14: 0 | L14: 0 | M14: 0 | N14: 0 | O14: 0 | P14: 0 | Q14: 0 | S14: =SUM(C14:Q14) -> 0 | T14: =S14/C$22 -> 0
B15: Kaukolämpö | C15: =C$11*C7 -> 0 | D15: =D$11*D7 -> 0 | E15: 0 | F15: 0 | G15: 0 | H15: 0 | I15: 0 | J15: 0 | K15: 0 | L15: 0 | M15: 0 | N15: 0 | O15: 0 | P15: 0 | Q15: 0 | S15: =SUM(C15:Q15) -> 0 | T15: =S15/C$22 -> 0
B16: Fossiiliset | C16: =C$11*C8 -> 0 | D16: =D$11*D8 -> 0 | E16: 0 | F16: 0 | G16: 0 | H16: 0 | I16: 0 | J16: 0 | K16: 0 | L16: 0 | M16: 0 | N16: 0 | O16: 0 | P16: 0 | Q16: 0 | S16: 0 | T16: 0
B17: Uusiutuvat | C17: =C$11*C9 -> 0 | D17: =D$11*D9 -> 0 | E17: 0 | F17: 0 | G17: 0 | H17: 0 | I17: 0 | J17: 0 | K17: 0 | L17: 0 | M17: 0 | N17: 0 | O17: 0 | P17: 0 | Q17: 0 | S17: 0 | T17: 0
E20: =INT(LEFT(C21,3)&"0") -> 0
B21: Valmistumisvuosi | C21: =Yhteenveto!D21 -> 0 | E21: =MOD(C21,10) -> 0
B22: Käyttöikä | C22: =Yhteenveto!D18 -> 50 | E22: =INT(LEFT(C23,3)&"0") -> 500
B23: Loppuvuosi | C23: =C22+C21 -> 50 | E23: =MOD(C23,10) -> 0
G33: Hankeluokitus | Q33: materiaaliluokat lista | S33: kevyet rakenteet
C34: Hiilijalanjälki | D34: Hiilikädenjälki | G34: A | H34: Asuinrakennukset | M34: raportointiaika
C35: kg CO2e/m2netto | D35: kg CO2e/m2netto | G35: B | H35: Vapaa-ajan asuinrakennukset | M35: Rakennuslupa | Q35: PAIKALLAVALUBETONI JA RAUDOITTEET
B36: Työmaatoiminnot (A5) | C36: 27.3 | D36: 0 | G36: C | H36: Liikerakennukset | M36: Käyttöönotto | Q36: PIHA JA POHJARAKENTEET
B37: Korjauset ja osien vaihdot (B3-4) | C37: 2.16 | D37: 0 | G37: D | H37: Toimistorakennukset | Q37: PILARIT JA PALKIT
B38: Purkaminen (C1) | C38: 7.8 | D38: 0 | G38: E | H38: Liikenteen rakennukset | Q38: LAATAT
B39: Kuljetukset (C2) | C39: 10.2 | D39: 0 | G39: F | H39: Hoitoalan rakennukset | M39: Tarkastelun tyyppi | Q39: SEINÄT JA SOKKELIT
B40: Purkujätteen loppukäsittely ja sijoitus (C3-4) | C40: 15.6 | D40: 0 | G40: G | H40: Kokoontumisrakennukset | M40: Yksinkertaistettu | Q40: PORTAAT
B41: Purkujätteen uusiokäyttö (D?) | C41: 0 | D41: 0 | G41: H | H41: Opetusrakennukset | M41: Tarkennettu | Q41: LÄMMÖNERISTEET
G42: J | H42: Teollisuusrakennukset | Q42: KOSTEUSERISTE
B43: Ylijäämäenergiat | C43: ='Käyttö (B)'!C17 -> Energian tuotanto (kWh/m2netto/a) | D43: kg CO2e/m2netto/a | G43: K | H43: Varastorakennukset | Q43: ULKOVERHOILU
B44: ='Käyttö (B)'!B18 -> Sähkö | C44: ='Käyttö (B)'!C18 -> 0 | D44: =IFERROR(C44*T14,0) -> 0 | G44: L | H44: Palo- ja pelastustoimen rakennukset | Q44: KATTEET
B45: ='Käyttö (B)'!B19 -> Lämpö | C45: ='Käyttö (B)'!C19 -> 0 | D45: =IFERROR(C45*T15,0) -> 0 | G45: M | H45: Maatalousrakennukset | Q45: IKKUNAT ja OVET ja LASISEINÄT
B46: yhteensä | D46: =D45+D44 -> 0 | G46: N | H46: Muut rakennukset | Q46: LATTIAPÄÄLLYSTEET JA BETONIT
Q47: LEVYT
Q48: MAALIT JA TASOITTEET
Q49: LVI OSAT
Q50: SÄHKÖOSAT
G51: Rakennuksen runkomateriaali | Q51: AURINKOPANEELI
G52: 1 | H52: Betoni | Q52: HISSIT
G53: 2 | H53: Tiili | Q53: TALOTEKNIIKAN KOKONAISPÄÄSTÖT
G54: 3 | H54: Teräs
G55: 4 | H55: Puu
G56: 5 | H56: Muu
B62: Vuosi | C62: =Yhteenveto!D21 -> 0 | D62: =C62+1 -> 1 | E62: =D62+1 -> 2 | F62: =E62+1 -> 3 | G62: 4 | H62: 5 | I62: 6 | J62: 7 | K62: 8 | L62: 9 | M62: 10 | N62: 11 | O62: 12 | P62: 13 | Q62: =P62+1 -> 14 | R62: 15 | S62: 16 | T62: 17 | U62: 18 | V62: 19 | W62: 20 | X62: 21 | Y62: 22 | Z62: 23 | AA62: 24 | AB62: 25 | AC62: 26 | AD62: 27 | AE62: 28 | AF62: 29 | AG62: 30 | AH62: 31 | AI62: 32 | AJ62: 33 | AK62: 34 | AL62: 35 | AM62: 36 | AN62: 37 | AO62: 38 | AP62: 39 | AQ62: 40 | AR62: 41 | AS62: 42 | AT62: 43 | AU62: 44 | AV62: 45 | AW62: 46 | AX62: 47 | AY62: 48 | AZ62: 49 | BA62: 50 | BB62: 51 | BC62: 52 | BD62: 53 | BE62: 54 | BF62: 55 | BG62: 56 | BH62: 57 | BI62: 58 | BJ62: 59 | BK62: 60 | BL62: 61 | BM62: 62 | BN62: 63 | BO62: 64 | BP62: 65 | BQ62: 66 | BR62: 67 | BS62: 68 | BT62: 69 | BU62: 70 | BV62: 71 | BW62: 72 | BX62: 73 | BY62: 74 | BZ62: 75 | CA62: 76 | CB62: 77 | CC62: =CB62+1 -> 78 | CD62: 79 | CE62: 80 | CF62: 81 | CG62: 82 | CH62: 83 | CI62: 84 | CJ62: 85 | CK62: 86 | CL62: 87 | CM62: 88 | CN62: 89 | CO62: 90 | CP62: 91 | CQ62: 92 | CR62: 93 | CS62: 94 | CT62: 95 | CU62: 96 | CV62: 97 | CW62: 98 | CX62: 99 | CY62: 100 | CZ62: 101 | DA62: 102 | DB62: 103 | DC62: 104 | DD62: 105 | DE62: 106 | DF62: 107 | DG62: 108 | DH62: 109 | DI62: 110 | DJ62: 111 | DK62: 112 | DL62: 113 | DM62: 114 | DN62: 115 | DO62: 116 | DP62: 117 | DQ62: 118 | DR62: 119 | DS62: 120 | DT62: 121 | DU62: 122 | DV62: 123 | DW62: 124 | DX62: 125 | DY62: 126 | DZ62: 127 | EA62: 128 | EB62: 129 | EC62: 130 | ED62: 131 | EE62: 132
B63: Materiaalien ja rakentamisen kumulatiivinen hiilijalanjälki | C63: 0 | D63: ='Valmistus, kuljetus, työmaa (A)'!C8*Yhteenveto!D13*Yhteenveto!D18 -> 0 | E63: =D63+E67+E69 -> 0 | F63: =E63+F67+F69 -> 0 | G63: 0 | H63: 0 | I63: 0 | J63: 0 | K63: 0 | L63: 0 | M63: 0 | N63: 0 | O63: 0 | P63: 0 | Q63: =P63+Q67+Q69 -> 0 | R63: 0 | S63: 0 | T63: 0 | U63: 0 | V63: 0 | W63: 0 | X63: 0 | Y63: 0 | Z63: 0 | AA63: 0 | AB63: 0 | AC63: 0 | AD63: 0 | AE63: 0 | AF63: 0 | AG63: 0 | AH63: 0 | AI63: 0 | AJ63: 0 | AK63: 0 | AL63: 0 | AM63: 0 | AN63: 0 | AO63: 0 | AP63: 0 | AQ63: 0 | AR63: 0 | AS63: 0 | AT63: 0 | AU63: 0 | AV63: 0 | AW63: 0 | AX63: 0 | AY63: 0 | AZ63: 0 | BA63: 0 | BB63: 0 | BC63: 0 | BD63: 0 | BE63: 0 | BF63: 0 | BG63: 0 | BH63: 0 | BI63: 0 | BJ63: 0 | BK63: 0 | BL63: 0 | BM63: 0 | BN63: 0 | BO63: 0 | BP63: 0 | BQ63: 0 | BR63: 0 | BS63: 0 | BT63: 0 | BU63: 0 | BV63: 0 | BW63: 0 | BX63: 0 | BY63: 0 | BZ63: 0 | CA63: 0 | CB63: 0 | CC63: =CB63+CC67+CC69 -> 0 | CD63: 0 | CE63: 0 | CF63: 0 | CG63: 0 | CH63: 0 | CI63: 0 | CJ63: 0 | CK63: 0 | CL63: 0 | CM63: 0 | CN63: 0 | CO63: 0 | CP63: 0 | CQ63: 0 | CR63: 0 | CS63: 0 | CT63: 0 | CU63: 0 | CV63: 0 | CW63: 0 | CX63: 0 | CY63: 0 | CZ63: 0 | DA63: 0 | DB63: 0 | DC63: 0 | DD63: 0 | DE63: 0 | DF63: 0 | DG63: 0 | DH63: 0 | DI63: 0 | DJ63: 0 | DK63: 0 | DL63: 0 | DM63: 0 | DN63: 0 | DO63: 0 | DP63: 0 | DQ63: 0 | DR63: 0 | DS63: 0 | DT63: 0 | DU63: 0 | DV63: 0 | DW63: 0 | DX63: 0 | DY63: 0 | DZ63: 0 | EA63: 0 | EB63: 0 | EC63: 0 | ED63: 0 | EE63: 0
B64: Energiankäytön kumulatiivinen hiilijalanjälki | C64: 0 | D64: =C64+D68 ->  | E64: =D64+E68 ->  | F64: =E64+F68 ->  | Q64: =P64+Q68 ->  | CC64: =CB64+CC68 -> 
B67: purkamisen hiilijalanjälki | C67: =IF(C62=$C23,'Elinkaaren loppu (C+D)'!$D9*Yhteenveto!$D13*Yhteenveto!$D18,0) -> 0 | D67: =IF(D62=$C23,'Elinkaaren loppu (C+D)'!$D9*Yhteenveto!$D13*Yhteenveto!$D18,0) -> 0 | E67: =IF(E62=$C23,'Elinkaaren loppu (C+D)'!$D9*Yhteenveto!$D13*Yhteenveto!$D18,0) -> 0 | F67: =IF(F62=$C23,'Elinkaaren loppu (C+D)'!$D9*Yhteenveto!$D13*Yhteenveto!$D18,0) -> 0 | G67: =IF(G62=$C23,'Elinkaaren loppu (C+D)'!$D9*Yhteenveto!$D13*Yhteenveto!$D18,0) -> 0 | H67: =IF(H62=$C23,'Elinkaaren loppu (C+D)'!$D9*Yhteenveto!$D13*Yhteenveto!$D18,0) -> 0 | I67: =IF(I62=$C23,'Elinkaaren loppu (C+D)'!$D9*Yhteenveto!$D13*Yhteenveto!$D18,0) -> 0 | J67: =IF(J62=$C23,'Elinkaaren loppu (C+D)'!$D9*Yhteenveto!$D13*Yhteenveto!$D18,0) -> 0 | K67: =IF(K62=$C23,'Elinkaaren loppu (C+D)'!$D9*Yhteenveto!$D13*Yhteenveto!$D18,0) -> 0 | L67: =IF(L62=$C23,'Elinkaaren loppu (C+D)'!$D9*Yhteenveto!$D13*Yhteenveto!$D18,0) -> 0 | M67: =IF(M62=$C23,'Elinkaaren loppu (C+D)'!$D9*Yhteenveto!$D13*Yhteenveto!$D18,0) -> 0 | N67: =IF(N62=$C23,'Elinkaaren loppu (C+D)'!$D9*Yhteenveto!$D13*Yhteenveto!$D18,0) -> 0 | O67: =IF(O62=$C23,'Elinkaaren loppu (C+D)'!$D9*Yhteenveto!$D13*Yhteenveto!$D18,0) -> 0 | P67: =IF(P62=$C23,'Elinkaaren loppu (C+D)'!$D9*Yhteenveto!$D13*Yhteenveto!$D18,0) -> 0 | Q67: =IF(Q62=$C23,'Elinkaaren loppu (C+D)'!$D9*Yhteenveto!$D13*Yhteenveto!$D18,0) -> 0 | R67: =IF(R62=$C23,'Elinkaaren loppu (C+D)'!$D9*Yhteenveto!$D13*Yhteenveto!$D18,0) -> 0 | S67: =IF(S62=$C23,'Elinkaaren loppu (C+D)'!$D9*Yhteenveto!$D13*Yhteenveto!$D18,0) -> 0 | T67: =IF(T62=$C23,'Elinkaaren loppu (C+D)'!$D9*Yhteenveto!$D13*Yhteenveto!$D18,0) -> 0 | U67: =IF(U62=$C23,'Elinkaaren loppu (C+D)'!$D9*Yhteenveto!$D13*Yhteenveto!$D18,0) -> 0 | V67: =IF(V62=$C23,'Elinkaaren loppu (C+D)'!$D9*Yhteenveto!$D13*Yhteenveto!$D18,0) -> 0 | W67: =IF(W62=$C23,'Elinkaaren loppu (C+D)'!$D9*Yhteenveto!$D13*Yhteenveto!$D18,0) -> 0 | X67: =IF(X62=$C23,'Elinkaaren loppu (C+D)'!$D9*Yhteenveto!$D13*Yhteenveto!$D18,0) -> 0 | Y67: =IF(Y62=$C23,'Elinkaaren loppu (C+D)'!$D9*Yhteenveto!$D13*Yhteenveto!$D18,0) -> 0 | Z67: =IF(Z62=$C23,'Elinkaaren loppu (C+D)'!$D9*Yhteenveto!$D13*Yhteenveto!$D18,0) -> 0 | AA67: =IF(AA62=$C23,'Elinkaaren loppu (C+D)'!$D9*Yhteenveto!$D13*Yhteenveto!$D18,0) -> 0 | AB67: =IF(AB62=$C23,'Elinkaaren loppu (C+D)'!$D9*Yhteenveto!$D13*Yhteenveto!$D18,0) -> 0 | AC67: =IF(AC62=$C23,'Elinkaaren loppu (C+D)'!$D9*Yhteenveto!$D13*Yhteenveto!$D18,0) -> 0 | AD67: =IF(AD62=$C23,'Elinkaaren loppu (C+D)'!$D9*Yhteenveto!$D13*Yhteenveto!$D18,0) -> 0 | AE67: =IF(AE62=$C23,'Elinkaaren loppu (C+D)'!$D9*Yhteenveto!$D13*Yhteenveto!$D18,0) -> 0 | AF67: =IF(AF62=$C23,'Elinkaaren loppu (C+D)'!$D9*Yhteenveto!$D13*Yhteenveto!$D18,0) -> 0 | AG67: =IF(AG62=$C23,'Elinkaaren loppu (C+D)'!$D9*Yhteenveto!$D13*Yhteenveto!$D18,0) -> 0 | AH67: =IF(AH62=$C23,'Elinkaaren loppu (C+D)'!$D9*Yhteenveto!$D13*Yhteenveto!$D18,0) -> 0 | AI67: =IF(AI62=$C23,'Elinkaaren loppu (C+D)'!$D9*Yhteenveto!$D13*Yhteenveto!$D18,0) -> 0 | AJ67: =IF(AJ62=$C23,'Elinkaaren loppu (C+D)'!$D9*Yhteenveto!$D13*Yhteenveto!$D18,0) -> 0 | AK67: =IF(AK62=$C23,'Elinkaaren loppu (C+D)'!$D9*Yhteenveto!$D13*Yhteenveto!$D18,0) -> 0 | AL67: =IF(AL62=$C23,'Elinkaaren loppu (C+D)'!$D9*Yhteenveto!$D13*Yhteenveto!$D18,0) -> 0 | AM67: =IF(AM62=$C23,'Elinkaaren loppu (C+D)'!$D9*Yhteenveto!$D13*Yhteenveto!$D18,0) -> 0 | AN67: =IF(AN62=$C23,'Elinkaaren loppu (C+D)'!$D9*Yhteenveto!$D13*Yhteenveto!$D18,0) -> 0 | AO67: =IF(AO62=$C23,'Elinkaaren loppu (C+D)'!$D9*Yhteenveto!$D13*Yhteenveto!$D18,0) -> 0 | AP67: =IF(AP62=$C23,'Elinkaaren loppu (C+D)'!$D9*Yhteenveto!$D13*Yhteenveto!$D18,0) -> 0 | AQ67: =IF(AQ62=$C23,'Elinkaaren loppu (C+D)'!$D9*Yhteenveto!$D13*Yhteenveto!$D18,0) -> 0 | AR67: =IF(AR62=$C23,'Elinkaaren loppu (C+D)'!$D9*Yhteenveto!$D13*Yhteenveto!$D18,0) -> 0 | AS67: =IF(AS62=$C23,'Elinkaaren loppu (C+D)'!$D9*Yhteenveto!$D13*Yhteenveto!$D18,0) -> 0 | AT67: =IF(AT62=$C23,'Elinkaaren loppu (C+D)'!$D9*Yhteenveto!$D13*Yhteenveto!$D18,0) -> 0 | AU67: =IF(AU62=$C23,'Elinkaaren loppu (C+D)'!$D9*Yhteenveto!$D13*Yhteenveto!$D18,0) -> 0 | AV67: =IF(AV62=$C23,'Elinkaaren loppu (C+D)'!$D9*Yhteenveto!$D13*Yhteenveto!$D18,0) -> 0 | AW67: =IF(AW62=$C23,'Elinkaaren loppu (C+D)'!$D9*Yhteenveto!$D13*Yhteenveto!$D18,0) -> 0 | AX67: =IF(AX62=$C23,'Elinkaaren loppu (C+D)'!$D9*Yhteenveto!$D13*Yhteenveto!$D18,0) -> 0 | AY67: =IF(AY62=$C23,'Elinkaaren loppu (C+D)'!$D9*Yhteenveto!$D13*Yhteenveto!$D18,0) -> 0 | AZ67: =IF(AZ62=$C23,'Elinkaaren loppu (C+D)'!$D9*Yhteenveto!$D13*Yhteenveto!$D18,0) -> 0 | BA67: =IF(BA62=$C23,'Elinkaaren loppu (C+D)'!$D9*Yhteenveto!$D13*Yhteenveto!$D18,0) -> 0 | BB67: =IF(BB62=$C23,'Elinkaaren loppu (C+D)'!$D9*Yhteenveto!$D13*Yhteenveto!$D18,0) -> 0 | BC67: =IF(BC62=$C23,'Elinkaaren loppu (C+D)'!$D9*Yhteenveto!$D13*Yhteenveto!$D18,0) -> 0 | BD67: =IF(BD62=$C23,'Elinkaaren loppu (C+D)'!$D9*Yhteenveto!$D13*Yhteenveto!$D18,0) -> 0 | BE67: =IF(BE62=$C23,'Elinkaaren loppu (C+D)'!$D9*Yhteenveto!$D13*Yhteenveto!$D18,0) -> 0 | BF67: =IF(BF62=$C23,'Elinkaaren loppu (C+D)'!$D9*Yhteenveto!$D13*Yhteenveto!$D18,0) -> 0 | BG67: =IF(BG62=$C23,'Elinkaaren loppu (C+D)'!$D9*Yhteenveto!$D13*Yhteenveto!$D18,0) -> 0 | BH67: =IF(BH62=$C23,'Elinkaaren loppu (C+D)'!$D9*Yhteenveto!$D13*Yhteenveto!$D18,0) -> 0 | BI67: =IF(BI62=$C23,'Elinkaaren loppu (C+D)'!$D9*Yhteenveto!$D13*Yhteenveto!$D18,0) -> 0 | BJ67: =IF(BJ62=$C23,'Elinkaaren loppu (C+D)'!$D9*Yhteenveto!$D13*Yhteenveto!$D18,0) -> 0 | BK67: =IF(BK62=$C23,'Elinkaaren loppu (C+D)'!$D9*Yhteenveto!$D13*Yhteenveto!$D18,0) -> 0 | BL67: =IF(BL62=$C23,'Elinkaaren loppu (C+D)'!$D9*Yhteenveto!$D13*Yhteenveto!$D18,0) -> 0 | BM67: =IF(BM62=$C23,'Elinkaaren loppu (C+D)'!$D9*Yhteenveto!$D13*Yhteenveto!$D18,0) -> 0 | BN67: =IF(BN62=$C23,'Elinkaaren loppu (C+D)'!$D9*Yhteenveto!$D13*Yhteenveto!$D18,0) -> 0 | BO67: =IF(BO62=$C23,'Elinkaaren loppu (C+D)'!$D9*Yhteenveto!$D13*Yhteenveto!$D18,0) -> 0 | BP67: =IF(BP62=$C23,'Elinkaaren loppu (C+D)'!$D9*Yhteenveto!$D13*Yhteenveto!$D18,0) -> 0 | BQ67: =IF(BQ62=$C23,'Elinkaaren loppu (C+D)'!$D9*Yhteenveto!$D13*Yhteenveto!$D18,0) -> 0 | BR67: =IF(BR62=$C23,'Elinkaaren loppu (C+D)'!$D9*Yhteenveto!$D13*Yhteenveto!$D18,0) -> 0 | BS67: =IF(BS62=$C23,'Elinkaaren loppu (C+D)'!$D9*Yhteenveto!$D13*Yhteenveto!$D18,0) -> 0 | BT67: =IF(BT62=$C23,'Elinkaaren loppu (C+D)'!$D9*Yhteenveto!$D13*Yhteenveto!$D18,0) -> 0 | BU67: =IF(BU62=$C23,'Elinkaaren loppu (C+D)'!$D9*Yhteenveto!$D13*Yhteenveto!$D18,0) -> 0 | BV67: =IF(BV62=$C23,'Elinkaaren loppu (C+D)'!$D9*Yhteenveto!$D13*Yhteenveto!$D18,0) -> 0 | BW67: =IF(BW62=$C23,'Elinkaaren loppu (C+D)'!$D9*Yhteenveto!$D13*Yhteenveto!$D18,0) -> 0 | BX67: =IF(BX62=$C23,'Elinkaaren loppu (C+D)'!$D9*Yhteenveto!$D13*Yhteenveto!$D18,0) -> 0 | BY67: =IF(BY62=$C23,'Elinkaaren loppu (C+D)'!$D9*Yhteenveto!$D13*Yhteenveto!$D18,0) -> 0 | BZ67: =IF(BZ62=$C23,'Elinkaaren loppu (C+D)'!$D9*Yhteenveto!$D13*Yhteenveto!$D18,0) -> 0 | CA67: =IF(CA62=$C23,'Elinkaaren loppu (C+D)'!$D9*Yhteenveto!$D13*Yhteenveto!$D18,0) -> 0 | CB67: =IF(CB62=$C23,'Elinkaaren loppu (C+D)'!$D9*Yhteenveto!$D13*Yhteenveto!$D18,0) -> 0 | CC67: =IF(CC62=$C23,'Elinkaaren loppu (C+D)'!$D9*Yhteenveto!$D13*Yhteenveto!$D18,0) -> 0 | CD67: =IF(CD62=$C23,'Elinkaaren loppu (C+D)'!$D9*Yhteenveto!$D13*Yhteenveto!$D18,0) -> 0 | CE67: =IF(CE62=$C23,'Elinkaaren loppu (C+D)'!$D9*Yhteenveto!$D13*Yhteenveto!$D18,0) -> 0 | CF67: =IF(CF62=$C23,'Elinkaaren loppu (C+D)'!$D9*Yhteenveto!$D13*Yhteenveto!$D18,0) -> 0 | CG67: =IF(CG62=$C23,'Elinkaaren loppu (C+D)'!$D9*Yhteenveto!$D13*Yhteenveto!$D18,0) -> 0 | CH67: =IF(CH62=$C23,'Elinkaaren loppu (C+D)'!$D9*Yhteenveto!$D13*Yhteenveto!$D18,0) -> 0 | CI67: =IF(CI62=$C23,'Elinkaaren loppu (C+D)'!$D9*Yhteenveto!$D13*Yhteenveto!$D18,0) -> 0 | CJ67: =IF(CJ62=$C23,'Elinkaaren loppu (C+D)'!$D9*Yhteenveto!$D13*Yhteenveto!$D18,0) -> 0 | CK67: =IF(CK62=$C23,'Elinkaaren loppu (C+D)'!$D9*Yhteenveto!$D13*Yhteenveto!$D18,0) -> 0 | CL67: =IF(CL62=$C23,'Elinkaaren loppu (C+D)'!$D9*Yhteenveto!$D13*Yhteenveto!$D18,0) -> 0 | CM67: =IF(CM62=$C23,'Elinkaaren loppu (C+D)'!$D9*Yhteenveto!$D13*Yhteenveto!$D18,0) -> 0 | CN67: =IF(CN62=$C23,'Elinkaaren loppu (C+D)'!$D9*Yhteenveto!$D13*Yhteenveto!$D18,0) -> 0 | CO67: =IF(CO62=$C23,'Elinkaaren loppu (C+D)'!$D9*Yhteenveto!$D13*Yhteenveto!$D18,0) -> 0 | CP67: =IF(CP62=$C23,'Elinkaaren loppu (C+D)'!$D9*Yhteenveto!$D13*Yhteenveto!$D18,0) -> 0 | CQ67: =IF(CQ62=$C23,'Elinkaaren loppu (C+D)'!$D9*Yhteenveto!$D13*Yhteenveto!$D18,0) -> 0 | CR67: =IF(CR62=$C23,'Elinkaaren loppu (C+D)'!$D9*Yhteenveto!$D13*Yhteenveto!$D18,0) -> 0 | CS67: =IF(CS62=$C23,'Elinkaaren loppu (C+D)'!$D9*Yhteenveto!$D13*Yhteenveto!$D18,0) -> 0 | CT67: =IF(CT62=$C23,'Elinkaaren loppu (C+D)'!$D9*Yhteenveto!$D13*Yhteenveto!$D18,0) -> 0 | CU67: =IF(CU62=$C23,'Elinkaaren loppu (C+D)'!$D9*Yhteenveto!$D13*Yhteenveto!$D18,0) -> 0 | CV67: =IF(CV62=$C23,'Elinkaaren loppu (C+D)'!$D9*Yhteenveto!$D13*Yhteenveto!$D18,0) -> 0 | CW67: =IF(CW62=$C23,'Elinkaaren loppu (C+D)'!$D9*Yhteenveto!$D13*Yhteenveto!$D18,0) -> 0 | CX67: =IF(CX62=$C23,'Elinkaaren loppu (C+D)'!$D9*Yhteenveto!$D13*Yhteenveto!$D18,0) -> 0 | CY67: =IF(CY62=$C23,'Elinkaaren loppu (C+D)'!$D9*Yhteenveto!$D13*Yhteenveto!$D18,0) -> 0 | CZ67: =IF(CZ62=$C23,'Elinkaaren loppu (C+D)'!$D9*Yhteenveto!$D13*Yhteenveto!$D18,0) -> 0 | DA67: =IF(DA62=$C23,'Elinkaaren loppu (C+D)'!$D9*Yhteenveto!$D13*Yhteenveto!$D18,0) -> 0 | DB67: =IF(DB62=$C23,'Elinkaaren loppu (C+D)'!$D9*Yhteenveto!$D13*Yhteenveto!$D18,0) -> 0 | DC67: =IF(DC62=$C23,'Elinkaaren loppu (C+D)'!$D9*Yhteenveto!$D13*Yhteenveto!$D18,0) -> 0 | DD67: =IF(DD62=$C23,'Elinkaaren loppu (C+D)'!$D9*Yhteenveto!$D13*Yhteenveto!$D18,0) -> 0 | DE67: =IF(DE62=$C23,'Elinkaaren loppu (C+D)'!$D9*Yhteenveto!$D13*Yhteenveto!$D18,0) -> 0 | DF67: =IF(DF62=$C23,'Elinkaaren loppu (C+D)'!$D9*Yhteenveto!$D13*Yhteenveto!$D18,0) -> 0 | DG67: =IF(DG62=$C23,'Elinkaaren loppu (C+D)'!$D9*Yhteenveto!$D13*Yhteenveto!$D18,0) -> 0 | DH67: =IF(DH62=$C23,'Elinkaaren loppu (C+D)'!$D9*Yhteenveto!$D13*Yhteenveto!$D18,0) -> 0 | DI67: =IF(DI62=$C23,'Elinkaaren loppu (C+D)'!$D9*Yhteenveto!$D13*Yhteenveto!$D18,0) -> 0 | DJ67: =IF(DJ62=$C23,'Elinkaaren loppu (C+D)'!$D9*Yhteenveto!$D13*Yhteenveto!$D18,0) -> 0 | DK67: =IF(DK62=$C23,'Elinkaaren loppu (C+D)'!$D9*Yhteenveto!$D13*Yhteenveto!$D18,0) -> 0 | DL67: =IF(DL62=$C23,'Elinkaaren loppu (C+D)'!$D9*Yhteenveto!$D13*Yhteenveto!$D18,0) -> 0 | DM67: =IF(DM62=$C23,'Elinkaaren loppu (C+D)'!$D9*Yhteenveto!$D13*Yhteenveto!$D18,0) -> 0 | DN67: =IF(DN62=$C23,'Elinkaaren loppu (C+D)'!$D9*Yhteenveto!$D13*Yhteenveto!$D18,0) -> 0 | DO67: =IF(DO62=$C23,'Elinkaaren loppu (C+D)'!$D9*Yhteenveto!$D13*Yhteenveto!$D18,0) -> 0 | DP67: =IF(DP62=$C23,'Elinkaaren loppu (C+D)'!$D9*Yhteenveto!$D13*Yhteenveto!$D18,0) -> 0 | DQ67: =IF(DQ62=$C23,'Elinkaaren loppu (C+D)'!$D9*Yhteenveto!$D13*Yhteenveto!$D18,0) -> 0 | DR67: =IF(DR62=$C23,'Elinkaaren loppu (C+D)'!$D9*Yhteenveto!$D13*Yhteenveto!$D18,0) -> 0 | DS67: =IF(DS62=$C23,'Elinkaaren loppu (C+D)'!$D9*Yhteenveto!$D13*Yhteenveto!$D18,0) -> 0 | DT67: =IF(DT62=$C23,'Elinkaaren loppu (C+D)'!$D9*Yhteenveto!$D13*Yhteenveto!$D18,0) -> 0 | DU67: =IF(DU62=$C23,'Elinkaaren loppu (C+D)'!$D9*Yhteenveto!$D13*Yhteenveto!$D18,0) -> 0 | DV67: =IF(DV62=$C23,'Elinkaaren loppu (C+D)'!$D9*Yhteenveto!$D13*Yhteenveto!$D18,0) -> 0 | DW67: =IF(DW62=$C23,'Elinkaaren loppu (C+D)'!$D9*Yhteenveto!$D13*Yhteenveto!$D18,0) -> 0 | DX67: =IF(DX62=$C23,'Elinkaaren loppu (C+D)'!$D9*Yhteenveto!$D13*Yhteenveto!$D18,0) -> 0 | DY67: =IF(DY62=$C23,'Elinkaaren loppu (C+D)'!$D9*Yhteenveto!$D13*Yhteenveto!$D18,0) -> 0 | DZ67: =IF(DZ62=$C23,'Elinkaaren loppu (C+D)'!$D9*Yhteenveto!$D13*Yhteenveto!$D18,0) -> 0 | EA67: =IF(EA62=$C23,'Elinkaaren loppu (C+D)'!$D9*Yhteenveto!$D13*Yhteenveto!$D18,0) -> 0 | EB67: =IF(EB62=$C23,'Elinkaaren loppu (C+D)'!$D9*Yhteenveto!$D13*Yhteenveto!$D18,0) -> 0 | EC67: =IF(EC62=$C23,'Elinkaaren loppu (C+D)'!$D9*Yhteenveto!$D13*Yhteenveto!$D18,0) -> 0 | ED67: =IF(ED62=$C23,'Elinkaaren loppu (C+D)'!$D9*Yhteenveto!$D13*Yhteenveto!$D18,0) -> 0 | EE67: =IF(EE62=$C23,'Elinkaaren loppu (C+D)'!$D9*Yhteenveto!$D13*Yhteenveto!$D18,0) -> 0 | EF67: =IF(EF62=$C23,'Elinkaaren loppu (C+D)'!EG9*Yhteenveto!EG13*Yhteenveto!EG18,"") ->  | EG67: =IF(EG62=$C23,'Elinkaaren loppu (C+D)'!EH9*Yhteenveto!EH13*Yhteenveto!EH18,"") ->  | EH67: =IF(EH62=$C23,'Elinkaaren loppu (C+D)'!EI9*Yhteenveto!EI13*Yhteenveto!EI18,"") ->  | EI67: =IF(EI62=$C23,'Elinkaaren loppu (C+D)'!EJ9*Yhteenveto!EJ13*Yhteenveto!EJ18,"") -> 
B68: Käytön vuotuinen energia | C68: 0 | D68: =HLOOKUP(ROUNDDOWN(D62,-1),$C5:$Q9,2,FALSE)*'Käyttö (B)'!$C12*Yhteenveto!$D13+HLOOKUP(ROUNDDOWN(D62,-1),$C5:$Q9,3,FALSE)*'Käyttö (B)'!$C13*Yhteenveto!$D13+HLOOKUP(ROUNDDOWN(D62,-1),$C5:$Q9,4,FALSE)*'Käyttö (B)'!$C14*Yhteenveto!$D13 ->  | E68: =HLOOKUP(ROUNDDOWN(E62,-1),$C5:$Q9,2,FALSE)*'Käyttö (B)'!$C12*Yhteenveto!$D13+HLOOKUP(ROUNDDOWN(E62,-1),$C5:$Q9,3,FALSE)*'Käyttö (B)'!$C13*Yhteenveto!$D13+HLOOKUP(ROUNDDOWN(E62,-1),$C5:$Q9,4,FALSE)*'Käyttö (B)'!$C14*Yhteenveto!$D13 ->  | F68: =HLOOKUP(ROUNDDOWN(F62,-1),$C5:$Q9,2,FALSE)*'Käyttö (B)'!$C12*Yhteenveto!$D13+HLOOKUP(ROUNDDOWN(F62,-1),$C5:$Q9,3,FALSE)*'Käyttö (B)'!$C13*Yhteenveto!$D13+HLOOKUP(ROUNDDOWN(F62,-1),$C5:$Q9,4,FALSE)*'Käyttö (B)'!$C14*Yhteenveto!$D13 ->  | G68: =HLOOKUP(ROUNDDOWN(G62,-1),$C5:$Q9,2,FALSE)*'Käyttö (B)'!$C12*Yhteenveto!$D13+HLOOKUP(ROUNDDOWN(G62,-1),$C5:$Q9,3,FALSE)*'Käyttö (B)'!$C13*Yhteenveto!$D13+HLOOKUP(ROUNDDOWN(G62,-1),$C5:$Q9,4,FALSE)*'Käyttö (B)'!$C14*Yhteenveto!$D13 ->  | H68: =HLOOKUP(ROUNDDOWN(H62,-1),$C5:$Q9,2,FALSE)*'Käyttö (B)'!$C12*Yhteenveto!$D13+HLOOKUP(ROUNDDOWN(H62,-1),$C5:$Q9,3,FALSE)*'Käyttö (B)'!$C13*Yhteenveto!$D13+HLOOKUP(ROUNDDOWN(H62,-1),$C5:$Q9,4,FALSE)*'Käyttö (B)'!$C14*Yhteenveto!$D13 ->  | I68: =HLOOKUP(ROUNDDOWN(I62,-1),$C5:$Q9,2,FALSE)*'Käyttö (B)'!$C12*Yhteenveto!$D13+HLOOKUP(ROUNDDOWN(I62,-1),$C5:$Q9,3,FALSE)*'Käyttö (B)'!$C13*Yhteenveto!$D13+HLOOKUP(ROUNDDOWN(I62,-1),$C5:$Q9,4,FALSE)*'Käyttö (B)'!$C14*Yhteenveto!$D13 ->  | J68: =HLOOKUP(ROUNDDOWN(J62,-1),$C5:$Q9,2,FALSE)*'Käyttö (B)'!$C12*Yhteenveto!$D13+HLOOKUP(ROUNDDOWN(J62,-1),$C5:$Q9,3,FALSE)*'Käyttö (B)'!$C13*Yhteenveto!$D13+HLOOKUP(ROUNDDOWN(J62,-1),$C5:$Q9,4,FALSE)*'Käyttö (B)'!$C14*Yhteenveto!$D13 ->  | K68: =HLOOKUP(ROUNDDOWN(K62,-1),$C5:$Q9,2,FALSE)*'Käyttö (B)'!$C12*Yhteenveto!$D13+HLOOKUP(ROUNDDOWN(K62,-1),$C5:$Q9,3,FALSE)*'Käyttö (B)'!$C13*Yhteenveto!$D13+HLOOKUP(ROUNDDOWN(K62,-1),$C5:$Q9,4,FALSE)*'Käyttö (B)'!$C14*Yhteenveto!$D13 ->  | L68: =HLOOKUP(ROUNDDOWN(L62,-1),$C5:$Q9,2,FALSE)*'Käyttö (B)'!$C12*Yhteenveto!$D13+HLOOKUP(ROUNDDOWN(L62,-1),$C5:$Q9,3,FALSE)*'Käyttö (B)'!$C13*Yhteenveto!$D13+HLOOKUP(ROUNDDOWN(L62,-1),$C5:$Q9,4,FALSE)*'Käyttö (B)'!$C14*Yhteenveto!$D13 ->  | M68: =HLOOKUP(ROUNDDOWN(M62,-1),$C5:$Q9,2,FALSE)*'Käyttö (B)'!$C12*Yhteenveto!$D13+HLOOKUP(ROUNDDOWN(M62,-1),$C5:$Q9,3,FALSE)*'Käyttö (B)'!$C13*Yhteenveto!$D13+HLOOKUP(ROUNDDOWN(M62,-1),$C5:$Q9,4,FALSE)*'Käyttö (B)'!$C14*Yhteenveto!$D13 ->  | N68: =HLOOKUP(ROUNDDOWN(N62,-1),$C5:$Q9,2,FALSE)*'Käyttö (B)'!$C12*Yhteenveto!$D13+HLOOKUP(ROUNDDOWN(N62,-1),$C5:$Q9,3,FALSE)*'Käyttö (B)'!$C13*Yhteenveto!$D13+HLOOKUP(ROUNDDOWN(N62,-1),$C5:$Q9,4,FALSE)*'Käyttö (B)'!$C14*Yhteenveto!$D13 ->  | O68: =HLOOKUP(ROUNDDOWN(O62,-1),$C5:$Q9,2,FALSE)*'Käyttö (B)'!$C12*Yhteenveto!$D13+HLOOKUP(ROUNDDOWN(O62,-1),$C5:$Q9,3,FALSE)*'Käyttö (B)'!$C13*Yhteenveto!$D13+HLOOKUP(ROUNDDOWN(O62,-1),$C5:$Q9,4,FALSE)*'Käyttö (B)'!$C14*Yhteenveto!$D13 ->  | P68: =HLOOKUP(ROUNDDOWN(P62,-1),$C5:$Q9,2,FALSE)*'Käyttö (B)'!$C12*Yhteenveto!$D13+HLOOKUP(ROUNDDOWN(P62,-1),$C5:$Q9,3,FALSE)*'Käyttö (B)'!$C13*Yhteenveto!$D13+HLOOKUP(ROUNDDOWN(P62,-1),$C5:$Q9,4,FALSE)*'Käyttö (B)'!$C14*Yhteenveto!$D13 ->  | Q68: =HLOOKUP(ROUNDDOWN(Q62,-1),$C5:$Q9,2,FALSE)*'Käyttö (B)'!$C12*Yhteenveto!$D13+HLOOKUP(ROUNDDOWN(Q62,-1),$C5:$Q9,3,FALSE)*'Käyttö (B)'!$C13*Yhteenveto!$D13+HLOOKUP(ROUNDDOWN(Q62,-1),$C5:$Q9,4,FALSE)*'Käyttö (B)'!$C14*Yhteenveto!$D13 ->  | R68: =HLOOKUP(ROUNDDOWN(R62,-1),$C5:$Q9,2,FALSE)*'Käyttö (B)'!$C12*Yhteenveto!$D13+HLOOKUP(ROUNDDOWN(R62,-1),$C5:$Q9,3,FALSE)*'Käyttö (B)'!$C13*Yhteenveto!$D13+HLOOKUP(ROUNDDOWN(R62,-1),$C5:$Q9,4,FALSE)*'Käyttö (B)'!$C14*Yhteenveto!$D13 ->  | S68: =HLOOKUP(ROUNDDOWN(S62,-1),$C5:$Q9,2,FALSE)*'Käyttö (B)'!$C12*Yhteenveto!$D13+HLOOKUP(ROUNDDOWN(S62,-1),$C5:$Q9,3,FALSE)*'Käyttö (B)'!$C13*Yhteenveto!$D13+HLOOKUP(ROUNDDOWN(S62,-1),$C5:$Q9,4,FALSE)*'Käyttö (B)'!$C14*Yhteenveto!$D13 ->  | T68: =HLOOKUP(ROUNDDOWN(T62,-1),$C5:$Q9,2,FALSE)*'Käyttö (B)'!$C12*Yhteenveto!$D13+HLOOKUP(ROUNDDOWN(T62,-1),$C5:$Q9,3,FALSE)*'Käyttö (B)'!$C13*Yhteenveto!$D13+HLOOKUP(ROUNDDOWN(T62,-1),$C5:$Q9,4,FALSE)*'Käyttö (B)'!$C14*Yhteenveto!$D13 ->  | U68: =HLOOKUP(ROUNDDOWN(U62,-1),$C5:$Q9,2,FALSE)*'Käyttö (B)'!$C12*Yhteenveto!$D13+HLOOKUP(ROUNDDOWN(U62,-1),$C5:$Q9,3,FALSE)*'Käyttö (B)'!$C13*Yhteenveto!$D13+HLOOKUP(ROUNDDOWN(U62,-1),$C5:$Q9,4,FALSE)*'Käyttö (B)'!$C14*Yhteenveto!$D13 ->  | V68: =HLOOKUP(ROUNDDOWN(V62,-1),$C5:$Q9,2,FALSE)*'Käyttö (B)'!$C12*Yhteenveto!$D13+HLOOKUP(ROUNDDOWN(V62,-1),$C5:$Q9,3,FALSE)*'Käyttö (B)'!$C13*Yhteenveto!$D13+HLOOKUP(ROUNDDOWN(V62,-1),$C5:$Q9,4,FALSE)*'Käyttö (B)'!$C14*Yhteenveto!$D13 ->  | W68: =HLOOKUP(ROUNDDOWN(W62,-1),$C5:$Q9,2,FALSE)*'Käyttö (B)'!$C12*Yhteenveto!$D13+HLOOKUP(ROUNDDOWN(W62,-1),$C5:$Q9,3,FALSE)*'Käyttö (B)'!$C13*Yhteenveto!$D13+HLOOKUP(ROUNDDOWN(W62,-1),$C5:$Q9,4,FALSE)*'Käyttö (B)'!$C14*Yhteenveto!$D13 ->  | X68: =HLOOKUP(ROUNDDOWN(X62,-1),$C5:$Q9,2,FALSE)*'Käyttö (B)'!$C12*Yhteenveto!$D13+HLOOKUP(ROUNDDOWN(X62,-1),$C5:$Q9,3,FALSE)*'Käyttö (B)'!$C13*Yhteenveto!$D13+HLOOKUP(ROUNDDOWN(X62,-1),$C5:$Q9,4,FALSE)*'Käyttö (B)'!$C14*Yhteenveto!$D13 ->  | Y68: =HLOOKUP(ROUNDDOWN(Y62,-1),$C5:$Q9,2,FALSE)*'Käyttö (B)'!$C12*Yhteenveto!$D13+HLOOKUP(ROUNDDOWN(Y62,-1),$C5:$Q9,3,FALSE)*'Käyttö (B)'!$C13*Yhteenveto!$D13+HLOOKUP(ROUNDDOWN(Y62,-1),$C5:$Q9,4,FALSE)*'Käyttö (B)'!$C14*Yhteenveto!$D13 ->  | Z68: =HLOOKUP(ROUNDDOWN(Z62,-1),$C5:$Q9,2,FALSE)*'Käyttö (B)'!$C12*Yhteenveto!$D13+HLOOKUP(ROUNDDOWN(Z62,-1),$C5:$Q9,3,FALSE)*'Käyttö (B)'!$C13*Yhteenveto!$D13+HLOOKUP(ROUNDDOWN(Z62,-1),$C5:$Q9,4,FALSE)*'Käyttö (B)'!$C14*Yhteenveto!$D13 ->  | AA68: =HLOOKUP(ROUNDDOWN(AA62,-1),$C5:$Q9,2,FALSE)*'Käyttö (B)'!$C12*Yhteenveto!$D13+HLOOKUP(ROUNDDOWN(AA62,-1),$C5:$Q9,3,FALSE)*'Käyttö (B)'!$C13*Yhteenveto!$D13+HLOOKUP(ROUNDDOWN(AA62,-1),$C5:$Q9,4,FALSE)*'Käyttö (B)'!$C14*Yhteenveto!$D13 ->  | AB68: =HLOOKUP(ROUNDDOWN(AB62,-1),$C5:$Q9,2,FALSE)*'Käyttö (B)'!$C12*Yhteenveto!$D13+HLOOKUP(ROUNDDOWN(AB62,-1),$C5:$Q9,3,FALSE)*'Käyttö (B)'!$C13*Yhteenveto!$D13+HLOOKUP(ROUNDDOWN(AB62,-1),$C5:$Q9,4,FALSE)*'Käyttö (B)'!$C14*Yhteenveto!$D13 ->  | AC68: =HLOOKUP(ROUNDDOWN(AC62,-1),$C5:$Q9,2,FALSE)*'Käyttö (B)'!$C12*Yhteenveto!$D13+HLOOKUP(ROUNDDOWN(AC62,-1),$C5:$Q9,3,FALSE)*'Käyttö (B)'!$C13*Yhteenveto!$D13+HLOOKUP(ROUNDDOWN(AC62,-1),$C5:$Q9,4,FALSE)*'Käyttö (B)'!$C14*Yhteenveto!$D13 ->  | AD68: =HLOOKUP(ROUNDDOWN(AD62,-1),$C5:$Q9,2,FALSE)*'Käyttö (B)'!$C12*Yhteenveto!$D13+HLOOKUP(ROUNDDOWN(AD62,-1),$C5:$Q9,3,FALSE)*'Käyttö (B)'!$C13*Yhteenveto!$D13+HLOOKUP(ROUNDDOWN(AD62,-1),$C5:$Q9,4,FALSE)*'Käyttö (B)'!$C14*Yhteenveto!$D13 ->  | AE68: =HLOOKUP(ROUNDDOWN(AE62,-1),$C5:$Q9,2,FALSE)*'Käyttö (B)'!$C12*Yhteenveto!$D13+HLOOKUP(ROUNDDOWN(AE62,-1),$C5:$Q9,3,FALSE)*'Käyttö (B)'!$C13*Yhteenveto!$D13+HLOOKUP(ROUNDDOWN(AE62,-1),$C5:$Q9,4,FALSE)*'Käyttö (B)'!$C14*Yhteenveto!$D13 ->  | AF68: =HLOOKUP(ROUNDDOWN(AF62,-1),$C5:$Q9,2,FALSE)*'Käyttö (B)'!$C12*Yhteenveto!$D13+HLOOKUP(ROUNDDOWN(AF62,-1),$C5:$Q9,3,FALSE)*'Käyttö (B)'!$C13*Yhteenveto!$D13+HLOOKUP(ROUNDDOWN(AF62,-1),$C5:$Q9,4,FALSE)*'Käyttö (B)'!$C14*Yhteenveto!$D13 ->  | AG68: =HLOOKUP(ROUNDDOWN(AG62,-1),$C5:$Q9,2,FALSE)*'Käyttö (B)'!$C12*Yhteenveto!$D13+HLOOKUP(ROUNDDOWN(AG62,-1),$C5:$Q9,3,FALSE)*'Käyttö (B)'!$C13*Yhteenveto!$D13+HLOOKUP(ROUNDDOWN(AG62,-1),$C5:$Q9,4,FALSE)*'Käyttö (B)'!$C14*Yhteenveto!$D13 ->  | AH68: =HLOOKUP(ROUNDDOWN(AH62,-1),$C5:$Q9,2,FALSE)*'Käyttö (B)'!$C12*Yhteenveto!$D13+HLOOKUP(ROUNDDOWN(AH62,-1),$C5:$Q9,3,FALSE)*'Käyttö (B)'!$C13*Yhteenveto!$D13+HLOOKUP(ROUNDDOWN(AH62,-1),$C5:$Q9,4,FALSE)*'Käyttö (B)'!$C14*Yhteenveto!$D13 ->  | AI68: =HLOOKUP(ROUNDDOWN(AI62,-1),$C5:$Q9,2,FALSE)*'Käyttö (B)'!$C12*Yhteenveto!$D13+HLOOKUP(ROUNDDOWN(AI62,-1),$C5:$Q9,3,FALSE)*'Käyttö (B)'!$C13*Yhteenveto!$D13+HLOOKUP(ROUNDDOWN(AI62,-1),$C5:$Q9,4,FALSE)*'Käyttö (B)'!$C14*Yhteenveto!$D13 ->  | AJ68: =HLOOKUP(ROUNDDOWN(AJ62,-1),$C5:$Q9,2,FALSE)*'Käyttö (B)'!$C12*Yhteenveto!$D13+HLOOKUP(ROUNDDOWN(AJ62,-1),$C5:$Q9,3,FALSE)*'Käyttö (B)'!$C13*Yhteenveto!$D13+HLOOKUP(ROUNDDOWN(AJ62,-1),$C5:$Q9,4,FALSE)*'Käyttö (B)'!$C14*Yhteenveto!$D13 ->  | AK68: =HLOOKUP(ROUNDDOWN(AK62,-1),$C5:$Q9,2,FALSE)*'Käyttö (B)'!$C12*Yhteenveto!$D13+HLOOKUP(ROUNDDOWN(AK62,-1),$C5:$Q9,3,FALSE)*'Käyttö (B)'!$C13*Yhteenveto!$D13+HLOOKUP(ROUNDDOWN(AK62,-1),$C5:$Q9,4,FALSE)*'Käyttö (B)'!$C14*Yhteenveto!$D13 ->  | AL68: =HLOOKUP(ROUNDDOWN(AL62,-1),$C5:$Q9,2,FALSE)*'Käyttö (B)'!$C12*Yhteenveto!$D13+HLOOKUP(ROUNDDOWN(AL62,-1),$C5:$Q9,3,FALSE)*'Käyttö (B)'!$C13*Yhteenveto!$D13+HLOOKUP(ROUNDDOWN(AL62,-1),$C5:$Q9,4,FALSE)*'Käyttö (B)'!$C14*Yhteenveto!$D13 ->  | AM68: =HLOOKUP(ROUNDDOWN(AM62,-1),$C5:$Q9,2,FALSE)*'Käyttö (B)'!$C12*Yhteenveto!$D13+HLOOKUP(ROUNDDOWN(AM62,-1),$C5:$Q9,3,FALSE)*'Käyttö (B)'!$C13*Yhteenveto!$D13+HLOOKUP(ROUNDDOWN(AM62,-1),$C5:$Q9,4,FALSE)*'Käyttö (B)'!$C14*Yhteenveto!$D13 ->  | AN68: =HLOOKUP(ROUNDDOWN(AN62,-1),$C5:$Q9,2,FALSE)*'Käyttö (B)'!$C12*Yhteenveto!$D13+HLOOKUP(ROUNDDOWN(AN62,-1),$C5:$Q9,3,FALSE)*'Käyttö (B)'!$C13*Yhteenveto!$D13+HLOOKUP(ROUNDDOWN(AN62,-1),$C5:$Q9,4,FALSE)*'Käyttö (B)'!$C14*Yhteenveto!$D13 ->  | AO68: =HLOOKUP(ROUNDDOWN(AO62,-1),$C5:$Q9,2,FALSE)*'Käyttö (B)'!$C12*Yhteenveto!$D13+HLOOKUP(ROUNDDOWN(AO62,-1),$C5:$Q9,3,FALSE)*'Käyttö (B)'!$C13*Yhteenveto!$D13+HLOOKUP(ROUNDDOWN(AO62,-1),$C5:$Q9,4,FALSE)*'Käyttö (B)'!$C14*Yhteenveto!$D13 ->  | AP68: =HLOOKUP(ROUNDDOWN(AP62,-1),$C5:$Q9,2,FALSE)*'Käyttö (B)'!$C12*Yhteenveto!$D13+HLOOKUP(ROUNDDOWN(AP62,-1),$C5:$Q9,3,FALSE)*'Käyttö (B)'!$C13*Yhteenveto!$D13+HLOOKUP(ROUNDDOWN(AP62,-1),$C5:$Q9,4,FALSE)*'Käyttö (B)'!$C14*Yhteenveto!$D13 ->  | AQ68: =HLOOKUP(ROUNDDOWN(AQ62,-1),$C5:$Q9,2,FALSE)*'Käyttö (B)'!$C12*Yhteenveto!$D13+HLOOKUP(ROUNDDOWN(AQ62,-1),$C5:$Q9,3,FALSE)*'Käyttö (B)'!$C13*Yhteenveto!$D13+HLOOKUP(ROUNDDOWN(AQ62,-1),$C5:$Q9,4,FALSE)*'Käyttö (B)'!$C14*Yhteenveto!$D13 ->  | AR68: =HLOOKUP(ROUNDDOWN(AR62,-1),$C5:$Q9,2,FALSE)*'Käyttö (B)'!$C12*Yhteenveto!$D13+HLOOKUP(ROUNDDOWN(AR62,-1),$C5:$Q9,3,FALSE)*'Käyttö (B)'!$C13*Yhteenveto!$D13+HLOOKUP(ROUNDDOWN(AR62,-1),$C5:$Q9,4,FALSE)*'Käyttö (B)'!$C14*Yhteenveto!$D13 ->  | AS68: =HLOOKUP(ROUNDDOWN(AS62,-1),$C5:$Q9,2,FALSE)*'Käyttö (B)'!$C12*Yhteenveto!$D13+HLOOKUP(ROUNDDOWN(AS62,-1),$C5:$Q9,3,FALSE)*'Käyttö (B)'!$C13*Yhteenveto!$D13+HLOOKUP(ROUNDDOWN(AS62,-1),$C5:$Q9,4,FALSE)*'Käyttö (B)'!$C14*Yhteenveto!$D13 ->  | AT68: =HLOOKUP(ROUNDDOWN(AT62,-1),$C5:$Q9,2,FALSE)*'Käyttö (B)'!$C12*Yhteenveto!$D13+HLOOKUP(ROUNDDOWN(AT62,-1),$C5:$Q9,3,FALSE)*'Käyttö (B)'!$C13*Yhteenveto!$D13+HLOOKUP(ROUNDDOWN(AT62,-1),$C5:$Q9,4,FALSE)*'Käyttö (B)'!$C14*Yhteenveto!$D13 ->  | AU68: =HLOOKUP(ROUNDDOWN(AU62,-1),$C5:$Q9,2,FALSE)*'Käyttö (B)'!$C12*Yhteenveto!$D13+HLOOKUP(ROUNDDOWN(AU62,-1),$C5:$Q9,3,FALSE)*'Käyttö (B)'!$C13*Yhteenveto!$D13+HLOOKUP(ROUNDDOWN(AU62,-1),$C5:$Q9,4,FALSE)*'Käyttö (B)'!$C14*Yhteenveto!$D13 ->  | AV68: =HLOOKUP(ROUNDDOWN(AV62,-1),$C5:$Q9,2,FALSE)*'Käyttö (B)'!$C12*Yhteenveto!$D13+HLOOKUP(ROUNDDOWN(AV62,-1),$C5:$Q9,3,FALSE)*'Käyttö (B)'!$C13*Yhteenveto!$D13+HLOOKUP(ROUNDDOWN(AV62,-1),$C5:$Q9,4,FALSE)*'Käyttö (B)'!$C14*Yhteenveto!$D13 ->  | AW68: =HLOOKUP(ROUNDDOWN(AW62,-1),$C5:$Q9,2,FALSE)*'Käyttö (B)'!$C12*Yhteenveto!$D13+HLOOKUP(ROUNDDOWN(AW62,-1),$C5:$Q9,3,FALSE)*'Käyttö (B)'!$C13*Yhteenveto!$D13+HLOOKUP(ROUNDDOWN(AW62,-1),$C5:$Q9,4,FALSE)*'Käyttö (B)'!$C14*Yhteenveto!$D13 ->  | AX68: =HLOOKUP(ROUNDDOWN(AX62,-1),$C5:$Q9,2,FALSE)*'Käyttö (B)'!$C12*Yhteenveto!$D13+HLOOKUP(ROUNDDOWN(AX62,-1),$C5:$Q9,3,FALSE)*'Käyttö (B)'!$C13*Yhteenveto!$D13+HLOOKUP(ROUNDDOWN(AX62,-1),$C5:$Q9,4,FALSE)*'Käyttö (B)'!$C14*Yhteenveto!$D13 ->  | AY68: =HLOOKUP(ROUNDDOWN(AY62,-1),$C5:$Q9,2,FALSE)*'Käyttö (B)'!$C12*Yhteenveto!$D13+HLOOKUP(ROUNDDOWN(AY62,-1),$C5:$Q9,3,FALSE)*'Käyttö (B)'!$C13*Yhteenveto!$D13+HLOOKUP(ROUNDDOWN(AY62,-1),$C5:$Q9,4,FALSE)*'Käyttö (B)'!$C14*Yhteenveto!$D13 ->  | AZ68: =HLOOKUP(ROUNDDOWN(AZ62,-1),$C5:$Q9,2,FALSE)*'Käyttö (B)'!$C12*Yhteenveto!$D13+HLOOKUP(ROUNDDOWN(AZ62,-1),$C5:$Q9,3,FALSE)*'Käyttö (B)'!$C13*Yhteenveto!$D13+HLOOKUP(ROUNDDOWN(AZ62,-1),$C5:$Q9,4,FALSE)*'Käyttö (B)'!$C14*Yhteenveto!$D13 ->  | BA68: =HLOOKUP(ROUNDDOWN(BA62,-1),$C5:$Q9,2,FALSE)*'Käyttö (B)'!$C12*Yhteenveto!$D13+HLOOKUP(ROUNDDOWN(BA62,-1),$C5:$Q9,3,FALSE)*'Käyttö (B)'!$C13*Yhteenveto!$D13+HLOOKUP(ROUNDDOWN(BA62,-1),$C5:$Q9,4,FALSE)*'Käyttö (B)'!$C14*Yhteenveto!$D13 ->  | BB68: =HLOOKUP(ROUNDDOWN(BB62,-1),$C5:$Q9,2,FALSE)*'Käyttö (B)'!$C12*Yhteenveto!$D13+HLOOKUP(ROUNDDOWN(BB62,-1),$C5:$Q9,3,FALSE)*'Käyttö (B)'!$C13*Yhteenveto!$D13+HLOOKUP(ROUNDDOWN(BB62,-1),$C5:$Q9,4,FALSE)*'Käyttö (B)'!$C14*Yhteenveto!$D13 ->  | BC68: =HLOOKUP(ROUNDDOWN(BC62,-1),$C5:$Q9,2,FALSE)*'Käyttö (B)'!$C12*Yhteenveto!$D13+HLOOKUP(ROUNDDOWN(BC62,-1),$C5:$Q9,3,FALSE)*'Käyttö (B)'!$C13*Yhteenveto!$D13+HLOOKUP(ROUNDDOWN(BC62,-1),$C5:$Q9,4,FALSE)*'Käyttö (B)'!$C14*Yhteenveto!$D13 ->  | BD68: =HLOOKUP(ROUNDDOWN(BD62,-1),$C5:$Q9,2,FALSE)*'Käyttö (B)'!$C12*Yhteenveto!$D13+HLOOKUP(ROUNDDOWN(BD62,-1),$C5:$Q9,3,FALSE)*'Käyttö (B)'!$C13*Yhteenveto!$D13+HLOOKUP(ROUNDDOWN(BD62,-1),$C5:$Q9,4,FALSE)*'Käyttö (B)'!$C14*Yhteenveto!$D13 ->  | BE68: =HLOOKUP(ROUNDDOWN(BE62,-1),$C5:$Q9,2,FALSE)*'Käyttö (B)'!$C12*Yhteenveto!$D13+HLOOKUP(ROUNDDOWN(BE62,-1),$C5:$Q9,3,FALSE)*'Käyttö (B)'!$C13*Yhteenveto!$D13+HLOOKUP(ROUNDDOWN(BE62,-1),$C5:$Q9,4,FALSE)*'Käyttö (B)'!$C14*Yhteenveto!$D13 ->  | BF68: =HLOOKUP(ROUNDDOWN(BF62,-1),$C5:$Q9,2,FALSE)*'Käyttö (B)'!$C12*Yhteenveto!$D13+HLOOKUP(ROUNDDOWN(BF62,-1),$C5:$Q9,3,FALSE)*'Käyttö (B)'!$C13*Yhteenveto!$D13+HLOOKUP(ROUNDDOWN(BF62,-1),$C5:$Q9,4,FALSE)*'Käyttö (B)'!$C14*Yhteenveto!$D13 ->  | BG68: =HLOOKUP(ROUNDDOWN(BG62,-1),$C5:$Q9,2,FALSE)*'Käyttö (B)'!$C12*Yhteenveto!$D13+HLOOKUP(ROUNDDOWN(BG62,-1),$C5:$Q9,3,FALSE)*'Käyttö (B)'!$C13*Yhteenveto!$D13+HLOOKUP(ROUNDDOWN(BG62,-1),$C5:$Q9,4,FALSE)*'Käyttö (B)'!$C14*Yhteenveto!$D13 ->  | BH68: =HLOOKUP(ROUNDDOWN(BH62,-1),$C5:$Q9,2,FALSE)*'Käyttö (B)'!$C12*Yhteenveto!$D13+HLOOKUP(ROUNDDOWN(BH62,-1),$C5:$Q9,3,FALSE)*'Käyttö (B)'!$C13*Yhteenveto!$D13+HLOOKUP(ROUNDDOWN(BH62,-1),$C5:$Q9,4,FALSE)*'Käyttö (B)'!$C14*Yhteenveto!$D13 ->  | BI68: =HLOOKUP(ROUNDDOWN(BI62,-1),$C5:$Q9,2,FALSE)*'Käyttö (B)'!$C12*Yhteenveto!$D13+HLOOKUP(ROUNDDOWN(BI62,-1),$C5:$Q9,3,FALSE)*'Käyttö (B)'!$C13*Yhteenveto!$D13+HLOOKUP(ROUNDDOWN(BI62,-1),$C5:$Q9,4,FALSE)*'Käyttö (B)'!$C14*Yhteenveto!$D13 ->  | BJ68: =HLOOKUP(ROUNDDOWN(BJ62,-1),$C5:$Q9,2,FALSE)*'Käyttö (B)'!$C12*Yhteenveto!$D13+HLOOKUP(ROUNDDOWN(BJ62,-1),$C5:$Q9,3,FALSE)*'Käyttö (B)'!$C13*Yhteenveto!$D13+HLOOKUP(ROUNDDOWN(BJ62,-1),$C5:$Q9,4,FALSE)*'Käyttö (B)'!$C14*Yhteenveto!$D13 ->  | BK68: =HLOOKUP(ROUNDDOWN(BK62,-1),$C5:$Q9,2,FALSE)*'Käyttö (B)'!$C12*Yhteenveto!$D13+HLOOKUP(ROUNDDOWN(BK62,-1),$C5:$Q9,3,FALSE)*'Käyttö (B)'!$C13*Yhteenveto!$D13+HLOOKUP(ROUNDDOWN(BK62,-1),$C5:$Q9,4,FALSE)*'Käyttö (B)'!$C14*Yhteenveto!$D13 ->  | BL68: =HLOOKUP(ROUNDDOWN(BL62,-1),$C5:$Q9,2,FALSE)*'Käyttö (B)'!$C12*Yhteenveto!$D13+HLOOKUP(ROUNDDOWN(BL62,-1),$C5:$Q9,3,FALSE)*'Käyttö (B)'!$C13*Yhteenveto!$D13+HLOOKUP(ROUNDDOWN(BL62,-1),$C5:$Q9,4,FALSE)*'Käyttö (B)'!$C14*Yhteenveto!$D13 ->  | BM68: =HLOOKUP(ROUNDDOWN(BM62,-1),$C5:$Q9,2,FALSE)*'Käyttö (B)'!$C12*Yhteenveto!$D13+HLOOKUP(ROUNDDOWN(BM62,-1),$C5:$Q9,3,FALSE)*'Käyttö (B)'!$C13*Yhteenveto!$D13+HLOOKUP(ROUNDDOWN(BM62,-1),$C5:$Q9,4,FALSE)*'Käyttö (B)'!$C14*Yhteenveto!$D13 ->  | BN68: =HLOOKUP(ROUNDDOWN(BN62,-1),$C5:$Q9,2,FALSE)*'Käyttö (B)'!$C12*Yhteenveto!$D13+HLOOKUP(ROUNDDOWN(BN62,-1),$C5:$Q9,3,FALSE)*'Käyttö (B)'!$C13*Yhteenveto!$D13+HLOOKUP(ROUNDDOWN(BN62,-1),$C5:$Q9,4,FALSE)*'Käyttö (B)'!$C14*Yhteenveto!$D13 ->  | BO68: =HLOOKUP(ROUNDDOWN(BO62,-1),$C5:$Q9,2,FALSE)*'Käyttö (B)'!$C12*Yhteenveto!$D13+HLOOKUP(ROUNDDOWN(BO62,-1),$C5:$Q9,3,FALSE)*'Käyttö (B)'!$C13*Yhteenveto!$D13+HLOOKUP(ROUNDDOWN(BO62,-1),$C5:$Q9,4,FALSE)*'Käyttö (B)'!$C14*Yhteenveto!$D13 ->  | BP68: =HLOOKUP(ROUNDDOWN(BP62,-1),$C5:$Q9,2,FALSE)*'Käyttö (B)'!$C12*Yhteenveto!$D13+HLOOKUP(ROUNDDOWN(BP62,-1),$C5:$Q9,3,FALSE)*'Käyttö (B)'!$C13*Yhteenveto!$D13+HLOOKUP(ROUNDDOWN(BP62,-1),$C5:$Q9,4,FALSE)*'Käyttö (B)'!$C14*Yhteenveto!$D13 ->  | BQ68: =HLOOKUP(ROUNDDOWN(BQ62,-1),$C5:$Q9,2,FALSE)*'Käyttö (B)'!$C12*Yhteenveto!$D13+HLOOKUP(ROUNDDOWN(BQ62,-1),$C5:$Q9,3,FALSE)*'Käyttö (B)'!$C13*Yhteenveto!$D13+HLOOKUP(ROUNDDOWN(BQ62,-1),$C5:$Q9,4,FALSE)*'Käyttö (B)'!$C14*Yhteenveto!$D13 ->  | BR68: =HLOOKUP(ROUNDDOWN(BR62,-1),$C5:$Q9,2,FALSE)*'Käyttö (B)'!$C12*Yhteenveto!$D13+HLOOKUP(ROUNDDOWN(BR62,-1),$C5:$Q9,3,FALSE)*'Käyttö (B)'!$C13*Yhteenveto!$D13+HLOOKUP(ROUNDDOWN(BR62,-1),$C5:$Q9,4,FALSE)*'Käyttö (B)'!$C14*Yhteenveto!$D13 ->  | BS68: =HLOOKUP(ROUNDDOWN(BS62,-1),$C5:$Q9,2,FALSE)*'Käyttö (B)'!$C12*Yhteenveto!$D13+HLOOKUP(ROUNDDOWN(BS62,-1),$C5:$Q9,3,FALSE)*'Käyttö (B)'!$C13*Yhteenveto!$D13+HLOOKUP(ROUNDDOWN(BS62,-1),$C5:$Q9,4,FALSE)*'Käyttö (B)'!$C14*Yhteenveto!$D13 ->  | BT68: =HLOOKUP(ROUNDDOWN(BT62,-1),$C5:$Q9,2,FALSE)*'Käyttö (B)'!$C12*Yhteenveto!$D13+HLOOKUP(ROUNDDOWN(BT62,-1),$C5:$Q9,3,FALSE)*'Käyttö (B)'!$C13*Yhteenveto!$D13+HLOOKUP(ROUNDDOWN(BT62,-1),$C5:$Q9,4,FALSE)*'Käyttö (B)'!$C14*Yhteenveto!$D13 ->  | BU68: =HLOOKUP(ROUNDDOWN(BU62,-1),$C5:$Q9,2,FALSE)*'Käyttö (B)'!$C12*Yhteenveto!$D13+HLOOKUP(ROUNDDOWN(BU62,-1),$C5:$Q9,3,FALSE)*'Käyttö (B)'!$C13*Yhteenveto!$D13+HLOOKUP(ROUNDDOWN(BU62,-1),$C5:$Q9,4,FALSE)*'Käyttö (B)'!$C14*Yhteenveto!$D13 ->  | BV68: =HLOOKUP(ROUNDDOWN(BV62,-1),$C5:$Q9,2,FALSE)*'Käyttö (B)'!$C12*Yhteenveto!$D13+HLOOKUP(ROUNDDOWN(BV62,-1),$C5:$Q9,3,FALSE)*'Käyttö (B)'!$C13*Yhteenveto!$D13+HLOOKUP(ROUNDDOWN(BV62,-1),$C5:$Q9,4,FALSE)*'Käyttö (B)'!$C14*Yhteenveto!$D13 ->  | BW68: =HLOOKUP(ROUNDDOWN(BW62,-1),$C5:$Q9,2,FALSE)*'Käyttö (B)'!$C12*Yhteenveto!$D13+HLOOKUP(ROUNDDOWN(BW62,-1),$C5:$Q9,3,FALSE)*'Käyttö (B)'!$C13*Yhteenveto!$D13+HLOOKUP(ROUNDDOWN(BW62,-1),$C5:$Q9,4,FALSE)*'Käyttö (B)'!$C14*Yhteenveto!$D13 ->  | BX68: =HLOOKUP(ROUNDDOWN(BX62,-1),$C5:$Q9,2,FALSE)*'Käyttö (B)'!$C12*Yhteenveto!$D13+HLOOKUP(ROUNDDOWN(BX62,-1),$C5:$Q9,3,FALSE)*'Käyttö (B)'!$C13*Yhteenveto!$D13+HLOOKUP(ROUNDDOWN(BX62,-1),$C5:$Q9,4,FALSE)*'Käyttö (B)'!$C14*Yhteenveto!$D13 ->  | BY68: =HLOOKUP(ROUNDDOWN(BY62,-1),$C5:$Q9,2,FALSE)*'Käyttö (B)'!$C12*Yhteenveto!$D13+HLOOKUP(ROUNDDOWN(BY62,-1),$C5:$Q9,3,FALSE)*'Käyttö (B)'!$C13*Yhteenveto!$D13+HLOOKUP(ROUNDDOWN(BY62,-1),$C5:$Q9,4,FALSE)*'Käyttö (B)'!$C14*Yhteenveto!$D13 ->  | BZ68: =HLOOKUP(ROUNDDOWN(BZ62,-1),$C5:$Q9,2,FALSE)*'Käyttö (B)'!$C12*Yhteenveto!$D13+HLOOKUP(ROUNDDOWN(BZ62,-1),$C5:$Q9,3,FALSE)*'Käyttö (B)'!$C13*Yhteenveto!$D13+HLOOKUP(ROUNDDOWN(BZ62,-1),$C5:$Q9,4,FALSE)*'Käyttö (B)'!$C14*Yhteenveto!$D13 ->  | CA68: =HLOOKUP(ROUNDDOWN(CA62,-1),$C5:$Q9,2,FALSE)*'Käyttö (B)'!$C12*Yhteenveto!$D13+HLOOKUP(ROUNDDOWN(CA62,-1),$C5:$Q9,3,FALSE)*'Käyttö (B)'!$C13*Yhteenveto!$D13+HLOOKUP(ROUNDDOWN(CA62,-1),$C5:$Q9,4,FALSE)*'Käyttö (B)'!$C14*Yhteenveto!$D13 ->  | CB68: =HLOOKUP(ROUNDDOWN(CB62,-1),$C5:$Q9,2,FALSE)*'Käyttö (B)'!$C12*Yhteenveto!$D13+HLOOKUP(ROUNDDOWN(CB62,-1),$C5:$Q9,3,FALSE)*'Käyttö (B)'!$C13*Yhteenveto!$D13+HLOOKUP(ROUNDDOWN(CB62,-1),$C5:$Q9,4,FALSE)*'Käyttö (B)'!$C14*Yhteenveto!$D13 ->  | CC68: =HLOOKUP(ROUNDDOWN(CC62,-1),$C5:$Q9,2,FALSE)*'Käyttö (B)'!$C12*Yhteenveto!$D13+HLOOKUP(ROUNDDOWN(CC62,-1),$C5:$Q9,3,FALSE)*'Käyttö (B)'!$C13*Yhteenveto!$D13+HLOOKUP(ROUNDDOWN(CC62,-1),$C5:$Q9,4,FALSE)*'Käyttö (B)'!$C14*Yhteenveto!$D13 ->  | CD68: =HLOOKUP(ROUNDDOWN(CD62,-1),$C5:$Q9,2,FALSE)*'Käyttö (B)'!$C12*Yhteenveto!$D13+HLOOKUP(ROUNDDOWN(CD62,-1),$C5:$Q9,3,FALSE)*'Käyttö (B)'!$C13*Yhteenveto!$D13+HLOOKUP(ROUNDDOWN(CD62,-1),$C5:$Q9,4,FALSE)*'Käyttö (B)'!$C14*Yhteenveto!$D13 ->  | CE68: =HLOOKUP(ROUNDDOWN(CE62,-1),$C5:$Q9,2,FALSE)*'Käyttö (B)'!$C12*Yhteenveto!$D13+HLOOKUP(ROUNDDOWN(CE62,-1),$C5:$Q9,3,FALSE)*'Käyttö (B)'!$C13*Yhteenveto!$D13+HLOOKUP(ROUNDDOWN(CE62,-1),$C5:$Q9,4,FALSE)*'Käyttö (B)'!$C14*Yhteenveto!$D13 ->  | CF68: =HLOOKUP(ROUNDDOWN(CF62,-1),$C5:$Q9,2,FALSE)*'Käyttö (B)'!$C12*Yhteenveto!$D13+HLOOKUP(ROUNDDOWN(CF62,-1),$C5:$Q9,3,FALSE)*'Käyttö (B)'!$C13*Yhteenveto!$D13+HLOOKUP(ROUNDDOWN(CF62,-1),$C5:$Q9,4,FALSE)*'Käyttö (B)'!$C14*Yhteenveto!$D13 ->  | CG68: =HLOOKUP(ROUNDDOWN(CG62,-1),$C5:$Q9,2,FALSE)*'Käyttö (B)'!$C12*Yhteenveto!$D13+HLOOKUP(ROUNDDOWN(CG62,-1),$C5:$Q9,3,FALSE)*'Käyttö (B)'!$C13*Yhteenveto!$D13+HLOOKUP(ROUNDDOWN(CG62,-1),$C5:$Q9,4,FALSE)*'Käyttö (B)'!$C14*Yhteenveto!$D13 ->  | CH68: =HLOOKUP(ROUNDDOWN(CH62,-1),$C5:$Q9,2,FALSE)*'Käyttö (B)'!$C12*Yhteenveto!$D13+HLOOKUP(ROUNDDOWN(CH62,-1),$C5:$Q9,3,FALSE)*'Käyttö (B)'!$C13*Yhteenveto!$D13+HLOOKUP(ROUNDDOWN(CH62,-1),$C5:$Q9,4,FALSE)*'Käyttö (B)'!$C14*Yhteenveto!$D13 ->  | CI68: =HLOOKUP(ROUNDDOWN(CI62,-1),$C5:$Q9,2,FALSE)*'Käyttö (B)'!$C12*Yhteenveto!$D13+HLOOKUP(ROUNDDOWN(CI62,-1),$C5:$Q9,3,FALSE)*'Käyttö (B)'!$C13*Yhteenveto!$D13+HLOOKUP(ROUNDDOWN(CI62,-1),$C5:$Q9,4,FALSE)*'Käyttö (B)'!$C14*Yhteenveto!$D13 ->  | CJ68: =HLOOKUP(ROUNDDOWN(CJ62,-1),$C5:$Q9,2,FALSE)*'Käyttö (B)'!$C12*Yhteenveto!$D13+HLOOKUP(ROUNDDOWN(CJ62,-1),$C5:$Q9,3,FALSE)*'Käyttö (B)'!$C13*Yhteenveto!$D13+HLOOKUP(ROUNDDOWN(CJ62,-1),$C5:$Q9,4,FALSE)*'Käyttö (B)'!$C14*Yhteenveto!$D13 ->  | CK68: =HLOOKUP(ROUNDDOWN(CK62,-1),$C5:$Q9,2,FALSE)*'Käyttö (B)'!$C12*Yhteenveto!$D13+HLOOKUP(ROUNDDOWN(CK62,-1),$C5:$Q9,3,FALSE)*'Käyttö (B)'!$C13*Yhteenveto!$D13+HLOOKUP(ROUNDDOWN(CK62,-1),$C5:$Q9,4,FALSE)*'Käyttö (B)'!$C14*Yhteenveto!$D13 ->  | CL68: =HLOOKUP(ROUNDDOWN(CL62,-1),$C5:$Q9,2,FALSE)*'Käyttö (B)'!$C12*Yhteenveto!$D13+HLOOKUP(ROUNDDOWN(CL62,-1),$C5:$Q9,3,FALSE)*'Käyttö (B)'!$C13*Yhteenveto!$D13+HLOOKUP(ROUNDDOWN(CL62,-1),$C5:$Q9,4,FALSE)*'Käyttö (B)'!$C14*Yhteenveto!$D13 ->  | CM68: =HLOOKUP(ROUNDDOWN(CM62,-1),$C5:$Q9,2,FALSE)*'Käyttö (B)'!$C12*Yhteenveto!$D13+HLOOKUP(ROUNDDOWN(CM62,-1),$C5:$Q9,3,FALSE)*'Käyttö (B)'!$C13*Yhteenveto!$D13+HLOOKUP(ROUNDDOWN(CM62,-1),$C5:$Q9,4,FALSE)*'Käyttö (B)'!$C14*Yhteenveto!$D13 ->  | CN68: =HLOOKUP(ROUNDDOWN(CN62,-1),$C5:$Q9,2,FALSE)*'Käyttö (B)'!$C12*Yhteenveto!$D13+HLOOKUP(ROUNDDOWN(CN62,-1),$C5:$Q9,3,FALSE)*'Käyttö (B)'!$C13*Yhteenveto!$D13+HLOOKUP(ROUNDDOWN(CN62,-1),$C5:$Q9,4,FALSE)*'Käyttö (B)'!$C14*Yhteenveto!$D13 ->  | CO68: =HLOOKUP(ROUNDDOWN(CO62,-1),$C5:$Q9,2,FALSE)*'Käyttö (B)'!$C12*Yhteenveto!$D13+HLOOKUP(ROUNDDOWN(CO62,-1),$C5:$Q9,3,FALSE)*'Käyttö (B)'!$C13*Yhteenveto!$D13+HLOOKUP(ROUNDDOWN(CO62,-1),$C5:$Q9,4,FALSE)*'Käyttö (B)'!$C14*Yhteenveto!$D13 ->  | CP68: =HLOOKUP(ROUNDDOWN(CP62,-1),$C5:$Q9,2,FALSE)*'Käyttö (B)'!$C12*Yhteenveto!$D13+HLOOKUP(ROUNDDOWN(CP62,-1),$C5:$Q9,3,FALSE)*'Käyttö (B)'!$C13*Yhteenveto!$D13+HLOOKUP(ROUNDDOWN(CP62,-1),$C5:$Q9,4,FALSE)*'Käyttö (B)'!$C14*Yhteenveto!$D13 ->  | CQ68: =HLOOKUP(ROUNDDOWN(CQ62,-1),$C5:$Q9,2,FALSE)*'Käyttö (B)'!$C12*Yhteenveto!$D13+HLOOKUP(ROUNDDOWN(CQ62,-1),$C5:$Q9,3,FALSE)*'Käyttö (B)'!$C13*Yhteenveto!$D13+HLOOKUP(ROUNDDOWN(CQ62,-1),$C5:$Q9,4,FALSE)*'Käyttö (B)'!$C14*Yhteenveto!$D13 ->  | CR68: =HLOOKUP(ROUNDDOWN(CR62,-1),$C5:$Q9,2,FALSE)*'Käyttö (B)'!$C12*Yhteenveto!$D13+HLOOKUP(ROUNDDOWN(CR62,-1),$C5:$Q9,3,FALSE)*'Käyttö (B)'!$C13*Yhteenveto!$D13+HLOOKUP(ROUNDDOWN(CR62,-1),$C5:$Q9,4,FALSE)*'Käyttö (B)'!$C14*Yhteenveto!$D13 ->  | CS68: =HLOOKUP(ROUNDDOWN(CS62,-1),$C5:$Q9,2,FALSE)*'Käyttö (B)'!$C12*Yhteenveto!$D13+HLOOKUP(ROUNDDOWN(CS62,-1),$C5:$Q9,3,FALSE)*'Käyttö (B)'!$C13*Yhteenveto!$D13+HLOOKUP(ROUNDDOWN(CS62,-1),$C5:$Q9,4,FALSE)*'Käyttö (B)'!$C14*Yhteenveto!$D13 ->  | CT68: =HLOOKUP(ROUNDDOWN(CT62,-1),$C5:$Q9,2,FALSE)*'Käyttö (B)'!$C12*Yhteenveto!$D13+HLOOKUP(ROUNDDOWN(CT62,-1),$C5:$Q9,3,FALSE)*'Käyttö (B)'!$C13*Yhteenveto!$D13+HLOOKUP(ROUNDDOWN(CT62,-1),$C5:$Q9,4,FALSE)*'Käyttö (B)'!$C14*Yhteenveto!$D13 ->  | CU68: =HLOOKUP(ROUNDDOWN(CU62,-1),$C5:$Q9,2,FALSE)*'Käyttö (B)'!$C12*Yhteenveto!$D13+HLOOKUP(ROUNDDOWN(CU62,-1),$C5:$Q9,3,FALSE)*'Käyttö (B)'!$C13*Yhteenveto!$D13+HLOOKUP(ROUNDDOWN(CU62,-1),$C5:$Q9,4,FALSE)*'Käyttö (B)'!$C14*Yhteenveto!$D13 ->  | CV68: =HLOOKUP(ROUNDDOWN(CV62,-1),$C5:$Q9,2,FALSE)*'Käyttö (B)'!$C12*Yhteenveto!$D13+HLOOKUP(ROUNDDOWN(CV62,-1),$C5:$Q9,3,FALSE)*'Käyttö (B)'!$C13*Yhteenveto!$D13+HLOOKUP(ROUNDDOWN(CV62,-1),$C5:$Q9,4,FALSE)*'Käyttö (B)'!$C14*Yhteenveto!$D13 ->  | CW68: =HLOOKUP(ROUNDDOWN(CW62,-1),$C5:$Q9,2,FALSE)*'Käyttö (B)'!$C12*Yhteenveto!$D13+HLOOKUP(ROUNDDOWN(CW62,-1),$C5:$Q9,3,FALSE)*'Käyttö (B)'!$C13*Yhteenveto!$D13+HLOOKUP(ROUNDDOWN(CW62,-1),$C5:$Q9,4,FALSE)*'Käyttö (B)'!$C14*Yhteenveto!$D13 ->  | CX68: =HLOOKUP(ROUNDDOWN(CX62,-1),$C5:$Q9,2,FALSE)*'Käyttö (B)'!$C12*Yhteenveto!$D13+HLOOKUP(ROUNDDOWN(CX62,-1),$C5:$Q9,3,FALSE)*'Käyttö (B)'!$C13*Yhteenveto!$D13+HLOOKUP(ROUNDDOWN(CX62,-1),$C5:$Q9,4,FALSE)*'Käyttö (B)'!$C14*Yhteenveto!$D13 ->  | CY68: =HLOOKUP(ROUNDDOWN(CY62,-1),$C5:$Q9,2,FALSE)*'Käyttö (B)'!$C12*Yhteenveto!$D13+HLOOKUP(ROUNDDOWN(CY62,-1),$C5:$Q9,3,FALSE)*'Käyttö (B)'!$C13*Yhteenveto!$D13+HLOOKUP(ROUNDDOWN(CY62,-1),$C5:$Q9,4,FALSE)*'Käyttö (B)'!$C14*Yhteenveto!$D13 ->  | CZ68: =HLOOKUP(ROUNDDOWN(CZ62,-1),$C5:$Q9,2,FALSE)*'Käyttö (B)'!$C12*Yhteenveto!$D13+HLOOKUP(ROUNDDOWN(CZ62,-1),$C5:$Q9,3,FALSE)*'Käyttö (B)'!$C13*Yhteenveto!$D13+HLOOKUP(ROUNDDOWN(CZ62,-1),$C5:$Q9,4,FALSE)*'Käyttö (B)'!$C14*Yhteenveto!$D13 ->  | DA68: =HLOOKUP(ROUNDDOWN(DA62,-1),$C5:$Q9,2,FALSE)*'Käyttö (B)'!$C12*Yhteenveto!$D13+HLOOKUP(ROUNDDOWN(DA62,-1),$C5:$Q9,3,FALSE)*'Käyttö (B)'!$C13*Yhteenveto!$D13+HLOOKUP(ROUNDDOWN(DA62,-1),$C5:$Q9,4,FALSE)*'Käyttö (B)'!$C14*Yhteenveto!$D13 ->  | DB68: =HLOOKUP(ROUNDDOWN(DB62,-1),$C5:$Q9,2,FALSE)*'Käyttö (B)'!$C12*Yhteenveto!$D13+HLOOKUP(ROUNDDOWN(DB62,-1),$C5:$Q9,3,FALSE)*'Käyttö (B)'!$C13*Yhteenveto!$D13+HLOOKUP(ROUNDDOWN(DB62,-1),$C5:$Q9,4,FALSE)*'Käyttö (B)'!$C14*Yhteenveto!$D13 ->  | DC68: =HLOOKUP(ROUNDDOWN(DC62,-1),$C5:$Q9,2,FALSE)*'Käyttö (B)'!$C12*Yhteenveto!$D13+HLOOKUP(ROUNDDOWN(DC62,-1),$C5:$Q9,3,FALSE)*'Käyttö (B)'!$C13*Yhteenveto!$D13+HLOOKUP(ROUNDDOWN(DC62,-1),$C5:$Q9,4,FALSE)*'Käyttö (B)'!$C14*Yhteenveto!$D13 ->  | DD68: =HLOOKUP(ROUNDDOWN(DD62,-1),$C5:$Q9,2,FALSE)*'Käyttö (B)'!$C12*Yhteenveto!$D13+HLOOKUP(ROUNDDOWN(DD62,-1),$C5:$Q9,3,FALSE)*'Käyttö (B)'!$C13*Yhteenveto!$D13+HLOOKUP(ROUNDDOWN(DD62,-1),$C5:$Q9,4,FALSE)*'Käyttö (B)'!$C14*Yhteenveto!$D13 ->  | DE68: =HLOOKUP(ROUNDDOWN(DE62,-1),$C5:$Q9,2,FALSE)*'Käyttö (B)'!$C12*Yhteenveto!$D13+HLOOKUP(ROUNDDOWN(DE62,-1),$C5:$Q9,3,FALSE)*'Käyttö (B)'!$C13*Yhteenveto!$D13+HLOOKUP(ROUNDDOWN(DE62,-1),$C5:$Q9,4,FALSE)*'Käyttö (B)'!$C14*Yhteenveto!$D13 ->  | DF68: =HLOOKUP(ROUNDDOWN(DF62,-1),$C5:$Q9,2,FALSE)*'Käyttö (B)'!$C12*Yhteenveto!$D13+HLOOKUP(ROUNDDOWN(DF62,-1),$C5:$Q9,3,FALSE)*'Käyttö (B)'!$C13*Yhteenveto!$D13+HLOOKUP(ROUNDDOWN(DF62,-1),$C5:$Q9,4,FALSE)*'Käyttö (B)'!$C14*Yhteenveto!$D13 ->  | DG68: =HLOOKUP(ROUNDDOWN(DG62,-1),$C5:$Q9,2,FALSE)*'Käyttö (B)'!$C12*Yhteenveto!$D13+HLOOKUP(ROUNDDOWN(DG62,-1),$C5:$Q9,3,FALSE)*'Käyttö (B)'!$C13*Yhteenveto!$D13+HLOOKUP(ROUNDDOWN(DG62,-1),$C5:$Q9,4,FALSE)*'Käyttö (B)'!$C14*Yhteenveto!$D13 ->  | DH68: =HLOOKUP(ROUNDDOWN(DH62,-1),$C5:$Q9,2,FALSE)*'Käyttö (B)'!$C12*Yhteenveto!$D13+HLOOKUP(ROUNDDOWN(DH62,-1),$C5:$Q9,3,FALSE)*'Käyttö (B)'!$C13*Yhteenveto!$D13+HLOOKUP(ROUNDDOWN(DH62,-1),$C5:$Q9,4,FALSE)*'Käyttö (B)'!$C14*Yhteenveto!$D13 ->  | DI68: =HLOOKUP(ROUNDDOWN(DI62,-1),$C5:$Q9,2,FALSE)*'Käyttö (B)'!$C12*Yhteenveto!$D13+HLOOKUP(ROUNDDOWN(DI62,-1),$C5:$Q9,3,FALSE)*'Käyttö (B)'!$C13*Yhteenveto!$D13+HLOOKUP(ROUNDDOWN(DI62,-1),$C5:$Q9,4,FALSE)*'Käyttö (B)'!$C14*Yhteenveto!$D13 ->  | DJ68: =HLOOKUP(ROUNDDOWN(DJ62,-1),$C5:$Q9,2,FALSE)*'Käyttö (B)'!$C12*Yhteenveto!$D13+HLOOKUP(ROUNDDOWN(DJ62,-1),$C5:$Q9,3,FALSE)*'Käyttö (B)'!$C13*Yhteenveto!$D13+HLOOKUP(ROUNDDOWN(DJ62,-1),$C5:$Q9,4,FALSE)*'Käyttö (B)'!$C14*Yhteenveto!$D13 ->  | DK68: =HLOOKUP(ROUNDDOWN(DK62,-1),$C5:$Q9,2,FALSE)*'Käyttö (B)'!$C12*Yhteenveto!$D13+HLOOKUP(ROUNDDOWN(DK62,-1),$C5:$Q9,3,FALSE)*'Käyttö (B)'!$C13*Yhteenveto!$D13+HLOOKUP(ROUNDDOWN(DK62,-1),$C5:$Q9,4,FALSE)*'Käyttö (B)'!$C14*Yhteenveto!$D13 ->  | DL68: =HLOOKUP(ROUNDDOWN(DL62,-1),$C5:$Q9,2,FALSE)*'Käyttö (B)'!$C12*Yhteenveto!$D13+HLOOKUP(ROUNDDOWN(DL62,-1),$C5:$Q9,3,FALSE)*'Käyttö (B)'!$C13*Yhteenveto!$D13+HLOOKUP(ROUNDDOWN(DL62,-1),$C5:$Q9,4,FALSE)*'Käyttö (B)'!$C14*Yhteenveto!$D13 ->  | DM68: =HLOOKUP(ROUNDDOWN(DM62,-1),$C5:$Q9,2,FALSE)*'Käyttö (B)'!$C12*Yhteenveto!$D13+HLOOKUP(ROUNDDOWN(DM62,-1),$C5:$Q9,3,FALSE)*'Käyttö (B)'!$C13*Yhteenveto!$D13+HLOOKUP(ROUNDDOWN(DM62,-1),$C5:$Q9,4,FALSE)*'Käyttö (B)'!$C14*Yhteenveto!$D13 ->  | DN68: =HLOOKUP(ROUNDDOWN(DN62,-1),$C5:$Q9,2,FALSE)*'Käyttö (B)'!$C12*Yhteenveto!$D13+HLOOKUP(ROUNDDOWN(DN62,-1),$C5:$Q9,3,FALSE)*'Käyttö (B)'!$C13*Yhteenveto!$D13+HLOOKUP(ROUNDDOWN(DN62,-1),$C5:$Q9,4,FALSE)*'Käyttö (B)'!$C14*Yhteenveto!$D13 ->  | DO68: =HLOOKUP(ROUNDDOWN(DO62,-1),$C5:$Q9,2,FALSE)*'Käyttö (B)'!$C12*Yhteenveto!$D13+HLOOKUP(ROUNDDOWN(DO62,-1),$C5:$Q9,3,FALSE)*'Käyttö (B)'!$C13*Yhteenveto!$D13+HLOOKUP(ROUNDDOWN(DO62,-1),$C5:$Q9,4,FALSE)*'Käyttö (B)'!$C14*Yhteenveto!$D13 ->  | DP68: =HLOOKUP(ROUNDDOWN(DP62,-1),$C5:$Q9,2,FALSE)*'Käyttö (B)'!$C12*Yhteenveto!$D13+HLOOKUP(ROUNDDOWN(DP62,-1),$C5:$Q9,3,FALSE)*'Käyttö (B)'!$C13*Yhteenveto!$D13+HLOOKUP(ROUNDDOWN(DP62,-1),$C5:$Q9,4,FALSE)*'Käyttö (B)'!$C14*Yhteenveto!$D13 ->  | DQ68: =HLOOKUP(ROUNDDOWN(DQ62,-1),$C5:$Q9,2,FALSE)*'Käyttö (B)'!$C12*Yhteenveto!$D13+HLOOKUP(ROUNDDOWN(DQ62,-1),$C5:$Q9,3,FALSE)*'Käyttö (B)'!$C13*Yhteenveto!$D13+HLOOKUP(ROUNDDOWN(DQ62,-1),$C5:$Q9,4,FALSE)*'Käyttö (B)'!$C14*Yhteenveto!$D13 ->  | DR68: =HLOOKUP(ROUNDDOWN(DR62,-1),$C5:$Q9,2,FALSE)*'Käyttö (B)'!$C12*Yhteenveto!$D13+HLOOKUP(ROUNDDOWN(DR62,-1),$C5:$Q9,3,FALSE)*'Käyttö (B)'!$C13*Yhteenveto!$D13+HLOOKUP(ROUNDDOWN(DR62,-1),$C5:$Q9,4,FALSE)*'Käyttö (B)'!$C14*Yhteenveto!$D13 ->  | DS68: =HLOOKUP(ROUNDDOWN(DS62,-1),$C5:$Q9,2,FALSE)*'Käyttö (B)'!$C12*Yhteenveto!$D13+HLOOKUP(ROUNDDOWN(DS62,-1),$C5:$Q9,3,FALSE)*'Käyttö (B)'!$C13*Yhteenveto!$D13+HLOOKUP(ROUNDDOWN(DS62,-1),$C5:$Q9,4,FALSE)*'Käyttö (B)'!$C14*Yhteenveto!$D13 ->  | DT68: =HLOOKUP(ROUNDDOWN(DT62,-1),$C5:$Q9,2,FALSE)*'Käyttö (B)'!$C12*Yhteenveto!$D13+HLOOKUP(ROUNDDOWN(DT62,-1),$C5:$Q9,3,FALSE)*'Käyttö (B)'!$C13*Yhteenveto!$D13+HLOOKUP(ROUNDDOWN(DT62,-1),$C5:$Q9,4,FALSE)*'Käyttö (B)'!$C14*Yhteenveto!$D13 ->  | DU68: =HLOOKUP(ROUNDDOWN(DU62,-1),$C5:$Q9,2,FALSE)*'Käyttö (B)'!$C12*Yhteenveto!$D13+HLOOKUP(ROUNDDOWN(DU62,-1),$C5:$Q9,3,FALSE)*'Käyttö (B)'!$C13*Yhteenveto!$D13+HLOOKUP(ROUNDDOWN(DU62,-1),$C5:$Q9,4,FALSE)*'Käyttö (B)'!$C14*Yhteenveto!$D13 ->  | DV68: =HLOOKUP(ROUNDDOWN(DV62,-1),$C5:$Q9,2,FALSE)*'Käyttö (B)'!$C12*Yhteenveto!$D13+HLOOKUP(ROUNDDOWN(DV62,-1),$C5:$Q9,3,FALSE)*'Käyttö (B)'!$C13*Yhteenveto!$D13+HLOOKUP(ROUNDDOWN(DV62,-1),$C5:$Q9,4,FALSE)*'Käyttö (B)'!$C14*Yhteenveto!$D13 ->  | DW68: =HLOOKUP(ROUNDDOWN(DW62,-1),$C5:$Q9,2,FALSE)*'Käyttö (B)'!$C12*Yhteenveto!$D13+HLOOKUP(ROUNDDOWN(DW62,-1),$C5:$Q9,3,FALSE)*'Käyttö (B)'!$C13*Yhteenveto!$D13+HLOOKUP(ROUNDDOWN(DW62,-1),$C5:$Q9,4,FALSE)*'Käyttö (B)'!$C14*Yhteenveto!$D13 ->  | DX68: =HLOOKUP(ROUNDDOWN(DX62,-1),$C5:$Q9,2,FALSE)*'Käyttö (B)'!$C12*Yhteenveto!$D13+HLOOKUP(ROUNDDOWN(DX62,-1),$C5:$Q9,3,FALSE)*'Käyttö (B)'!$C13*Yhteenveto!$D13+HLOOKUP(ROUNDDOWN(DX62,-1),$C5:$Q9,4,FALSE)*'Käyttö (B)'!$C14*Yhteenveto!$D13 ->  | DY68: =HLOOKUP(ROUNDDOWN(DY62,-1),$C5:$Q9,2,FALSE)*'Käyttö (B)'!$C12*Yhteenveto!$D13+HLOOKUP(ROUNDDOWN(DY62,-1),$C5:$Q9,3,FALSE)*'Käyttö (B)'!$C13*Yhteenveto!$D13+HLOOKUP(ROUNDDOWN(DY62,-1),$C5:$Q9,4,FALSE)*'Käyttö (B)'!$C14*Yhteenveto!$D13 ->  | DZ68: =HLOOKUP(ROUNDDOWN(DZ62,-1),$C5:$Q9,2,FALSE)*'Käyttö (B)'!$C12*Yhteenveto!$D13+HLOOKUP(ROUNDDOWN(DZ62,-1),$C5:$Q9,3,FALSE)*'Käyttö (B)'!$C13*Yhteenveto!$D13+HLOOKUP(ROUNDDOWN(DZ62,-1),$C5:$Q9,4,FALSE)*'Käyttö (B)'!$C14*Yhteenveto!$D13 ->  | EA68: =HLOOKUP(ROUNDDOWN(EA62,-1),$C5:$Q9,2,FALSE)*'Käyttö (B)'!$C12*Yhteenveto!$D13+HLOOKUP(ROUNDDOWN(EA62,-1),$C5:$Q9,3,FALSE)*'Käyttö (B)'!$C13*Yhteenveto!$D13+HLOOKUP(ROUNDDOWN(EA62,-1),$C5:$Q9,4,FALSE)*'Käyttö (B)'!$C14*Yhteenveto!$D13 ->  | EB68: =HLOOKUP(ROUNDDOWN(EB62,-1),$C5:$Q9,2,FALSE)*'Käyttö (B)'!$C12*Yhteenveto!$D13+HLOOKUP(ROUNDDOWN(EB62,-1),$C5:$Q9,3,FALSE)*'Käyttö (B)'!$C13*Yhteenveto!$D13+HLOOKUP(ROUNDDOWN(EB62,-1),$C5:$Q9,4,FALSE)*'Käyttö (B)'!$C14*Yhteenveto!$D13 ->  | EC68: =HLOOKUP(ROUNDDOWN(EC62,-1),$C5:$Q9,2,FALSE)*'Käyttö (B)'!$C12*Yhteenveto!$D13+HLOOKUP(ROUNDDOWN(EC62,-1),$C5:$Q9,3,FALSE)*'Käyttö (B)'!$C13*Yhteenveto!$D13+HLOOKUP(ROUNDDOWN(EC62,-1),$C5:$Q9,4,FALSE)*'Käyttö (B)'!$C14*Yhteenveto!$D13 ->  | ED68: =HLOOKUP(ROUNDDOWN(ED62,-1),$C5:$Q9,2,FALSE)*'Käyttö (B)'!$C12*Yhteenveto!$D13+HLOOKUP(ROUNDDOWN(ED62,-1),$C5:$Q9,3,FALSE)*'Käyttö (B)'!$C13*Yhteenveto!$D13+HLOOKUP(ROUNDDOWN(ED62,-1),$C5:$Q9,4,FALSE)*'Käyttö (B)'!$C14*Yhteenveto!$D13 ->  | EE68: =HLOOKUP(ROUNDDOWN(EE62,-1),$C5:$Q9,2,FALSE)*'Käyttö (B)'!$C12*Yhteenveto!$D13+HLOOKUP(ROUNDDOWN(EE62,-1),$C5:$Q9,3,FALSE)*'Käyttö (B)'!$C13*Yhteenveto!$D13+HLOOKUP(ROUNDDOWN(EE62,-1),$C5:$Q9,4,FALSE)*'Käyttö (B)'!$C14*Yhteenveto!$D13 -> 
B69: Vuotuiset korjaukset | D69: ='Käyttö (B)'!$D28*Yhteenveto!$D13+SUMIF(Materiaaliluettelo!$O:$O,Datalehti!D62-Datalehti!$C21,Materiaaliluettelo!$J:$J) -> 0 | E69: ='Käyttö (B)'!$D28*Yhteenveto!$D13+SUMIF(Materiaaliluettelo!$O:$O,Datalehti!E62-Datalehti!$C21,Materiaaliluettelo!$J:$J) -> 0 | F69: ='Käyttö (B)'!$D28*Yhteenveto!$D13+SUMIF(Materiaaliluettelo!$O:$O,Datalehti!F62-Datalehti!$C21,Materiaaliluettelo!$J:$J) -> 0 | G69: ='Käyttö (B)'!$D28*Yhteenveto!$D13+SUMIF(Materiaaliluettelo!$O:$O,Datalehti!G62-Datalehti!$C21,Materiaaliluettelo!$J:$J) -> 0 | H69: ='Käyttö (B)'!$D28*Yhteenveto!$D13+SUMIF(Materiaaliluettelo!$O:$O,Datalehti!H62-Datalehti!$C21,Materiaaliluettelo!$J:$J) -> 0 | I69: ='Käyttö (B)'!$D28*Yhteenveto!$D13+SUMIF(Materiaaliluettelo!$O:$O,Datalehti!I62-Datalehti!$C21,Materiaaliluettelo!$J:$J) -> 0 | J69: ='Käyttö (B)'!$D28*Yhteenveto!$D13+SUMIF(Materiaaliluettelo!$O:$O,Datalehti!J62-Datalehti!$C21,Materiaaliluettelo!$J:$J) -> 0 | K69: ='Käyttö (B)'!$D28*Yhteenveto!$D13+SUMIF(Materiaaliluettelo!$O:$O,Datalehti!K62-Datalehti!$C21,Materiaaliluettelo!$J:$J) -> 0 | L69: ='Käyttö (B)'!$D28*Yhteenveto!$D13+SUMIF(Materiaaliluettelo!$O:$O,Datalehti!L62-Datalehti!$C21,Materiaaliluettelo!$J:$J) -> 0 | M69: ='Käyttö (B)'!$D28*Yhteenveto!$D13+SUMIF(Materiaaliluettelo!$O:$O,Datalehti!M62-Datalehti!$C21,Materiaaliluettelo!$J:$J) -> 0 | N69: ='Käyttö (B)'!$D28*Yhteenveto!$D13+SUMIF(Materiaaliluettelo!$O:$O,Datalehti!N62-Datalehti!$C21,Materiaaliluettelo!$J:$J) -> 0 | O69: ='Käyttö (B)'!$D28*Yhteenveto!$D13+SUMIF(Materiaaliluettelo!$O:$O,Datalehti!O62-Datalehti!$C21,Materiaaliluettelo!$J:$J) -> 0 | P69: ='Käyttö (B)'!$D28*Yhteenveto!$D13+SUMIF(Materiaaliluettelo!$O:$O,Datalehti!P62-Datalehti!$C21,Materiaaliluettelo!$J:$J) -> 0 | Q69: ='Käyttö (B)'!$D28*Yhteenveto!$D13+SUMIF(Materiaaliluettelo!$O:$O,Datalehti!Q62-Datalehti!$C21,Materiaaliluettelo!$J:$J) -> 0 | R69: ='Käyttö (B)'!$D28*Yhteenveto!$D13+SUMIF(Materiaaliluettelo!$O:$O,Datalehti!R62-Datalehti!$C21,Materiaaliluettelo!$J:$J) -> 0 | S69: ='Käyttö (B)'!$D28*Yhteenveto!$D13+SUMIF(Materiaaliluettelo!$O:$O,Datalehti!S62-Datalehti!$C21,Materiaaliluettelo!$J:$J) -> 0 | T69: ='Käyttö (B)'!$D28*Yhteenveto!$D13+SUMIF(Materiaaliluettelo!$O:$O,Datalehti!T62-Datalehti!$C21,Materiaaliluettelo!$J:$J) -> 0 | U69: ='Käyttö (B)'!$D28*Yhteenveto!$D13+SUMIF(Materiaaliluettelo!$O:$O,Datalehti!U62-Datalehti!$C21,Materiaaliluettelo!$J:$J) -> 0 | V69: ='Käyttö (B)'!$D28*Yhteenveto!$D13+SUMIF(Materiaaliluettelo!$O:$O,Datalehti!V62-Datalehti!$C21,Materiaaliluettelo!$J:$J) -> 0 | W69: ='Käyttö (B)'!$D28*Yhteenveto!$D13+SUMIF(Materiaaliluettelo!$O:$O,Datalehti!W62-Datalehti!$C21,Materiaaliluettelo!$J:$J) -> 0 | X69: ='Käyttö (B)'!$D28*Yhteenveto!$D13+SUMIF(Materiaaliluettelo!$O:$O,Datalehti!X62-Datalehti!$C21,Materiaaliluettelo!$J:$J) -> 0 | Y69: ='Käyttö (B)'!$D28*Yhteenveto!$D13+SUMIF(Materiaaliluettelo!$O:$O,Datalehti!Y62-Datalehti!$C21,Materiaaliluettelo!$J:$J) -> 0 | Z69: ='Käyttö (B)'!$D28*Yhteenveto!$D13+SUMIF(Materiaaliluettelo!$O:$O,Datalehti!Z62-Datalehti!$C21,Materiaaliluettelo!$J:$J) -> 0 | AA69: ='Käyttö (B)'!$D28*Yhteenveto!$D13+SUMIF(Materiaaliluettelo!$O:$O,Datalehti!AA62-Datalehti!$C21,Materiaaliluettelo!$J:$J) -> 0 | AB69: ='Käyttö (B)'!$D28*Yhteenveto!$D13+SUMIF(Materiaaliluettelo!$O:$O,Datalehti!AB62-Datalehti!$C21,Materiaaliluettelo!$J:$J) -> 0 | AC69: ='Käyttö (B)'!$D28*Yhteenveto!$D13+SUMIF(Materiaaliluettelo!$O:$O,Datalehti!AC62-Datalehti!$C21,Materiaaliluettelo!$J:$J) -> 0 | AD69: ='Käyttö (B)'!$D28*Yhteenveto!$D13+SUMIF(Materiaaliluettelo!$O:$O,Datalehti!AD62-Datalehti!$C21,Materiaaliluettelo!$J:$J) -> 0 | AE69: ='Käyttö (B)'!$D28*Yhteenveto!$D13+SUMIF(Materiaaliluettelo!$O:$O,Datalehti!AE62-Datalehti!$C21,Materiaaliluettelo!$J:$J) -> 0 | AF69: ='Käyttö (B)'!$D28*Yhteenveto!$D13+SUMIF(Materiaaliluettelo!$O:$O,Datalehti!AF62-Datalehti!$C21,Materiaaliluettelo!$J:$J) -> 0 | AG69: ='Käyttö (B)'!$D28*Yhteenveto!$D13+SUMIF(Materiaaliluettelo!$O:$O,Datalehti!AG62-Datalehti!$C21,Materiaaliluettelo!$J:$J) -> 0 | AH69: ='Käyttö (B)'!$D28*Yhteenveto!$D13+SUMIF(Materiaaliluettelo!$O:$O,Datalehti!AH62-Datalehti!$C21,Materiaaliluettelo!$J:$J) -> 0 | AI69: ='Käyttö (B)'!$D28*Yhteenveto!$D13+SUMIF(Materiaaliluettelo!$O:$O,Datalehti!AI62-Datalehti!$C21,Materiaaliluettelo!$J:$J) -> 0 | AJ69: ='Käyttö (B)'!$D28*Yhteenveto!$D13+SUMIF(Materiaaliluettelo!$O:$O,Datalehti!AJ62-Datalehti!$C21,Materiaaliluettelo!$J:$J) -> 0 | AK69: ='Käyttö (B)'!$D28*Yhteenveto!$D13+SUMIF(Materiaaliluettelo!$O:$O,Datalehti!AK62-Datalehti!$C21,Materiaaliluettelo!$J:$J) -> 0 | AL69: ='Käyttö (B)'!$D28*Yhteenveto!$D13+SUMIF(Materiaaliluettelo!$O:$O,Datalehti!AL62-Datalehti!$C21,Materiaaliluettelo!$J:$J) -> 0 | AM69: ='Käyttö (B)'!$D28*Yhteenveto!$D13+SUMIF(Materiaaliluettelo!$O:$O,Datalehti!AM62-Datalehti!$C21,Materiaaliluettelo!$J:$J) -> 0 | AN69: ='Käyttö (B)'!$D28*Yhteenveto!$D13+SUMIF(Materiaaliluettelo!$O:$O,Datalehti!AN62-Datalehti!$C21,Materiaaliluettelo!$J:$J) -> 0 | AO69: ='Käyttö (B)'!$D28*Yhteenveto!$D13+SUMIF(Materiaaliluettelo!$O:$O,Datalehti!AO62-Datalehti!$C21,Materiaaliluettelo!$J:$J) -> 0 | AP69: ='Käyttö (B)'!$D28*Yhteenveto!$D13+SUMIF(Materiaaliluettelo!$O:$O,Datalehti!AP62-Datalehti!$C21,Materiaaliluettelo!$J:$J) -> 0 | AQ69: ='Käyttö (B)'!$D28*Yhteenveto!$D13+SUMIF(Materiaaliluettelo!$O:$O,Datalehti!AQ62-Datalehti!$C21,Materiaaliluettelo!$J:$J) -> 0 | AR69: ='Käyttö (B)'!$D28*Yhteenveto!$D13+SUMIF(Materiaaliluettelo!$O:$O,Datalehti!AR62-Datalehti!$C21,Materiaaliluettelo!$J:$J) -> 0 | AS69: ='Käyttö (B)'!$D28*Yhteenveto!$D13+SUMIF(Materiaaliluettelo!$O:$O,Datalehti!AS62-Datalehti!$C21,Materiaaliluettelo!$J:$J) -> 0 | AT69: ='Käyttö (B)'!$D28*Yhteenveto!$D13+SUMIF(Materiaaliluettelo!$O:$O,Datalehti!AT62-Datalehti!$C21,Materiaaliluettelo!$J:$J) -> 0 | AU69: ='Käyttö (B)'!$D28*Yhteenveto!$D13+SUMIF(Materiaaliluettelo!$O:$O,Datalehti!AU62-Datalehti!$C21,Materiaaliluettelo!$J:$J) -> 0 | AV69: ='Käyttö (B)'!$D28*Yhteenveto!$D13+SUMIF(Materiaaliluettelo!$O:$O,Datalehti!AV62-Datalehti!$C21,Materiaaliluettelo!$J:$J) -> 0 | AW69: ='Käyttö (B)'!$D28*Yhteenveto!$D13+SUMIF(Materiaaliluettelo!$O:$O,Datalehti!AW62-Datalehti!$C21,Materiaaliluettelo!$J:$J) -> 0 | AX69: ='Käyttö (B)'!$D28*Yhteenveto!$D13+SUMIF(Materiaaliluettelo!$O:$O,Datalehti!AX62-Datalehti!$C21,Materiaaliluettelo!$J:$J) -> 0 | AY69: ='Käyttö (B)'!$D28*Yhteenveto!$D13+SUMIF(Materiaaliluettelo!$O:$O,Datalehti!AY62-Datalehti!$C21,Materiaaliluettelo!$J:$J) -> 0 | AZ69: ='Käyttö (B)'!$D28*Yhteenveto!$D13+SUMIF(Materiaaliluettelo!$O:$O,Datalehti!AZ62-Datalehti!$C21,Materiaaliluettelo!$J:$J) -> 0 | BA69: ='Käyttö (B)'!$D28*Yhteenveto!$D13+SUMIF(Materiaaliluettelo!$O:$O,Datalehti!BA62-Datalehti!$C21,Materiaaliluettelo!$J:$J) -> 0 | BB69: ='Käyttö (B)'!$D28*Yhteenveto!$D13+SUMIF(Materiaaliluettelo!$O:$O,Datalehti!BB62-Datalehti!$C21,Materiaaliluettelo!$J:$J) -> 0 | BC69: ='Käyttö (B)'!$D28*Yhteenveto!$D13+SUMIF(Materiaaliluettelo!$O:$O,Datalehti!BC62-Datalehti!$C21,Materiaaliluettelo!$J:$J) -> 0 | BD69: ='Käyttö (B)'!$D28*Yhteenveto!$D13+SUMIF(Materiaaliluettelo!$O:$O,Datalehti!BD62-Datalehti!$C21,Materiaaliluettelo!$J:$J) -> 0 | BE69: ='Käyttö (B)'!$D28*Yhteenveto!$D13+SUMIF(Materiaaliluettelo!$O:$O,Datalehti!BE62-Datalehti!$C21,Materiaaliluettelo!$J:$J) -> 0 | BF69: ='Käyttö (B)'!$D28*Yhteenveto!$D13+SUMIF(Materiaaliluettelo!$O:$O,Datalehti!BF62-Datalehti!$C21,Materiaaliluettelo!$J:$J) -> 0 | BG69: ='Käyttö (B)'!$D28*Yhteenveto!$D13+SUMIF(Materiaaliluettelo!$O:$O,Datalehti!BG62-Datalehti!$C21,Materiaaliluettelo!$J:$J) -> 0 | BH69: ='Käyttö (B)'!$D28*Yhteenveto!$D13+SUMIF(Materiaaliluettelo!$O:$O,Datalehti!BH62-Datalehti!$C21,Materiaaliluettelo!$J:$J) -> 0 | BI69: ='Käyttö (B)'!$D28*Yhteenveto!$D13+SUMIF(Materiaaliluettelo!$O:$O,Datalehti!BI62-Datalehti!$C21,Materiaaliluettelo!$J:$J) -> 0 | BJ69: ='Käyttö (B)'!$D28*Yhteenveto!$D13+SUMIF(Materiaaliluettelo!$O:$O,Datalehti!BJ62-Datalehti!$C21,Materiaaliluettelo!$J:$J) -> 0 | BK69: ='Käyttö (B)'!$D28*Yhteenveto!$D13+SUMIF(Materiaaliluettelo!$O:$O,Datalehti!BK62-Datalehti!$C21,Materiaaliluettelo!$J:$J) -> 0 | BL69: ='Käyttö (B)'!$D28*Yhteenveto!$D13+SUMIF(Materiaaliluettelo!$O:$O,Datalehti!BL62-Datalehti!$C21,Materiaaliluettelo!$J:$J) -> 0 | BM69: ='Käyttö (B)'!$D28*Yhteenveto!$D13+SUMIF(Materiaaliluettelo!$O:$O,Datalehti!BM62-Datalehti!$C21,Materiaaliluettelo!$J:$J) -> 0 | BN69: ='Käyttö (B)'!$D28*Yhteenveto!$D13+SUMIF(Materiaaliluettelo!$O:$O,Datalehti!BN62-Datalehti!$C21,Materiaaliluettelo!$J:$J) -> 0 | BO69: ='Käyttö (B)'!$D28*Yhteenveto!$D13+SUMIF(Materiaaliluettelo!$O:$O,Datalehti!BO62-Datalehti!$C21,Materiaaliluettelo!$J:$J) -> 0 | BP69: ='Käyttö (B)'!$D28*Yhteenveto!$D13+SUMIF(Materiaaliluettelo!$O:$O,Datalehti!BP62-Datalehti!$C21,Materiaaliluettelo!$J:$J) -> 0 | BQ69: ='Käyttö (B)'!$D28*Yhteenveto!$D13+SUMIF(Materiaaliluettelo!$O:$O,Datalehti!BQ62-Datalehti!$C21,Materiaaliluettelo!$J:$J) -> 0 | BR69: ='Käyttö (B)'!$D28*Yhteenveto!$D13+SUMIF(Materiaaliluettelo!$O:$O,Datalehti!BR62-Datalehti!$C21,Materiaaliluettelo!$J:$J) -> 0 | BS69: ='Käyttö (B)'!$D28*Yhteenveto!$D13+SUMIF(Materiaaliluettelo!$O:$O,Datalehti!BS62-Datalehti!$C21,Materiaaliluettelo!$J:$J) -> 0 | BT69: ='Käyttö (B)'!$D28*Yhteenveto!$D13+SUMIF(Materiaaliluettelo!$O:$O,Datalehti!BT62-Datalehti!$C21,Materiaaliluettelo!$J:$J) -> 0 | BU69: ='Käyttö (B)'!$D28*Yhteenveto!$D13+SUMIF(Materiaaliluettelo!$O:$O,Datalehti!BU62-Datalehti!$C21,Materiaaliluettelo!$J:$J) -> 0 | BV69: ='Käyttö (B)'!$D28*Yhteenveto!$D13+SUMIF(Materiaaliluettelo!$O:$O,Datalehti!BV62-Datalehti!$C21,Materiaaliluettelo!$J:$J) -> 0 | BW69: ='Käyttö (B)'!$D28*Yhteenveto!$D13+SUMIF(Materiaaliluettelo!$O:$O,Datalehti!BW62-Datalehti!$C21,Materiaaliluettelo!$J:$J) -> 0 | BX69: ='Käyttö (B)'!$D28*Yhteenveto!$D13+SUMIF(Materiaaliluettelo!$O:$O,Datalehti!BX62-Datalehti!$C21,Materiaaliluettelo!$J:$J) -> 0 | BY69: ='Käyttö (B)'!$D28*Yhteenveto!$D13+SUMIF(Materiaaliluettelo!$O:$O,Datalehti!BY62-Datalehti!$C21,Materiaaliluettelo!$J:$J) -> 0 | BZ69: ='Käyttö (B)'!$D28*Yhteenveto!$D13+SUMIF(Materiaaliluettelo!$O:$O,Datalehti!BZ62-Datalehti!$C21,Materiaaliluettelo!$J:$J) -> 0 | CA69: ='Käyttö (B)'!$D28*Yhteenveto!$D13+SUMIF(Materiaaliluettelo!$O:$O,Datalehti!CA62-Datalehti!$C21,Materiaaliluettelo!$J:$J) -> 0 | CB69: ='Käyttö (B)'!$D28*Yhteenveto!$D13+SUMIF(Materiaaliluettelo!$O:$O,Datalehti!CB62-Datalehti!$C21,Materiaaliluettelo!$J:$J) -> 0 | CC69: ='Käyttö (B)'!$D28*Yhteenveto!$D13+SUMIF(Materiaaliluettelo!$O:$O,Datalehti!CC62-Datalehti!$C21,Materiaaliluettelo!$J:$J) -> 0 | CD69: ='Käyttö (B)'!$D28*Yhteenveto!$D13+SUMIF(Materiaaliluettelo!$O:$O,Datalehti!CD62-Datalehti!$C21,Materiaaliluettelo!$J:$J) -> 0 | CE69: ='Käyttö (B)'!$D28*Yhteenveto!$D13+SUMIF(Materiaaliluettelo!$O:$O,Datalehti!CE62-Datalehti!$C21,Materiaaliluettelo!$J:$J) -> 0 | CF69: ='Käyttö (B)'!$D28*Yhteenveto!$D13+SUMIF(Materiaaliluettelo!$O:$O,Datalehti!CF62-Datalehti!$C21,Materiaaliluettelo!$J:$J) -> 0 | CG69: ='Käyttö (B)'!$D28*Yhteenveto!$D13+SUMIF(Materiaaliluettelo!$O:$O,Datalehti!CG62-Datalehti!$C21,Materiaaliluettelo!$J:$J) -> 0 | CH69: ='Käyttö (B)'!$D28*Yhteenveto!$D13+SUMIF(Materiaaliluettelo!$O:$O,Datalehti!CH62-Datalehti!$C21,Materiaaliluettelo!$J:$J) -> 0 | CI69: ='Käyttö (B)'!$D28*Yhteenveto!$D13+SUMIF(Materiaaliluettelo!$O:$O,Datalehti!CI62-Datalehti!$C21,Materiaaliluettelo!$J:$J) -> 0 | CJ69: ='Käyttö (B)'!$D28*Yhteenveto!$D13+SUMIF(Materiaaliluettelo!$O:$O,Datalehti!CJ62-Datalehti!$C21,Materiaaliluettelo!$J:$J) -> 0 | CK69: ='Käyttö (B)'!$D28*Yhteenveto!$D13+SUMIF(Materiaaliluettelo!$O:$O,Datalehti!CK62-Datalehti!$C21,Materiaaliluettelo!$J:$J) -> 0 | CL69: ='Käyttö (B)'!$D28*Yhteenveto!$D13+SUMIF(Materiaaliluettelo!$O:$O,Datalehti!CL62-Datalehti!$C21,Materiaaliluettelo!$J:$J) -> 0 | CM69: ='Käyttö (B)'!$D28*Yhteenveto!$D13+SUMIF(Materiaaliluettelo!$O:$O,Datalehti!CM62-Datalehti!$C21,Materiaaliluettelo!$J:$J) -> 0 | CN69: ='Käyttö (B)'!$D28*Yhteenveto!$D13+SUMIF(Materiaaliluettelo!$O:$O,Datalehti!CN62-Datalehti!$C21,Materiaaliluettelo!$J:$J) -> 0 | CO69: ='Käyttö (B)'!$D28*Yhteenveto!$D13+SUMIF(Materiaaliluettelo!$O:$O,Datalehti!CO62-Datalehti!$C21,Materiaaliluettelo!$J:$J) -> 0 | CP69: ='Käyttö (B)'!$D28*Yhteenveto!$D13+SUMIF(Materiaaliluettelo!$O:$O,Datalehti!CP62-Datalehti!$C21,Materiaaliluettelo!$J:$J) -> 0 | CQ69: ='Käyttö (B)'!$D28*Yhteenveto!$D13+SUMIF(Materiaaliluettelo!$O:$O,Datalehti!CQ62-Datalehti!$C21,Materiaaliluettelo!$J:$J) -> 0 | CR69: ='Käyttö (B)'!$D28*Yhteenveto!$D13+SUMIF(Materiaaliluettelo!$O:$O,Datalehti!CR62-Datalehti!$C21,Materiaaliluettelo!$J:$J) -> 0 | CS69: ='Käyttö (B)'!$D28*Yhteenveto!$D13+SUMIF(Materiaaliluettelo!$O:$O,Datalehti!CS62-Datalehti!$C21,Materiaaliluettelo!$J:$J) -> 0 | CT69: ='Käyttö (B)'!$D28*Yhteenveto!$D13+SUMIF(Materiaaliluettelo!$O:$O,Datalehti!CT62-Datalehti!$C21,Materiaaliluettelo!$J:$J) -> 0 | CU69: ='Käyttö (B)'!$D28*Yhteenveto!$D13+SUMIF(Materiaaliluettelo!$O:$O,Datalehti!CU62-Datalehti!$C21,Materiaaliluettelo!$J:$J) -> 0 | CV69: ='Käyttö (B)'!$D28*Yhteenveto!$D13+SUMIF(Materiaaliluettelo!$O:$O,Datalehti!CV62-Datalehti!$C21,Materiaaliluettelo!$J:$J) -> 0 | CW69: ='Käyttö (B)'!$D28*Yhteenveto!$D13+SUMIF(Materiaaliluettelo!$O:$O,Datalehti!CW62-Datalehti!$C21,Materiaaliluettelo!$J:$J) -> 0 | CX69: ='Käyttö (B)'!$D28*Yhteenveto!$D13+SUMIF(Materiaaliluettelo!$O:$O,Datalehti!CX62-Datalehti!$C21,Materiaaliluettelo!$J:$J) -> 0 | CY69: ='Käyttö (B)'!$D28*Yhteenveto!$D13+SUMIF(Materiaaliluettelo!$O:$O,Datalehti!CY62-Datalehti!$C21,Materiaaliluettelo!$J:$J) -> 0 | CZ69: ='Käyttö (B)'!$D28*Yhteenveto!$D13+SUMIF(Materiaaliluettelo!$O:$O,Datalehti!CZ62-Datalehti!$C21,Materiaaliluettelo!$J:$J) -> 0 | DA69: ='Käyttö (B)'!$D28*Yhteenveto!$D13+SUMIF(Materiaaliluettelo!$O:$O,Datalehti!DA62-Datalehti!$C21,Materiaaliluettelo!$J:$J) -> 0 | DB69: ='Käyttö (B)'!$D28*Yhteenveto!$D13+SUMIF(Materiaaliluettelo!$O:$O,Datalehti!DB62-Datalehti!$C21,Materiaaliluettelo!$J:$J) -> 0 | DC69: ='Käyttö (B)'!$D28*Yhteenveto!$D13+SUMIF(Materiaaliluettelo!$O:$O,Datalehti!DC62-Datalehti!$C21,Materiaaliluettelo!$J:$J) -> 0 | DD69: ='Käyttö (B)'!$D28*Yhteenveto!$D13+SUMIF(Materiaaliluettelo!$O:$O,Datalehti!DD62-Datalehti!$C21,Materiaaliluettelo!$J:$J) -> 0 | DE69: ='Käyttö (B)'!$D28*Yhteenveto!$D13+SUMIF(Materiaaliluettelo!$O:$O,Datalehti!DE62-Datalehti!$C21,Materiaaliluettelo!$J:$J) -> 0 | DF69: ='Käyttö (B)'!$D28*Yhteenveto!$D13+SUMIF(Materiaaliluettelo!$O:$O,Datalehti!DF62-Datalehti!$C21,Materiaaliluettelo!$J:$J) -> 0 | DG69: ='Käyttö (B)'!$D28*Yhteenveto!$D13+SUMIF(Materiaaliluettelo!$O:$O,Datalehti!DG62-Datalehti!$C21,Materiaaliluettelo!$J:$J) -> 0 | DH69: ='Käyttö (B)'!$D28*Yhteenveto!$D13+SUMIF(Materiaaliluettelo!$O:$O,Datalehti!DH62-Datalehti!$C21,Materiaaliluettelo!$J:$J) -> 0 | DI69: ='Käyttö (B)'!$D28*Yhteenveto!$D13+SUMIF(Materiaaliluettelo!$O:$O,Datalehti!DI62-Datalehti!$C21,Materiaaliluettelo!$J:$J) -> 0 | DJ69: ='Käyttö (B)'!$D28*Yhteenveto!$D13+SUMIF(Materiaaliluettelo!$O:$O,Datalehti!DJ62-Datalehti!$C21,Materiaaliluettelo!$J:$J) -> 0 | DK69: ='Käyttö (B)'!$D28*Yhteenveto!$D13+SUMIF(Materiaaliluettelo!$O:$O,Datalehti!DK62-Datalehti!$C21,Materiaaliluettelo!$J:$J) -> 0 | DL69: ='Käyttö (B)'!$D28*Yhteenveto!$D13+SUMIF(Materiaaliluettelo!$O:$O,Datalehti!DL62-Datalehti!$C21,Materiaaliluettelo!$J:$J) -> 0 | DM69: ='Käyttö (B)'!$D28*Yhteenveto!$D13+SUMIF(Materiaaliluettelo!$O:$O,Datalehti!DM62-Datalehti!$C21,Materiaaliluettelo!$J:$J) -> 0 | DN69: ='Käyttö (B)'!$D28*Yhteenveto!$D13+SUMIF(Materiaaliluettelo!$O:$O,Datalehti!DN62-Datalehti!$C21,Materiaaliluettelo!$J:$J) -> 0 | DO69: ='Käyttö (B)'!$D28*Yhteenveto!$D13+SUMIF(Materiaaliluettelo!$O:$O,Datalehti!DO62-Datalehti!$C21,Materiaaliluettelo!$J:$J) -> 0 | DP69: ='Käyttö (B)'!$D28*Yhteenveto!$D13+SUMIF(Materiaaliluettelo!$O:$O,Datalehti!DP62-Datalehti!$C21,Materiaaliluettelo!$J:$J) -> 0 | DQ69: ='Käyttö (B)'!$D28*Yhteenveto!$D13+SUMIF(Materiaaliluettelo!$O:$O,Datalehti!DQ62-Datalehti!$C21,Materiaaliluettelo!$J:$J) -> 0 | DR69: ='Käyttö (B)'!$D28*Yhteenveto!$D13+SUMIF(Materiaaliluettelo!$O:$O,Datalehti!DR62-Datalehti!$C21,Materiaaliluettelo!$J:$J) -> 0 | DS69: ='Käyttö (B)'!$D28*Yhteenveto!$D13+SUMIF(Materiaaliluettelo!$O:$O,Datalehti!DS62-Datalehti!$C21,Materiaaliluettelo!$J:$J) -> 0 | DT69: ='Käyttö (B)'!$D28*Yhteenveto!$D13+SUMIF(Materiaaliluettelo!$O:$O,Datalehti!DT62-Datalehti!$C21,Materiaaliluettelo!$J:$J) -> 0 | DU69: ='Käyttö (B)'!$D28*Yhteenveto!$D13+SUMIF(Materiaaliluettelo!$O:$O,Datalehti!DU62-Datalehti!$C21,Materiaaliluettelo!$J:$J) -> 0 | DV69: ='Käyttö (B)'!$D28*Yhteenveto!$D13+SUMIF(Materiaaliluettelo!$O:$O,Datalehti!DV62-Datalehti!$C21,Materiaaliluettelo!$J:$J) -> 0 | DW69: ='Käyttö (B)'!$D28*Yhteenveto!$D13+SUMIF(Materiaaliluettelo!$O:$O,Datalehti!DW62-Datalehti!$C21,Materiaaliluettelo!$J:$J) -> 0 | DX69: ='Käyttö (B)'!$D28*Yhteenveto!$D13+SUMIF(Materiaaliluettelo!$O:$O,Datalehti!DX62-Datalehti!$C21,Materiaaliluettelo!$J:$J) -> 0 | DY69: ='Käyttö (B)'!$D28*Yhteenveto!$D13+SUMIF(Materiaaliluettelo!$O:$O,Datalehti!DY62-Datalehti!$C21,Materiaaliluettelo!$J:$J) -> 0 | DZ69: ='Käyttö (B)'!$D28*Yhteenveto!$D13+SUMIF(Materiaaliluettelo!$O:$O,Datalehti!DZ62-Datalehti!$C21,Materiaaliluettelo!$J:$J) -> 0 | EA69: ='Käyttö (B)'!$D28*Yhteenveto!$D13+SUMIF(Materiaaliluettelo!$O:$O,Datalehti!EA62-Datalehti!$C21,Materiaaliluettelo!$J:$J) -> 0 | EB69: ='Käyttö (B)'!$D28*Yhteenveto!$D13+SUMIF(Materiaaliluettelo!$O:$O,Datalehti!EB62-Datalehti!$C21,Materiaaliluettelo!$J:$J) -> 0 | EC69: ='Käyttö (B)'!$D28*Yhteenveto!$D13+SUMIF(Materiaaliluettelo!$O:$O,Datalehti!EC62-Datalehti!$C21,Materiaaliluettelo!$J:$J) -> 0 | ED69: ='Käyttö (B)'!$D28*Yhteenveto!$D13+SUMIF(Materiaaliluettelo!$O:$O,Datalehti!ED62-Datalehti!$C21,Materiaaliluettelo!$J:$J) -> 0 | EE69: ='Käyttö (B)'!$D28*Yhteenveto!$D13+SUMIF(Materiaaliluettelo!$O:$O,Datalehti!EE62-Datalehti!$C21,Materiaaliluettelo!$J:$J) -> 0
B94: Uudet kertoimet 6/2019, kopioitu ylös käyttöön
C96: 2020 | D96: 2030 | E96: 2040 | F96: 2050 | G96: 2060 | H96: 2070 | I96: 2080 | J96: 2090 | K96: 2100 | L96: 2110 | M96: 2120
B97: Sähkönkulutuksen CO2-päästökerroin, hyödynjako, g CO2/kWh | C97: 121 | D97: 57 | E97: 30 | F97: 18 | G97: 14 | H97: 7 | I97: 4 | J97: 2 | K97: 1 | L97: 1 | M97: 0
B98: Kaukolämmön kulutuksen CO2-päästökerroin, hyödynjako, g CO2/kWh | C98: 130 | D98: 93 | E98: 63 | F98: 37 | G98: 33 | H98: 22 | I98: 15 | J98: 10 | K98: 7 | L98: 4 | M98: 3
B100: kgco2/kwh | C100: =C97/1000 -> 0.121 | D100: =D97/1000 -> 0.057 | E100: 0.03 | F100: 0.018 | G100: 0.014 | H100: 0.007 | I100: 0.004 | J100: 0.002 | K100: 0.001 | L100: 0.001 | M100: 0
B101: kgco2/kwh | C101: =C98/1000 -> 0.13 | D101: 0.093 | E101: 0.063 | F101: 0.037 | G101: 0.033 | H101: 0.022 | I101: 0.015 | J101: 0.01 | K101: 0.007 | L101: 0.004 | M101: 0.003

Sheet LOKI (hidden)
A1: Tehdyt päivitykset
A2: 2019-12-09 | B2: Korjattu materiaaliluettelon toimimattomat alasvetovalikot ja lämmöneristeiden päästötietoja VTT:n ohjeiden mukaan
